{"text_format":"1","workbook":"xlsx","n_sheets":2,"sheets":["Título","BH&Rega"],"not_rendered":{"charts":0,"images":2,"macros":1,"external_links":0,"defined_names":17,"comments":1,"pivot_tables":0},"unopened":[],"bounds":{"document_bytes":16777216,"sheet_cells":100000,"rows_first":2000,"rows_last":500,"rows_between":2000,"halvings":0,"cell_chars":16384,"cell_head_chars":4096},"cells_cut":0,"cells_raw":0,"read":"whole","date_system":"1900"}

{"sheet":"Título","index":0,"n_rows":0,"n_cols":0,"rows_kept":0,"cut":false,"hidden":false,"merged":[]}

{"sheet":"BH&Rega","index":1,"n_rows":4002,"n_cols":54,"rows_kept":1125,"cut":true,"hidden":false,"merged":[[8,5,8,8],[12,4,12,5]],"bounds":{"rows_first":500,"rows_last":125,"rows_between":500,"halvings":2}}
["Balanço Hídrico Sequencial (BHS) para controle da rega",null,null,null,null,null,null,null,null,null,null,null,null,null,null,null,null,null,null,null,null,null,"Intervalo:",{"$f":"IF(B17=\"Mensal\",30, IF(B17=\"10 dias\",10,IF(B17=\"5 dias\",5,IF(B17=\"3 dias\",3,1))))","v":1},null,null,null,null,null,null,null,null,null,null,null,null,null,null,null,null,null,null,null,null,null,null,null,null,null,null,null,"Crit. Rega:",{"$f":"IF(B15=\"Sem stress\",1,IF(B15=\"MAD/AFD fixa\",2,3))","v":1}]
["O 1º intervalo que entra na linha 21 tem de ser obrigatoriamente antecedido por um período húmido de molde a garantir que o armazenamento de água é máximo (A = U)."]
["Note que pode começar muito antes do intervalo que pretende analisar, para garantir que satisfaz a condição anterior."]
["Obrigatório preencher só as células a verde e as colunas encimadas com células de rótulo verde, até que tenha dados! É facultatico preencher as células a azul."]
["Este programa pode ser utilizado quando já temos dados de todos os dias do intervalo, ou sequencialmente, à medida que temos os dados. Neste caso para calendarização da rega."]
["Para calendarização da rega, note que caso haja previsão de precipitação, deve colocá-la no intervalo seguinte, junto com uma estimativa da ETc. Assim, pode prever se tem de iniciar a rega no início do intervalo seguinte ou não."]
["Não se esqueça de selecionar o intervalo entre medições consecutivas (10 dias, 5 dias, 3 dias ou 1 dia)"]
[]
["Cultura:","Milho",null,null,"Estação: ","Évora"]
[null,null,"Graus","Minutos","Segundos",null,null,null,"Graus","Minutos","Segundos",null,null,null,null,null,null,"Balanço Hídrico (mm)"]
[null,"Latitude:",38,30,0,"Norte",null,"Long.:",7,50,0,"Oeste",null,"Alt.:",50,"m",null,"DeltArm",{"$f":"H21-LOOKUP(2,1/(I:I<>\"\"),I:I)","v":0}]
[null,null,null,"Período dos dados:",null,null,null,null,null,null,null,null,null,null,null,null,null,"ET",{"$f":"SUM(E21:E4002)","v":731.82743364688565}]
["U",110,"mm",null,"Parâmetro p (tabelado):",null,0.55000000000000004,null,"Valor de p utilizado:",null,{"$f":"IF(COUNTIF($D$21:$D$4002,\">0.8\")<5,G13,MIN(MAX(0.1,G13+0.04*(5-AVERAGEIF($D$21:$D$4002,\">0.8\",$E$21:$E$4002)/$X$1)),0.8))","v":0.50568867913419646},null,"AFD:",{"$f":"K13*B13","v":55.625754704761611},"mm",null,null,"Prec",{"$f":"SUM(F21:F4002)","v":517.65200000000038}]
[null,null,null,null,null,null,null,null,null,null,null,null,null,null,null,null,null,"Rega",{"$f":"SUM(J21:J4002)","v":572.83214233843228}]
["Critério como Regar: ","Sem stress",null,null,null,null,"Eficiência da rega:",0.85,null,null,null,null,null,null,null,null,null,"Drenagem",{"$f":"SUM(V21:V4002)","v":358.65670869154638}]
[null,null,null,null,null,null,null,null,null,null,null,null,null,null,null,null,null,"Balanço",{"$f":"S11+S13+S14-S15-S12","v":0}]
["Intervalo:","1 dia",null,"Data inicial:","2018-01-01",null,"Data final:","2018-12-31"]
[]
["Ano","Intervalo","ETo","Kc","ETc","P","I+P-ETc","AFDi","AFDf","Rega líquida (I)","Rega bruta (I)",null,null,null,null,null,null,null,null,null,null,"Drenagem profunda"]
[null,null,"[mm]",null,null,"[mm]","[mm]","[mm]","[mm]","[mm]","[mm]",null,null,null,null,null,null,null,null,null,null,"[mm]",null,null,null,null,null,null,null,null,null,null,null,null,null,null,null,null,null,null,null,null,null,null,null,null,null,null,null,null,null,null,"DiaInicioIntervalo","DiaFimIntervalo"]
[{"$f":"YEAR(E17)","v":2018},{"$f":"IF(A21=\"\",\"\",TEXT(BA21,\"d/mm\")&\"-\"&TEXT(BB21,\"d/mm\"))","v":"1/01-1/01"},0.72562276237774248,0,{"$f":"IF(OR(A21=\"\", C21=\"\",D21=\"\"),\"\",C21*D21)","v":0},0.254,{"$f":"IF(OR(A21=\"\", C21=\"\",D21=\"\",F21=\"\"),\"\",F21-E21)","v":0.254},{"$f":"IF(G21=\"\",\"\",$B$13*$K$13)","v":55.625754704761611},{"$f":"IF(G21=\"\",\"\",MAX(0,MIN($K$13*$B$13,H21+G21)))","v":55.625754704761611},0,{"$f":"IF(OR(A21=\"\",G21=\"\"),\"\",J21/$H$15)","v":0},null,null,null,null,null,null,null,null,null,null,{"$f":"IF(OR(A21=\"\",J21=\"\"),\"\",IF(AND(F21=0,J21=0),0,MAX(I21+G21-$N$13,0)))","v":0.25399999999999778},null,null,null,null,null,null,null,null,null,null,null,null,null,null,null,null,null,null,null,null,null,null,null,null,null,null,null,null,null,null,{"$f":"E17","v":"2018-01-01"},{"$f":"IF(BA21=\"\",\"\",BA21+$X$1-1)","v":"2018-01-01"}]
[{"$f":"IF(BA22=\"\",\"\",YEAR(BB22))","v":2018},{"$f":"IF(A22=\"\",\"\",TEXT(BA22,\"d/mm\")&\"-\"&TEXT(BB22,\"d/mm\"))","v":"2/01-2/01"},0.73976947858221764,0,{"$f":"IF(OR(A22=\"\", C22=\"\",D22=\"\",E21=\"\"),\"\",C22*D22)","v":0},0,{"$f":"IF(OR(A22=\"\", C22=\"\",D22=\"\",F22=\"\",G21=\"\"),\"\",J22+F22-E22)","v":0},{"$f":"IF(G22=\"\",\"\",MAX(I21,0))","v":55.625754704761611},{"$f":"IF(G22=\"\",\"\",MAX(MIN($K$13*$B$13,H22+G22),0))","v":55.625754704761611},{"$f":"IF(OR($A22=\"\",$C22=\"\",$D22=\"\",$F22=\"\",$J21=\"\"),\"\",IF($I21+$F22-$E22<=0,$K$13*$B$13-$I21,0))","v":0},{"$f":"IF(OR(A22=\"\",G22=\"\"),\"\",J22/$H$15)","v":0},null,null,null,null,null,null,null,null,null,null,{"$f":"IF(OR(A22=\"\",J22=\"\"),\"\",IF(AND(F22=0,J22=0),0,MAX(I21+G22-$N$13,0)))","v":0},null,null,null,null,null,null,null,null,null,null,null,null,null,null,null,null,null,null,null,null,null,null,null,null,null,null,null,null,null,null,{"$f":"IF(BB21<$H$17,BB21+1,\"\")","v":"2018-01-02"},{"$f":"IF(BA22=\"\",\"\",BA22+$X$1-1)","v":"2018-01-02"}]
[{"$f":"IF(BA23=\"\",\"\",YEAR(BB23))","v":2018},"3/01-3/01",0.83811393368563647,0,{"$f":"IF(OR(A23=\"\", C23=\"\",D23=\"\",E22=\"\"),\"\",C23*D23)","v":0},0,{"$f":"IF(OR(A23=\"\", C23=\"\",D23=\"\",F23=\"\",G22=\"\"),\"\",J23+F23-E23)","v":0},{"$f":"IF(G23=\"\",\"\",MAX(I22,0))","v":55.625754704761611},55.625754704761611,0,0,null,null,null,null,null,null,null,null,null,null,{"$f":"IF(OR(A23=\"\",J23=\"\"),\"\",IF(AND(F23=0,J23=0),0,MAX(I22+G23-$N$13,0)))","v":0},null,null,null,null,null,null,null,null,null,null,null,null,null,null,null,null,null,null,null,null,null,null,null,null,null,null,null,null,null,null,{"$f":"IF(BB22<$H$17,BB22+1,\"\")","v":"2018-01-03"},"2018-01-03"]
[2018,"4/01-4/01",0.89099170148813944,0,0,0.50800000000000001,0.50800000000000001,55.625754704761611,55.625754704761611,0,0,null,null,null,null,null,null,null,null,null,null,0.50800000000000267,null,null,null,null,null,null,null,null,null,null,null,null,null,null,null,null,null,null,null,null,null,null,null,null,null,null,null,null,null,null,"2018-01-04","2018-01-04"]
[2018,"5/01-5/01",0.81461393648297853,0,0,1.016,1.016,55.625754704761611,55.625754704761611,0,0,null,null,null,null,null,null,null,null,null,null,1.0159999999999982,null,null,null,null,null,null,null,null,null,null,null,null,null,null,null,null,null,null,null,null,null,null,null,null,null,null,null,null,null,null,"2018-01-05","2018-01-05"]
[2018,"6/01-6/01",0.7303742754283189,0,0,25.907999999999998,25.907999999999998,55.625754704761611,55.625754704761611,0,0,null,null,null,null,null,null,null,null,null,null,25.907999999999994,null,null,null,null,null,null,null,null,null,null,null,null,null,null,null,null,null,null,null,null,null,null,null,null,null,null,null,null,null,null,"2018-01-06","2018-01-06"]
[2018,"7/01-7/01",0.69495270854345115,0,0,0,0,55.625754704761611,55.625754704761611,0,0,null,null,null,null,null,null,null,null,null,null,0,null,null,null,null,null,null,null,null,null,null,null,null,null,null,null,null,null,null,null,null,null,null,null,null,null,null,null,null,null,null,"2018-01-07","2018-01-07"]
[2018,"8/01-8/01",0.66892935227366634,0,0,0.50800000000000001,0.50800000000000001,55.625754704761611,55.625754704761611,0,0,null,null,null,null,null,null,null,null,null,null,0.50800000000000267,null,null,null,null,null,null,null,null,null,null,null,null,null,null,null,null,null,null,null,null,null,null,null,null,null,null,null,null,null,null,"2018-01-08","2018-01-08"]
[2018,"9/01-9/01",0.7532640870426941,0,0,0.7619999999999999,0.7619999999999999,55.625754704761611,55.625754704761611,0,0,null,null,null,null,null,null,null,null,null,null,0.76200000000000045,null,null,null,null,null,null,null,null,null,null,null,null,null,null,null,null,null,null,null,null,null,null,null,null,null,null,null,null,null,null,"2018-01-09","2018-01-09"]
[2018,"10/01-10/01",0.94258120785632216,0,0,9.9060000000000006,9.9060000000000006,55.625754704761611,55.625754704761611,0,0,null,null,null,null,null,null,null,null,null,null,9.9059999999999988,null,null,null,null,null,null,null,null,null,null,null,null,null,null,null,null,null,null,null,null,null,null,null,null,null,null,null,null,null,null,"2018-01-10","2018-01-10"]
[2018,"11/01-11/01",0.79978773708176143,0,0,1.016,1.016,55.625754704761611,55.625754704761611,0,0,null,null,null,null,null,null,null,null,null,null,1.0159999999999982,null,null,null,null,null,null,null,null,null,null,null,null,null,null,null,null,null,null,null,null,null,null,null,null,null,null,null,null,null,null,"2018-01-11","2018-01-11"]
[2018,"12/01-12/01",0.69457891733347044,0,0,0,0,55.625754704761611,55.625754704761611,0,0,null,null,null,null,null,null,null,null,null,null,0,null,null,null,null,null,null,null,null,null,null,null,null,null,null,null,null,null,null,null,null,null,null,null,null,null,null,null,null,null,null,"2018-01-12","2018-01-12"]
[2018,"13/01-13/01",0.89110204432872009,0,0,7.1120000000000001,7.1120000000000001,55.625754704761611,55.625754704761611,0,0,null,null,null,null,null,null,null,null,null,null,7.1120000000000019,null,null,null,null,null,null,null,null,null,null,null,null,null,null,null,null,null,null,null,null,null,null,null,null,null,null,null,null,null,null,"2018-01-13","2018-01-13"]
[2018,"14/01-14/01",0.7873114283547562,0,0,4.0640000000000001,4.0640000000000001,55.625754704761611,55.625754704761611,0,0,null,null,null,null,null,null,null,null,null,null,4.0640000000000001,null,null,null,null,null,null,null,null,null,null,null,null,null,null,null,null,null,null,null,null,null,null,null,null,null,null,null,null,null,null,"2018-01-14","2018-01-14"]
[2018,"15/01-15/01",0.74442566173996771,0,0,0.254,0.254,55.625754704761611,55.625754704761611,0,0,null,null,null,null,null,null,null,null,null,null,0.25399999999999778,null,null,null,null,null,null,null,null,null,null,null,null,null,null,null,null,null,null,null,null,null,null,null,null,null,null,null,null,null,null,"2018-01-15","2018-01-15"]
[2018,"16/01-16/01",0.8442927412788398,0,0,0,0,55.625754704761611,55.625754704761611,0,0,null,null,null,null,null,null,null,null,null,null,0,null,null,null,null,null,null,null,null,null,null,null,null,null,null,null,null,null,null,null,null,null,null,null,null,null,null,null,null,null,null,"2018-01-16","2018-01-16"]
[2018,"17/01-17/01",1.0747357090013789,0,0,0,0,55.625754704761611,55.625754704761611,0,0,null,null,null,null,null,null,null,null,null,null,0,null,null,null,null,null,null,null,null,null,null,null,null,null,null,null,null,null,null,null,null,null,null,null,null,null,null,null,null,null,null,"2018-01-17","2018-01-17"]
[2018,"18/01-18/01",1.0474478153802544,0,0,0,0,55.625754704761611,55.625754704761611,0,0,null,null,null,null,null,null,null,null,null,null,0,null,null,null,null,null,null,null,null,null,null,null,null,null,null,null,null,null,null,null,null,null,null,null,null,null,null,null,null,null,null,"2018-01-18","2018-01-18"]
[{"$f":"IF(BA39=\"\",\"\",YEAR(BB39))","v":2018},{"$f":"IF(A39=\"\",\"\",TEXT(BA39,\"d/mm\")&\"-\"&TEXT(BB39,\"d/mm\"))","v":"19/01-19/01"},1.0327820161105703,0,0,0,0,55.625754704761611,55.625754704761611,0,0,null,null,null,null,null,null,null,null,null,null,0,null,null,null,null,null,null,null,null,null,null,null,null,null,null,null,null,null,null,null,null,null,null,null,null,null,null,null,null,null,null,"2018-01-19","2018-01-19"]
[2018,"20/01-20/01",0.94501185766307461,0,0,0,0,55.625754704761611,55.625754704761611,0,0,null,null,null,null,null,null,null,null,null,null,0,null,null,null,null,null,null,null,null,null,null,null,null,null,null,null,null,null,null,null,null,null,null,null,null,null,null,null,null,null,null,"2018-01-20","2018-01-20"]
[2018,"21/01-21/01",0.95148820714815208,0,0,0,0,55.625754704761611,55.625754704761611,0,0,null,null,null,null,null,null,null,null,null,null,0,null,null,null,null,null,null,null,null,null,null,null,null,null,null,null,null,null,null,null,null,null,null,null,null,null,null,null,null,null,null,"2018-01-21","2018-01-21"]
[2018,"22/01-22/01",1.0021649791502543,0,0,0.254,0.254,55.625754704761611,55.625754704761611,0,0,null,null,null,null,null,null,null,null,null,null,0.25399999999999778,null,null,null,null,null,null,null,null,null,null,null,null,null,null,null,null,null,null,null,null,null,null,null,null,null,null,null,null,null,null,"2018-01-22","2018-01-22"]
[2018,"23/01-23/01",0.84617131059186301,0,0,0.254,0.254,55.625754704761611,55.625754704761611,0,0,null,null,null,null,null,null,null,null,null,null,0.25399999999999778,null,null,null,null,null,null,null,null,null,null,null,null,null,null,null,null,null,null,null,null,null,null,null,null,null,null,null,null,null,null,"2018-01-23","2018-01-23"]
[2018,"24/01-24/01",0.81141106799006302,0,0,0.254,0.254,55.625754704761611,55.625754704761611,0,0,null,null,null,null,null,null,null,null,null,null,0.25399999999999778,null,null,null,null,null,null,null,null,null,null,null,null,null,null,null,null,null,null,null,null,null,null,null,null,null,null,null,null,null,null,"2018-01-24","2018-01-24"]
[2018,"25/01-25/01",0.95588844695212027,0,0,0,0,55.625754704761611,55.625754704761611,0,0,null,null,null,null,null,null,null,null,null,null,0,null,null,null,null,null,null,null,null,null,null,null,null,null,null,null,null,null,null,null,null,null,null,null,null,null,null,null,null,null,null,"2018-01-25","2018-01-25"]
[2018,"26/01-26/01",0.95508742947894376,0,0,3.0479999999999996,3.0479999999999996,55.625754704761611,55.625754704761611,0,0,null,null,null,null,null,null,null,null,null,null,3.0480000000000018,null,null,null,null,null,null,null,null,null,null,null,null,null,null,null,null,null,null,null,null,null,null,null,null,null,null,null,null,null,null,"2018-01-26","2018-01-26"]
[2018,"27/01-27/01",0.97054442242239858,0,0,0,0,55.625754704761611,55.625754704761611,0,0,null,null,null,null,null,null,null,null,null,null,0,null,null,null,null,null,null,null,null,null,null,null,null,null,null,null,null,null,null,null,null,null,null,null,null,null,null,null,null,null,null,"2018-01-27","2018-01-27"]
[2018,"28/01-28/01",1.0667125947685148,0,0,0,0,55.625754704761611,55.625754704761611,0,0,null,null,null,null,null,null,null,null,null,null,0,null,null,null,null,null,null,null,null,null,null,null,null,null,null,null,null,null,null,null,null,null,null,null,null,null,null,null,null,null,null,"2018-01-28","2018-01-28"]
[2018,"29/01-29/01",1.2406972690753313,0,0,0,0,55.625754704761611,55.625754704761611,0,0,null,null,null,null,null,null,null,null,null,null,0,null,null,null,null,null,null,null,null,null,null,null,null,null,null,null,null,null,null,null,null,null,null,null,null,null,null,null,null,null,null,"2018-01-29","2018-01-29"]
[2018,"30/01-30/01",1.2126134924030256,0,0,0,0,55.625754704761611,55.625754704761611,0,0,null,null,null,null,null,null,null,null,null,null,0,null,null,null,null,null,null,null,null,null,null,null,null,null,null,null,null,null,null,null,null,null,null,null,null,null,null,null,null,null,null,"2018-01-30","2018-01-30"]
[2018,"31/01-31/01",1.2634647544722497,0,0,0,0,55.625754704761611,55.625754704761611,0,0,null,null,null,null,null,null,null,null,null,null,0,null,null,null,null,null,null,null,null,null,null,null,null,null,null,null,null,null,null,null,null,null,null,null,null,null,null,null,null,null,null,"2018-01-31","2018-01-31"]
[2018,"1/02-1/02",1.2560115435387034,0,0,0,0,55.625754704761611,55.625754704761611,0,0,null,null,null,null,null,null,null,null,null,null,0,null,null,null,null,null,null,null,null,null,null,null,null,null,null,null,null,null,null,null,null,null,null,null,null,null,null,null,null,null,null,"2018-02-01","2018-02-01"]
[2018,"2/02-2/02",1.1039138914707411,0,0,0,0,55.625754704761611,55.625754704761611,0,0,null,null,null,null,null,null,null,null,null,null,0,null,null,null,null,null,null,null,null,null,null,null,null,null,null,null,null,null,null,null,null,null,null,null,null,null,null,null,null,null,null,"2018-02-02","2018-02-02"]
[2018,"3/02-3/02",1.1120438943516366,0,0,0,0,55.625754704761611,55.625754704761611,0,0,null,null,null,null,null,null,null,null,null,null,0,null,null,null,null,null,null,null,null,null,null,null,null,null,null,null,null,null,null,null,null,null,null,null,null,null,null,null,null,null,null,"2018-02-03","2018-02-03"]
[2018,"4/02-4/02",1.0381225016013982,0,0,0.7619999999999999,0.7619999999999999,55.625754704761611,55.625754704761611,0,0,null,null,null,null,null,null,null,null,null,null,0.76200000000000045,null,null,null,null,null,null,null,null,null,null,null,null,null,null,null,null,null,null,null,null,null,null,null,null,null,null,null,null,null,null,"2018-02-04","2018-02-04"]
[2018,"5/02-5/02",1.1373714408880866,0,0,0,0,55.625754704761611,55.625754704761611,0,0,null,null,null,null,null,null,null,null,null,null,0,null,null,null,null,null,null,null,null,null,null,null,null,null,null,null,null,null,null,null,null,null,null,null,null,null,null,null,null,null,null,"2018-02-05","2018-02-05"]
[2018,"6/02-6/02",1.0656417705177921,0,0,0,0,55.625754704761611,55.625754704761611,0,0,null,null,null,null,null,null,null,null,null,null,0,null,null,null,null,null,null,null,null,null,null,null,null,null,null,null,null,null,null,null,null,null,null,null,null,null,null,null,null,null,null,"2018-02-06","2018-02-06"]
[2018,"7/02-7/02",1.0716930242702998,0,0,0,0,55.625754704761611,55.625754704761611,0,0,null,null,null,null,null,null,null,null,null,null,0,null,null,null,null,null,null,null,null,null,null,null,null,null,null,null,null,null,null,null,null,null,null,null,null,null,null,null,null,null,null,"2018-02-07","2018-02-07"]
[2018,"8/02-8/02",1.0903236455646668,0,0,0,0,55.625754704761611,55.625754704761611,0,0,null,null,null,null,null,null,null,null,null,null,0,null,null,null,null,null,null,null,null,null,null,null,null,null,null,null,null,null,null,null,null,null,null,null,null,null,null,null,null,null,null,"2018-02-08","2018-02-08"]
[2018,"9/02-9/02",1.0414966433195703,0,0,2.032,2.032,55.625754704761611,55.625754704761611,0,0,null,null,null,null,null,null,null,null,null,null,2.0320000000000036,null,null,null,null,null,null,null,null,null,null,null,null,null,null,null,null,null,null,null,null,null,null,null,null,null,null,null,null,null,null,"2018-02-09","2018-02-09"]
[2018,"10/02-10/02",1.2147282985851069,0,0,0.50800000000000001,0.50800000000000001,55.625754704761611,55.625754704761611,0,0,null,null,null,null,null,null,null,null,null,null,0.50800000000000267,null,null,null,null,null,null,null,null,null,null,null,null,null,null,null,null,null,null,null,null,null,null,null,null,null,null,null,null,null,null,"2018-02-10","2018-02-10"]
[2018,"11/02-11/02",1.3201446729192705,0,0,0,0,55.625754704761611,55.625754704761611,0,0,null,null,null,null,null,null,null,null,null,null,0,null,null,null,null,null,null,null,null,null,null,null,null,null,null,null,null,null,null,null,null,null,null,null,null,null,null,null,null,null,null,"2018-02-11","2018-02-11"]
[2018,"12/02-12/02",1.3580752663471907,0,0,2.032,2.032,55.625754704761611,55.625754704761611,0,0,null,null,null,null,null,null,null,null,null,null,2.0320000000000036,null,null,null,null,null,null,null,null,null,null,null,null,null,null,null,null,null,null,null,null,null,null,null,null,null,null,null,null,null,null,"2018-02-12","2018-02-12"]
[2018,"13/02-13/02",1.3321077127239349,0,0,0,0,55.625754704761611,55.625754704761611,0,0,null,null,null,null,null,null,null,null,null,null,0,null,null,null,null,null,null,null,null,null,null,null,null,null,null,null,null,null,null,null,null,null,null,null,null,null,null,null,null,null,null,"2018-02-13","2018-02-13"]
[2018,"14/02-14/02",1.3532465590976988,0,0,0,0,55.625754704761611,55.625754704761611,0,0,null,null,null,null,null,null,null,null,null,null,0,null,null,null,null,null,null,null,null,null,null,null,null,null,null,null,null,null,null,null,null,null,null,null,null,null,null,null,null,null,null,"2018-02-14","2018-02-14"]
[2018,"15/02-15/02",1.520528184570765,0,0,0,0,55.625754704761611,55.625754704761611,0,0,null,null,null,null,null,null,null,null,null,null,0,null,null,null,null,null,null,null,null,null,null,null,null,null,null,null,null,null,null,null,null,null,null,null,null,null,null,null,null,null,null,"2018-02-15","2018-02-15"]
[2018,"16/02-16/02",1.677458822982957,0,0,0,0,55.625754704761611,55.625754704761611,0,0,null,null,null,null,null,null,null,null,null,null,0,null,null,null,null,null,null,null,null,null,null,null,null,null,null,null,null,null,null,null,null,null,null,null,null,null,null,null,null,null,null,"2018-02-16","2018-02-16"]
[2018,"17/02-17/02",1.5653827236907252,0,0,0,0,55.625754704761611,55.625754704761611,0,0,null,null,null,null,null,null,null,null,null,null,0,null,null,null,null,null,null,null,null,null,null,null,null,null,null,null,null,null,null,null,null,null,null,null,null,null,null,null,null,null,null,"2018-02-17","2018-02-17"]
[2018,"18/02-18/02",1.6508496422673931,0,0,0,0,55.625754704761611,55.625754704761611,0,0,null,null,null,null,null,null,null,null,null,null,0,null,null,null,null,null,null,null,null,null,null,null,null,null,null,null,null,null,null,null,null,null,null,null,null,null,null,null,null,null,null,"2018-02-18","2018-02-18"]
[2018,"19/02-19/02",1.6842301768978964,0,0,0,0,55.625754704761611,55.625754704761611,0,0,null,null,null,null,null,null,null,null,null,null,0,null,null,null,null,null,null,null,null,null,null,null,null,null,null,null,null,null,null,null,null,null,null,null,null,null,null,null,null,null,null,"2018-02-19","2018-02-19"]
[2018,"20/02-20/02",1.8360923479529683,0,0,0,0,55.625754704761611,55.625754704761611,0,0,null,null,null,null,null,null,null,null,null,null,0,null,null,null,null,null,null,null,null,null,null,null,null,null,null,null,null,null,null,null,null,null,null,null,null,null,null,null,null,null,null,"2018-02-20","2018-02-20"]
[2018,"21/02-21/02",1.7273394813659944,0,0,0,0,55.625754704761611,55.625754704761611,0,0,null,null,null,null,null,null,null,null,null,null,0,null,null,null,null,null,null,null,null,null,null,null,null,null,null,null,null,null,null,null,null,null,null,null,null,null,null,null,null,null,null,"2018-02-21","2018-02-21"]
[2018,"22/02-22/02",1.6556861503797216,0,0,0,0,55.625754704761611,55.625754704761611,0,0,null,null,null,null,null,null,null,null,null,null,0,null,null,null,null,null,null,null,null,null,null,null,null,null,null,null,null,null,null,null,null,null,null,null,null,null,null,null,null,null,null,"2018-02-22","2018-02-22"]
[2018,"23/02-23/02",1.6659186744513539,0,0,0,0,55.625754704761611,55.625754704761611,0,0,null,null,null,null,null,null,null,null,null,null,0,null,null,null,null,null,null,null,null,null,null,null,null,null,null,null,null,null,null,null,null,null,null,null,null,null,null,null,null,null,null,"2018-02-23","2018-02-23"]
[2018,"24/02-24/02",1.6645267560673944,0,0,0,0,55.625754704761611,55.625754704761611,0,0,null,null,null,null,null,null,null,null,null,null,0,null,null,null,null,null,null,null,null,null,null,null,null,null,null,null,null,null,null,null,null,null,null,null,null,null,null,null,null,null,null,"2018-02-24","2018-02-24"]
[2018,"25/02-25/02",1.7819332722406225,0,0,0,0,55.625754704761611,55.625754704761611,0,0,null,null,null,null,null,null,null,null,null,null,0,null,null,null,null,null,null,null,null,null,null,null,null,null,null,null,null,null,null,null,null,null,null,null,null,null,null,null,null,null,null,"2018-02-25","2018-02-25"]
[2018,"26/02-26/02",1.7175136620055687,0,0,4.0640000000000001,4.0640000000000001,55.625754704761611,55.625754704761611,0,0,null,null,null,null,null,null,null,null,null,null,4.0640000000000001,null,null,null,null,null,null,null,null,null,null,null,null,null,null,null,null,null,null,null,null,null,null,null,null,null,null,null,null,null,null,"2018-02-26","2018-02-26"]
[2018,"27/02-27/02",1.8735245826033813,0,0,0,0,55.625754704761611,55.625754704761611,0,0,null,null,null,null,null,null,null,null,null,null,0,null,null,null,null,null,null,null,null,null,null,null,null,null,null,null,null,null,null,null,null,null,null,null,null,null,null,null,null,null,null,"2018-02-27","2018-02-27"]
[2018,"28/02-28/02",1.8921927967360226,0,0,5.08,5.08,55.625754704761611,55.625754704761611,0,0,null,null,null,null,null,null,null,null,null,null,5.0799999999999983,null,null,null,null,null,null,null,null,null,null,null,null,null,null,null,null,null,null,null,null,null,null,null,null,null,null,null,null,null,null,"2018-02-28","2018-02-28"]
[2018,"1/03-1/03",1.9518734402032911,0,0,0,0,55.625754704761611,55.625754704761611,0,0,null,null,null,null,null,null,null,null,null,null,0,null,null,null,null,null,null,null,null,null,null,null,null,null,null,null,null,null,null,null,null,null,null,null,null,null,null,null,null,null,null,"2018-03-01","2018-03-01"]
[2018,"2/03-2/03",1.8010765794877575,0,0,12.953999999999999,12.953999999999999,55.625754704761611,55.625754704761611,0,0,null,null,null,null,null,null,null,null,null,null,12.954000000000001,null,null,null,null,null,null,null,null,null,null,null,null,null,null,null,null,null,null,null,null,null,null,null,null,null,null,null,null,null,null,"2018-03-02","2018-03-02"]
[2018,"3/03-3/03",1.9895717733218909,0,0,8.8899999999999988,8.8899999999999988,55.625754704761611,55.625754704761611,0,0,null,null,null,null,null,null,null,null,null,null,8.8899999999999935,null,null,null,null,null,null,null,null,null,null,null,null,null,null,null,null,null,null,null,null,null,null,null,null,null,null,null,null,null,null,"2018-03-03","2018-03-03"]
[2018,"4/03-4/03",1.9575032567861395,0,0,3.0479999999999996,3.0479999999999996,55.625754704761611,55.625754704761611,0,0,null,null,null,null,null,null,null,null,null,null,3.0480000000000018,null,null,null,null,null,null,null,null,null,null,null,null,null,null,null,null,null,null,null,null,null,null,null,null,null,null,null,null,null,null,"2018-03-04","2018-03-04"]
[2018,"5/03-5/03",1.9598873419620242,0,0,9.9060000000000006,9.9060000000000006,55.625754704761611,55.625754704761611,0,0,null,null,null,null,null,null,null,null,null,null,9.9059999999999988,null,null,null,null,null,null,null,null,null,null,null,null,null,null,null,null,null,null,null,null,null,null,null,null,null,null,null,null,null,null,"2018-03-05","2018-03-05"]
[2018,"6/03-6/03",1.7900336378992787,0,0,0,0,55.625754704761611,55.625754704761611,{"$f":"IF(OR($A85=\"\",$C85=\"\",$D85=\"\",$F85=\"\",$J84=\"\"),\"\",IF($I84+$F85-$E85<=0,$K$13*$B$13-$I84,0))","v":0},0,null,null,null,null,null,null,null,null,null,null,0,null,null,null,null,null,null,null,null,null,null,null,null,null,null,null,null,null,null,null,null,null,null,null,null,null,null,null,null,null,null,"2018-03-06","2018-03-06"]
[2018,"7/03-7/03",1.7772990060606018,0,0,3.0479999999999996,3.0479999999999996,55.625754704761611,{"$f":"IF(G86=\"\",\"\",MAX(MIN($K$13*$B$13,H86+G86),0))","v":55.625754704761611},0,{"$f":"IF(OR(A86=\"\",G86=\"\"),\"\",J86/$H$15)","v":0},null,null,null,null,null,null,null,null,null,null,3.0480000000000018,null,null,null,null,null,null,null,null,null,null,null,null,null,null,null,null,null,null,null,null,null,null,null,null,null,null,null,null,null,null,"2018-03-07",{"$f":"IF(BA86=\"\",\"\",BA86+$X$1-1)","v":"2018-03-07"}]
[2018,"8/03-8/03",1.7628332626681402,0,{"$f":"IF(OR(A87=\"\", C87=\"\",D87=\"\",E86=\"\"),\"\",C87*D87)","v":0},2.032,{"$f":"IF(OR(A87=\"\", C87=\"\",D87=\"\",F87=\"\",G86=\"\"),\"\",J87+F87-E87)","v":2.032},{"$f":"IF(G87=\"\",\"\",MAX(I86,0))","v":55.625754704761611},55.625754704761611,0,0,null,null,null,null,null,null,null,null,null,null,{"$f":"IF(OR(A87=\"\",J87=\"\"),\"\",IF(AND(F87=0,J87=0),0,MAX(I86+G87-$N$13,0)))","v":2.0320000000000036},null,null,null,null,null,null,null,null,null,null,null,null,null,null,null,null,null,null,null,null,null,null,null,null,null,null,null,null,null,null,{"$f":"IF(BB86<$H$17,BB86+1,\"\")","v":"2018-03-08"},"2018-03-08"]
[2018,"9/03-9/03",2.0194671797520161,0,0,14.985999999999999,14.985999999999999,55.625754704761611,55.625754704761611,0,0,null,null,null,null,null,null,null,null,null,null,14.985999999999997,null,null,null,null,null,null,null,null,null,null,null,null,null,null,null,null,null,null,null,null,null,null,null,null,null,null,null,null,null,null,"2018-03-09","2018-03-09"]
[2018,"10/03-10/03",2.1726166092604871,0,0,7.1120000000000001,7.1120000000000001,55.625754704761611,55.625754704761611,0,0,null,null,null,null,null,null,null,null,null,null,7.1120000000000019,null,null,null,null,null,null,null,null,null,null,null,null,null,null,null,null,null,null,null,null,null,null,null,null,null,null,null,null,null,null,"2018-03-10","2018-03-10"]
[2018,"11/03-11/03",2.0900803500680487,0,0,22.097999999999999,22.097999999999999,55.625754704761611,55.625754704761611,0,0,null,null,null,null,null,null,null,null,null,null,22.097999999999992,null,null,null,null,null,null,null,null,null,null,null,null,null,null,null,null,null,null,null,null,null,null,null,null,null,null,null,null,null,null,"2018-03-11","2018-03-11"]
[2018,"12/03-12/03",1.8825984993025657,0,0,6.0959999999999992,6.0959999999999992,55.625754704761611,55.625754704761611,0,0,null,null,null,null,null,null,null,null,null,null,6.0959999999999965,null,null,null,null,null,null,null,null,null,null,null,null,null,null,null,null,null,null,null,null,null,null,null,null,null,null,null,null,null,null,"2018-03-12","2018-03-12"]
[2018,"13/03-13/03",2.1839304676958466,0,0,3.0479999999999996,3.0479999999999996,55.625754704761611,55.625754704761611,0,0,null,null,null,null,null,null,null,null,null,null,3.0480000000000018,null,null,null,null,null,null,null,null,null,null,null,null,null,null,null,null,null,null,null,null,null,null,null,null,null,null,null,null,null,null,"2018-03-13","2018-03-13"]
[2018,"14/03-14/03",2.4276916478158057,0,0,0.254,0.254,55.625754704761611,55.625754704761611,0,0,null,null,null,null,null,null,null,null,null,null,0.25399999999999778,null,null,null,null,null,null,null,null,null,null,null,null,null,null,null,null,null,null,null,null,null,null,null,null,null,null,null,null,null,null,"2018-03-14","2018-03-14"]
[2018,"15/03-15/03",2.1784468973566353,0,0,0.7619999999999999,0.7619999999999999,55.625754704761611,55.625754704761611,0,0,null,null,null,null,null,null,null,null,null,null,0.76200000000000045,null,null,null,null,null,null,null,null,null,null,null,null,null,null,null,null,null,null,null,null,null,null,null,null,null,null,null,null,null,null,"2018-03-15","2018-03-15"]
[2018,"16/03-16/03",2.0934447028767251,0,0,16.001999999999999,16.001999999999999,55.625754704761611,55.625754704761611,0,0,null,null,null,null,null,null,null,null,null,null,16.002000000000002,null,null,null,null,null,null,null,null,null,null,null,null,null,null,null,null,null,null,null,null,null,null,null,null,null,null,null,null,null,null,"2018-03-16","2018-03-16"]
[2018,"17/03-17/03",2.023680853630121,0,0,4.0640000000000001,4.0640000000000001,55.625754704761611,55.625754704761611,0,0,null,null,null,null,null,null,null,null,null,null,4.0640000000000001,null,null,null,null,null,null,null,null,null,null,null,null,null,null,null,null,null,null,null,null,null,null,null,null,null,null,null,null,null,null,"2018-03-17","2018-03-17"]
[2018,"18/03-18/03",2.0140599123673262,0,0,3.0479999999999996,3.0479999999999996,55.625754704761611,55.625754704761611,0,0,null,null,null,null,null,null,null,null,null,null,3.0480000000000018,null,null,null,null,null,null,null,null,null,null,null,null,null,null,null,null,null,null,null,null,null,null,null,null,null,null,null,null,null,null,"2018-03-18","2018-03-18"]
[2018,"19/03-19/03",2.1068483522131061,0,0,21.081999999999997,21.081999999999997,55.625754704761611,55.625754704761611,0,0,null,null,null,null,null,null,null,null,null,null,21.082000000000001,null,null,null,null,null,null,null,null,null,null,null,null,null,null,null,null,null,null,null,null,null,null,null,null,null,null,null,null,null,null,"2018-03-19","2018-03-19"]
[2018,"20/03-20/03",2.0814502849185317,0,0,0,0,55.625754704761611,55.625754704761611,0,0,null,null,null,null,null,null,null,null,null,null,0,null,null,null,null,null,null,null,null,null,null,null,null,null,null,null,null,null,null,null,null,null,null,null,null,null,null,null,null,null,null,"2018-03-20","2018-03-20"]
[2018,"21/03-21/03",1.9473217600039743,0,0,9.9060000000000006,9.9060000000000006,55.625754704761611,55.625754704761611,0,0,null,null,null,null,null,null,null,null,null,null,9.9059999999999988,null,null,null,null,null,null,null,null,null,null,null,null,null,null,null,null,null,null,null,null,null,null,null,null,null,null,null,null,null,null,"2018-03-21","2018-03-21"]
[2018,"22/03-22/03",2.1070241325868757,0,0,0,0,55.625754704761611,55.625754704761611,0,0,null,null,null,null,null,null,null,null,null,null,0,null,null,null,null,null,null,null,null,null,null,null,null,null,null,null,null,null,null,null,null,null,null,null,null,null,null,null,null,null,null,"2018-03-22","2018-03-22"]
[2018,"23/03-23/03",2.217101201655383,0,0,0,0,55.625754704761611,55.625754704761611,0,0,null,null,null,null,null,null,null,null,null,null,0,null,null,null,null,null,null,null,null,null,null,null,null,null,null,null,null,null,null,null,null,null,null,null,null,null,null,null,null,null,null,"2018-03-23","2018-03-23"]
[{"$f":"IF(BA103=\"\",\"\",YEAR(BB103))","v":2018},{"$f":"IF(A103=\"\",\"\",TEXT(BA103,\"d/mm\")&\"-\"&TEXT(BB103,\"d/mm\"))","v":"24/03-24/03"},2.1109120319956847,0,0,0,0,55.625754704761611,55.625754704761611,0,0,null,null,null,null,null,null,null,null,null,null,0,null,null,null,null,null,null,null,null,null,null,null,null,null,null,null,null,null,null,null,null,null,null,null,null,null,null,null,null,null,null,"2018-03-24","2018-03-24"]
[2018,"25/03-25/03",2.0201081874743414,0,0,5.08,5.08,55.625754704761611,55.625754704761611,0,0,null,null,null,null,null,null,null,null,null,null,5.0799999999999983,null,null,null,null,null,null,null,null,null,null,null,null,null,null,null,null,null,null,null,null,null,null,null,null,null,null,null,null,null,null,"2018-03-25","2018-03-25"]
[2018,"26/03-26/03",2.1492530088459443,0,0,3.0479999999999996,3.0479999999999996,55.625754704761611,55.625754704761611,0,0,null,null,null,null,null,null,null,null,null,null,3.0480000000000018,null,null,null,null,null,null,null,null,null,null,null,null,null,null,null,null,null,null,null,null,null,null,null,null,null,null,null,null,null,null,"2018-03-26","2018-03-26"]
[2018,"27/03-27/03",2.4680093395535443,0,0,0,0,55.625754704761611,55.625754704761611,0,0,null,null,null,null,null,null,null,null,null,null,0,null,null,null,null,null,null,null,null,null,null,null,null,null,null,null,null,null,null,null,null,null,null,null,null,null,null,null,null,null,null,"2018-03-27","2018-03-27"]
[2018,"28/03-28/03",2.9021931601704951,0,0,0,0,55.625754704761611,55.625754704761611,0,0,null,null,null,null,null,null,null,null,null,null,0,null,null,null,null,null,null,null,null,null,null,null,null,null,null,null,null,null,null,null,null,null,null,null,null,null,null,null,null,null,null,"2018-03-28","2018-03-28"]
[2018,"29/03-29/03",2.721432678683712,0,0,0,0,55.625754704761611,55.625754704761611,0,0,null,null,null,null,null,null,null,null,null,null,0,null,null,null,null,null,null,null,null,null,null,null,null,null,null,null,null,null,null,null,null,null,null,null,null,null,null,null,null,null,null,"2018-03-29","2018-03-29"]
[2018,"30/03-30/03",2.304972760513269,0,0,0,0,55.625754704761611,55.625754704761611,0,0,null,null,null,null,null,null,null,null,null,null,0,null,null,null,null,null,null,null,null,null,null,null,null,null,null,null,null,null,null,null,null,null,null,null,null,null,null,null,null,null,null,"2018-03-30","2018-03-30"]
[2018,"31/03-31/03",2.2217871299092766,0,0,0.50800000000000001,0.50800000000000001,55.625754704761611,55.625754704761611,0,0,null,null,null,null,null,null,null,null,null,null,0.50800000000000267,null,null,null,null,null,null,null,null,null,null,null,null,null,null,null,null,null,null,null,null,null,null,null,null,null,null,null,null,null,null,"2018-03-31","2018-03-31"]
[2018,"1/04-1/04",2.5555177454152629,0.6,1.5333106472491578,0.254,-1.2793106472491578,55.625754704761611,54.346444057512457,0,0,null,null,null,null,null,null,null,null,null,null,0,null,null,null,null,null,null,null,null,null,null,null,null,null,null,null,null,null,null,null,null,null,null,null,null,null,null,null,null,null,null,"2018-04-01","2018-04-01"]
[2018,"2/04-2/04",3.1721663870810151,0.6,1.903299832248609,0,-1.903299832248609,54.346444057512457,52.44314422526385,0,0,null,null,null,null,null,null,null,null,null,null,0,null,null,null,null,null,null,null,null,null,null,null,null,null,null,null,null,null,null,null,null,null,null,null,null,null,null,null,null,null,null,"2018-04-02","2018-04-02"]
[2018,"3/04-3/04",3.1180125026987207,0.6,1.8708075016192323,3.0479999999999996,1.1771924983807673,52.44314422526385,53.62033672364462,0,0,null,null,null,null,null,null,null,null,null,null,0,null,null,null,null,null,null,null,null,null,null,null,null,null,null,null,null,null,null,null,null,null,null,null,null,null,null,null,null,null,null,"2018-04-03","2018-04-03"]
[2018,"4/04-4/04",3.094841514298138,0.6,1.8569049085788827,0,-1.8569049085788827,53.62033672364462,51.763431815065736,0,0,null,null,null,null,null,null,null,null,null,null,0,null,null,null,null,null,null,null,null,null,null,null,null,null,null,null,null,null,null,null,null,null,null,null,null,null,null,null,null,null,null,"2018-04-04","2018-04-04"]
[2018,"5/04-5/04",3.0929831882117416,0.6,1.8557899129270448,0,-1.8557899129270448,51.763431815065736,49.907641902138693,0,0,null,null,null,null,null,null,null,null,null,null,0,null,null,null,null,null,null,null,null,null,null,null,null,null,null,null,null,null,null,null,null,null,null,null,null,null,null,null,null,null,null,"2018-04-05","2018-04-05"]
[2018,"6/04-6/04",3.3616902582033896,0.6,2.0170141549220335,0,-2.0170141549220335,49.907641902138693,47.890627747216662,0,0,null,null,null,null,null,null,null,null,null,null,0,null,null,null,null,null,null,null,null,null,null,null,null,null,null,null,null,null,null,null,null,null,null,null,null,null,null,null,null,null,null,"2018-04-06","2018-04-06"]
[2018,"7/04-7/04",3.2456332028345809,0.6,1.9473799217007484,4.0640000000000001,2.1166200782992517,47.890627747216662,50.007247825515911,0,0,null,null,null,null,null,null,null,null,null,null,0,null,null,null,null,null,null,null,null,null,null,null,null,null,null,null,null,null,null,null,null,null,null,null,null,null,null,null,null,null,null,"2018-04-07","2018-04-07"]
[2018,"8/04-8/04",2.7871522678496605,0.6,1.6722913607097962,0.254,-1.4182913607097962,50.007247825515911,48.588956464806117,0,0,null,null,null,null,null,null,null,null,null,null,0,null,null,null,null,null,null,null,null,null,null,null,null,null,null,null,null,null,null,null,null,null,null,null,null,null,null,null,null,null,null,"2018-04-08","2018-04-08"]
[2018,"9/04-9/04",2.8628795815646901,0.6,1.7177277489388141,2.032,0.31427225106118595,48.588956464806117,48.9032287158673,0,0,null,null,null,null,null,null,null,null,null,null,0,null,null,null,null,null,null,null,null,null,null,null,null,null,null,null,null,null,null,null,null,null,null,null,null,null,null,null,null,null,null,"2018-04-09","2018-04-09"]
[2018,"10/04-10/04",2.7360368369580099,0.6,1.6416221021748059,2.032,0.39037789782519416,48.9032287158673,49.293606613692496,0,0,null,null,null,null,null,null,null,null,null,null,0,null,null,null,null,null,null,null,null,null,null,null,null,null,null,null,null,null,null,null,null,null,null,null,null,null,null,null,null,null,null,"2018-04-10","2018-04-10"]
[2018,"11/04-11/04",2.5079833568919581,0.6,1.5047900141351749,7.8739999999999997,6.369209985864825,49.293606613692496,55.625754704761611,0,0,null,null,null,null,null,null,null,null,null,null,3.7061894795712647E-2,null,null,null,null,null,null,null,null,null,null,null,null,null,null,null,null,null,null,null,null,null,null,null,null,null,null,null,null,null,null,"2018-04-11","2018-04-11"]
[2018,"12/04-12/04",2.7275098949221754,0.6,1.6365059369533053,10.921999999999999,9.2854940630466931,55.625754704761611,55.625754704761611,0,0,null,null,null,null,null,null,null,null,null,null,9.2854940630466913,null,null,null,null,null,null,null,null,null,null,null,null,null,null,null,null,null,null,null,null,null,null,null,null,null,null,null,null,null,null,"2018-04-12","2018-04-12"]
[2018,"13/04-13/04",2.7934193264844289,0.6,1.6760515958906572,3.0479999999999996,1.3719484041093424,55.625754704761611,55.625754704761611,0,0,null,null,null,null,null,null,null,null,null,null,1.3719484041093395,null,null,null,null,null,null,null,null,null,null,null,null,null,null,null,null,null,null,null,null,null,null,null,null,null,null,null,null,null,null,"2018-04-13","2018-04-13"]
[2018,"14/04-14/04",3.0426324526181379,0.6,1.8255794715708826,17.018000000000001,15.192420528429118,55.625754704761611,55.625754704761611,0,0,null,null,null,null,null,null,null,null,null,null,15.192420528429118,null,null,null,null,null,null,null,null,null,null,null,null,null,null,null,null,null,null,null,null,null,null,null,null,null,null,null,null,null,null,"2018-04-14","2018-04-14"]
[2018,"15/04-15/04",3.220764032970679,0.6,1.9324584197824073,0.254,-1.6784584197824073,55.625754704761611,53.947296284979203,0,0,null,null,null,null,null,null,null,null,null,null,0,null,null,null,null,null,null,null,null,null,null,null,null,null,null,null,null,null,null,null,null,null,null,null,null,null,null,null,null,null,null,"2018-04-15","2018-04-15"]
[2018,"16/04-16/04",3.2953094105645993,0.6,1.9771856463387594,0,-1.9771856463387594,53.947296284979203,51.970110638640442,0,0,null,null,null,null,null,null,null,null,null,null,0,null,null,null,null,null,null,null,null,null,null,null,null,null,null,null,null,null,null,null,null,null,null,null,null,null,null,null,null,null,null,"2018-04-16","2018-04-16"]
[2018,"17/04-17/04",3.3644802145846811,0.6,2.0186881287508087,4.0640000000000001,2.0453118712491913,51.970110638640442,54.015422509889632,0,0,null,null,null,null,null,null,null,null,null,null,0,null,null,null,null,null,null,null,null,null,null,null,null,null,null,null,null,null,null,null,null,null,null,null,null,null,null,null,null,null,null,"2018-04-17","2018-04-17"]
[2018,"18/04-18/04",3.7625094738767122,0.6,2.2575056843260271,0,-2.2575056843260271,54.015422509889632,51.757916825563605,0,0,null,null,null,null,null,null,null,null,null,null,0,null,null,null,null,null,null,null,null,null,null,null,null,null,null,null,null,null,null,null,null,null,null,null,null,null,null,null,null,null,null,"2018-04-18","2018-04-18"]
[2018,"19/04-19/04",4.1166499907714984,0.6,2.4699899944628991,0,-2.4699899944628991,51.757916825563605,49.287926831100705,0,0,null,null,null,null,null,null,null,null,null,null,0,null,null,null,null,null,null,null,null,null,null,null,null,null,null,null,null,null,null,null,null,null,null,null,null,null,null,null,null,null,null,"2018-04-19","2018-04-19"]
[2018,"20/04-20/04",4.1199856235885068,0.6,2.4719913741531041,0,-2.4719913741531041,49.287926831100705,46.815935456947599,0,0,null,null,null,null,null,null,null,null,null,null,0,null,null,null,null,null,null,null,null,null,null,null,null,null,null,null,null,null,null,null,null,null,null,null,null,null,null,null,null,null,null,"2018-04-20","2018-04-20"]
[2018,"21/04-21/04",3.8790385741914664,{"$f":"D130+0.6/45","v":0.61333333333333329},2.3791436588374326,0.50800000000000001,-1.8711436588374326,46.815935456947599,44.944791798110167,0,0,null,null,null,null,null,null,null,null,null,null,0,null,null,null,null,null,null,null,null,null,null,null,null,null,null,null,null,null,null,null,null,null,null,null,null,null,null,null,null,null,null,"2018-04-21","2018-04-21"]
[2018,"22/04-22/04",3.6303623450842402,{"$f":"D131+0.6/45","v":0.62666666666666659},2.2750270695861237,14.985999999999999,12.710972930413876,44.944791798110167,55.625754704761611,0,0,null,null,null,null,null,null,null,null,null,null,2.0300100237624292,null,null,null,null,null,null,null,null,null,null,null,null,null,null,null,null,null,null,null,null,null,null,null,null,null,null,null,null,null,null,"2018-04-22","2018-04-22"]
[2018,"23/04-23/04",3.8546155086126559,0.6399999999999999,2.4669539255120996,0.254,-2.2129539255120996,55.625754704761611,53.412800779249508,0,0,null,null,null,null,null,null,null,null,null,null,0,null,null,null,null,null,null,null,null,null,null,null,null,null,null,null,null,null,null,null,null,null,null,null,null,null,null,null,null,null,null,"2018-04-23","2018-04-23"]
[2018,"24/04-24/04",4.414562326312149,0.65333333333333321,2.88418071985727,0,-2.88418071985727,53.412800779249508,50.528620059392239,0,0,null,null,null,null,null,null,null,null,null,null,0,null,null,null,null,null,null,null,null,null,null,null,null,null,null,null,null,null,null,null,null,null,null,null,null,null,null,null,null,null,null,"2018-04-24","2018-04-24"]
[2018,"25/04-25/04",4.4409077344185448,0.66666666666666652,2.9606051562790294,0,-2.9606051562790294,50.528620059392239,47.568014903113209,0,0,null,null,null,null,null,null,null,null,null,null,0,null,null,null,null,null,null,null,null,null,null,null,null,null,null,null,null,null,null,null,null,null,null,null,null,null,null,null,null,null,null,"2018-04-25","2018-04-25"]
[2018,"26/04-26/04",4.4744141680607736,0.67999999999999983,3.0426016342813251,0,-3.0426016342813251,47.568014903113209,44.525413268831883,0,0,null,null,null,null,null,null,null,null,null,null,0,null,null,null,null,null,null,null,null,null,null,null,null,null,null,null,null,null,null,null,null,null,null,null,null,null,null,null,null,null,null,"2018-04-26","2018-04-26"]
[2018,"27/04-27/04",4.3137779521349078,0.69333333333333313,2.990886046813535,0,-2.990886046813535,44.525413268831883,41.534527222018347,0,0,null,null,null,null,null,null,null,null,null,null,0,null,null,null,null,null,null,null,null,null,null,null,null,null,null,null,null,null,null,null,null,null,null,null,null,null,null,null,null,null,null,"2018-04-27","2018-04-27"]
[2018,"28/04-28/04",3.6163947867171204,0.70666666666666644,2.5555856492800975,0,-2.5555856492800975,41.534527222018347,38.97894157273825,0,0,null,null,null,null,null,null,null,null,null,null,0,null,null,null,null,null,null,null,null,null,null,null,null,null,null,null,null,null,null,null,null,null,null,null,null,null,null,null,null,null,null,"2018-04-28","2018-04-28"]
[2018,"29/04-29/04",3.1345776898389976,0.71999999999999975,2.2568959366840775,1.016,-1.2408959366840775,38.97894157273825,37.738045636054174,0,0,null,null,null,null,null,null,null,null,null,null,0,null,null,null,null,null,null,null,null,null,null,null,null,null,null,null,null,null,null,null,null,null,null,null,null,null,null,null,null,null,null,"2018-04-29","2018-04-29"]
[2018,"30/04-30/04",3.0537891968137187,0.73333333333333306,2.2394454109967263,5.08,2.8405545890032737,37.738045636054174,40.57860022505745,0,0,null,null,null,null,null,null,null,null,null,null,0,null,null,null,null,null,null,null,null,null,null,null,null,null,null,null,null,null,null,null,null,null,null,null,null,null,null,null,null,null,null,"2018-04-30","2018-04-30"]
[2018,"1/05-1/05",3.3613188221118353,0.74666666666666637,2.5097847205101695,3.0479999999999996,0.53821527948983006,40.57860022505745,41.116815504547283,0,0,null,null,null,null,null,null,null,null,null,null,0,null,null,null,null,null,null,null,null,null,null,null,null,null,null,null,null,null,null,null,null,null,null,null,null,null,null,null,null,null,null,"2018-05-01","2018-05-01"]
[2018,"2/05-2/05",3.4830068840694062,0.75999999999999968,2.6470852318927474,0,-2.6470852318927474,41.116815504547283,38.469730272654537,0,0,null,null,null,null,null,null,null,null,null,null,0,null,null,null,null,null,null,null,null,null,null,null,null,null,null,null,null,null,null,null,null,null,null,null,null,null,null,null,null,null,null,"2018-05-02","2018-05-02"]
[2018,"3/05-3/05",3.4091387808138824,0.77333333333333298,2.6364006571627345,0,-2.6364006571627345,38.469730272654537,35.833329615491806,0,0,null,null,null,null,null,null,null,null,null,null,0,null,null,null,null,null,null,null,null,null,null,null,null,null,null,null,null,null,null,null,null,null,null,null,null,null,null,null,null,null,null,"2018-05-03","2018-05-03"]
[2018,"4/05-4/05",3.8976840538761701,0.78666666666666629,3.0661781223825857,0,-3.0661781223825857,35.833329615491806,32.767151493109218,0,0,null,null,null,null,null,null,null,null,null,null,0,null,null,null,null,null,null,null,null,null,null,null,null,null,null,null,null,null,null,null,null,null,null,null,null,null,null,null,null,null,null,"2018-05-04","2018-05-04"]
[2018,"5/05-5/05",4.2019941472303168,0.7999999999999996,3.3615953177842517,0,-3.3615953177842517,32.767151493109218,29.405556175324968,0,0,null,null,null,null,null,null,null,null,null,null,0,null,null,null,null,null,null,null,null,null,null,null,null,null,null,null,null,null,null,null,null,null,null,null,null,null,null,null,null,null,null,"2018-05-05","2018-05-05"]
[2018,"6/05-6/05",4.5115390951392307,0.81333333333333291,3.669385130713239,0,-3.669385130713239,29.405556175324968,25.73617104461173,0,0,null,null,null,null,null,null,null,null,null,null,0,null,null,null,null,null,null,null,null,null,null,null,null,null,null,null,null,null,null,null,null,null,null,null,null,null,null,null,null,null,null,"2018-05-06","2018-05-06"]
[2018,"7/05-7/05",4.7749471484553565,0.82666666666666622,3.9472896427230926,0.50800000000000001,-3.4392896427230926,25.73617104461173,22.296881401888637,0,0,null,null,null,null,null,null,null,null,null,null,0,null,null,null,null,null,null,null,null,null,null,null,null,null,null,null,null,null,null,null,null,null,null,null,null,null,null,null,null,null,null,"2018-05-07","2018-05-07"]
[2018,"8/05-8/05",4.6825412633164625,0.83999999999999952,3.9333346611858264,2.032,-1.9013346611858264,22.296881401888637,20.395546740702812,0,0,null,null,null,null,null,null,null,null,null,null,0,null,null,null,null,null,null,null,null,null,null,null,null,null,null,null,null,null,null,null,null,null,null,null,null,null,null,null,null,null,null,"2018-05-08","2018-05-08"]
[2018,"9/05-9/05",4.4522514760228198,0.85333333333333283,3.7992545928728041,0,-3.7992545928728041,20.395546740702812,16.59629214783001,{"$f":"IF(OR($A149=\"\",$C149=\"\",$D149=\"\",$F149=\"\",$J148=\"\"),\"\",IF($I148+$F149-$E149<=0,$K$13*$B$13-$I148,0))","v":0},0,null,null,null,null,null,null,null,null,null,null,0,null,null,null,null,null,null,null,null,null,null,null,null,null,null,null,null,null,null,null,null,null,null,null,null,null,null,null,null,null,null,"2018-05-09","2018-05-09"]
[2018,"10/05-10/05",3.7197632638196461,0.86666666666666614,3.2237948286436913,0,-3.2237948286436913,16.59629214783001,{"$f":"IF(G150=\"\",\"\",MAX(MIN($K$13*$B$13,H150+G150),0))","v":13.372497319186319},0,{"$f":"IF(OR(A150=\"\",G150=\"\"),\"\",J150/$H$15)","v":0},null,null,null,null,null,null,null,null,null,null,0,null,null,null,null,null,null,null,null,null,null,null,null,null,null,null,null,null,null,null,null,null,null,null,null,null,null,null,null,null,null,"2018-05-10",{"$f":"IF(BA150=\"\",\"\",BA150+$X$1-1)","v":"2018-05-10"}]
[2018,"11/05-11/05",4.27920435470722,0.87999999999999945,{"$f":"IF(OR(A151=\"\", C151=\"\",D151=\"\",E150=\"\"),\"\",C151*D151)","v":3.7656998321423512},0,{"$f":"IF(OR(A151=\"\", C151=\"\",D151=\"\",F151=\"\",G150=\"\"),\"\",J151+F151-E151)","v":-3.7656998321423512},{"$f":"IF(G151=\"\",\"\",MAX(I150,0))","v":13.372497319186319},9.6067974870439681,0,0,null,null,null,null,null,null,null,null,null,null,{"$f":"IF(OR(A151=\"\",J151=\"\"),\"\",IF(AND(F151=0,J151=0),0,MAX(I150+G151-$N$13,0)))","v":0},null,null,null,null,null,null,null,null,null,null,null,null,null,null,null,null,null,null,null,null,null,null,null,null,null,null,null,null,null,null,{"$f":"IF(BB150<$H$17,BB150+1,\"\")","v":"2018-05-11"},"2018-05-11"]
[2018,"12/05-12/05",4.1444511805400808,0.89333333333333276,3.7023763879491365,0,-3.7023763879491365,9.6067974870439681,5.9044210990948311,0,0,null,null,null,null,null,null,null,null,null,null,0,null,null,null,null,null,null,null,null,null,null,null,null,null,null,null,null,null,null,null,null,null,null,null,null,null,null,null,null,null,null,"2018-05-12","2018-05-12"]
[2018,"13/05-13/05",3.7748728070810289,0.90666666666666607,3.4225513450867973,0,-3.4225513450867973,5.9044210990948311,2.4818697540080339,0,0,null,null,null,null,null,null,null,null,null,null,0,null,null,null,null,null,null,null,null,null,null,null,null,null,null,null,null,null,null,null,null,null,null,null,null,null,null,null,null,null,null,"2018-05-13","2018-05-13"]
[2018,"14/05-14/05",3.8243737541769796,0.91999999999999937,3.518423853842819,0,49.625461096910762,2.4818697540080339,52.107330850918792,53.143884950753581,62.522217589121858,null,null,null,null,null,null,null,null,null,null,0,null,null,null,null,null,null,null,null,null,null,null,null,null,null,null,null,null,null,null,null,null,null,null,null,null,null,null,null,null,null,"2018-05-14","2018-05-14"]
[2018,"15/05-15/05",4.321338147727821,0.93333333333333268,4.0332489378792964,0,-4.0332489378792964,52.107330850918792,48.074081913039493,0,0,null,null,null,null,null,null,null,null,null,null,0,null,null,null,null,null,null,null,null,null,null,null,null,null,null,null,null,null,null,null,null,null,null,null,null,null,null,null,null,null,null,"2018-05-15","2018-05-15"]
[2018,"16/05-16/05",4.7927674778699743,0.94666666666666599,4.5371532123835721,0,-4.5371532123835721,48.074081913039493,43.53692870065592,0,0,null,null,null,null,null,null,null,null,null,null,0,null,null,null,null,null,null,null,null,null,null,null,null,null,null,null,null,null,null,null,null,null,null,null,null,null,null,null,null,null,null,"2018-05-16","2018-05-16"]
[2018,"17/05-17/05",5.2029175440079563,0.9599999999999993,4.994800842247634,0,-4.994800842247634,43.53692870065592,38.542127858408286,0,0,null,null,null,null,null,null,null,null,null,null,0,null,null,null,null,null,null,null,null,null,null,null,null,null,null,null,null,null,null,null,null,null,null,null,null,null,null,null,null,null,null,"2018-05-17","2018-05-17"]
[2018,"18/05-18/05",5.207777558777626,0.97333333333333261,5.0689034905435522,0,-5.0689034905435522,38.542127858408286,33.473224367864731,0,0,null,null,null,null,null,null,null,null,null,null,0,null,null,null,null,null,null,null,null,null,null,null,null,null,null,null,null,null,null,null,null,null,null,null,null,null,null,null,null,null,null,"2018-05-18","2018-05-18"]
[2018,"19/05-19/05",4.7136405845151224,0.98666666666666591,4.6507920433882504,19.049999999999997,14.399207956611747,33.473224367864731,47.872432324476478,0,0,null,null,null,null,null,null,null,null,null,null,0,null,null,null,null,null,null,null,null,null,null,null,null,null,null,null,null,null,null,null,null,null,null,null,null,null,null,null,null,null,null,"2018-05-19","2018-05-19"]
[2018,"20/05-20/05",4.9285872126089956,0.99999999999999922,4.928587212608992,2.032,-2.896587212608992,47.872432324476478,44.975845111867486,0,0,null,null,null,null,null,null,null,null,null,null,0,null,null,null,null,null,null,null,null,null,null,null,null,null,null,null,null,null,null,null,null,null,null,null,null,null,null,null,null,null,null,"2018-05-20","2018-05-20"]
[2018,"21/05-21/05",4.579471614139762,1.0133333333333325,4.640531235661622,0,-4.640531235661622,44.975845111867486,40.335313876205866,0,0,null,null,null,null,null,null,null,null,null,null,0,null,null,null,null,null,null,null,null,null,null,null,null,null,null,null,null,null,null,null,null,null,null,null,null,null,null,null,null,null,null,"2018-05-21","2018-05-21"]
[2018,"22/05-22/05",4.4866304394186001,1.026666666666666,4.6062739178030929,10.921999999999999,6.3157260821969059,40.335313876205866,46.65103995840277,0,0,null,null,null,null,null,null,null,null,null,null,0,null,null,null,null,null,null,null,null,null,null,null,null,null,null,null,null,null,null,null,null,null,null,null,null,null,null,null,null,null,null,"2018-05-22","2018-05-22"]
[2018,"23/05-23/05",4.7475976356013216,1.0399999999999994,4.9375015410253713,0.254,-4.6835015410253718,46.65103995840277,41.967538417377398,0,0,null,null,null,null,null,null,null,null,null,null,0,null,null,null,null,null,null,null,null,null,null,null,null,null,null,null,null,null,null,null,null,null,null,null,null,null,null,null,null,null,null,"2018-05-23","2018-05-23"]
[2018,"24/05-24/05",4.8079637067866514,1.0533333333333328,5.0643884378152704,0,-5.0643884378152704,41.967538417377398,36.90314997956213,0,0,null,null,null,null,null,null,null,null,null,null,0,null,null,null,null,null,null,null,null,null,null,null,null,null,null,null,null,null,null,null,null,null,null,null,null,null,null,null,null,null,null,"2018-05-24","2018-05-24"]
[2018,"25/05-25/05",4.3155481452114914,1.0666666666666662,4.6032513548922553,13.97,9.3667486451077444,36.90314997956213,46.269898624669878,0,0,null,null,null,null,null,null,null,null,null,null,0,null,null,null,null,null,null,null,null,null,null,null,null,null,null,null,null,null,null,null,null,null,null,null,null,null,null,null,null,null,null,"2018-05-25","2018-05-25"]
[2018,"26/05-26/05",4.3667088533249832,1.0799999999999996,4.7160455615909802,10.921999999999999,6.2059544384090186,46.269898624669878,52.475853063078894,0,0,null,null,null,null,null,null,null,null,null,null,0,null,null,null,null,null,null,null,null,null,null,null,null,null,null,null,null,null,null,null,null,null,null,null,null,null,null,null,null,null,null,"2018-05-26","2018-05-26"]
[{"$f":"IF(BA167=\"\",\"\",YEAR(BB167))","v":2018},{"$f":"IF(A167=\"\",\"\",TEXT(BA167,\"d/mm\")&\"-\"&TEXT(BB167,\"d/mm\"))","v":"27/05-27/05"},4.7116788599473827,1.093333333333333,5.1514355535424707,0,-5.1514355535424707,52.475853063078894,47.324417509536424,0,0,null,null,null,null,null,null,null,null,null,null,0,null,null,null,null,null,null,null,null,null,null,null,null,null,null,null,null,null,null,null,null,null,null,null,null,null,null,null,null,null,null,"2018-05-27","2018-05-27"]
[2018,"28/05-28/05",4.4983349043743779,1.1066666666666665,4.9781572941743102,1.016,-3.9621572941743102,47.324417509536424,43.362260215362113,0,0,null,null,null,null,null,null,null,null,null,null,0,null,null,null,null,null,null,null,null,null,null,null,null,null,null,null,null,null,null,null,null,null,null,null,null,null,null,null,null,null,null,"2018-05-28","2018-05-28"]
[2018,"29/05-29/05",4.2578783962343092,1.1199999999999999,4.7688238037824258,0,-4.7688238037824258,43.362260215362113,38.593436411579688,0,0,null,null,null,null,null,null,null,null,null,null,0,null,null,null,null,null,null,null,null,null,null,null,null,null,null,null,null,null,null,null,null,null,null,null,null,null,null,null,null,null,null,"2018-05-29","2018-05-29"]
[2018,"30/05-30/05",4.0256935269002669,1.1333333333333333,4.5624526638203022,0,-4.5624526638203022,38.593436411579688,34.030983747759386,0,0,null,null,null,null,null,null,null,null,null,null,0,null,null,null,null,null,null,null,null,null,null,null,null,null,null,null,null,null,null,null,null,null,null,null,null,null,null,null,null,null,null,"2018-05-30","2018-05-30"]
[2018,"31/05-31/05",4.2086703181120209,1.1466666666666667,4.8259419647684512,0,-4.8259419647684512,34.030983747759386,29.205041782990936,0,0,null,null,null,null,null,null,null,null,null,null,0,null,null,null,null,null,null,null,null,null,null,null,null,null,null,null,null,null,null,null,null,null,null,null,null,null,null,null,null,null,null,"2018-05-31","2018-05-31"]
[2018,"1/06-1/06",4.4924305621552074,1.1600000000000001,5.2112194521000417,0,-5.2112194521000417,29.205041782990936,23.993822330890893,0,0,null,null,null,null,null,null,null,null,null,null,0,null,null,null,null,null,null,null,null,null,null,null,null,null,null,null,null,null,null,null,null,null,null,null,null,null,null,null,null,null,null,"2018-06-01","2018-06-01"]
[2018,"2/06-2/06",4.5725058264468865,1.1733333333333336,5.3650735030310148,0,-5.3650735030310148,23.993822330890893,18.62874882785988,0,0,null,null,null,null,null,null,null,null,null,null,0,null,null,null,null,null,null,null,null,null,null,null,null,null,null,null,null,null,null,null,null,null,null,null,null,null,null,null,null,null,null,"2018-06-02","2018-06-02"]
[2018,"3/06-3/06",5.0405543158782944,1.186666666666667,5.9814577881755779,0,-5.9814577881755779,18.62874882785988,12.647291039684301,0,0,null,null,null,null,null,null,null,null,null,null,0,null,null,null,null,null,null,null,null,null,null,null,null,null,null,null,null,null,null,null,null,null,null,null,null,null,null,null,null,null,null,"2018-06-03","2018-06-03"]
[2018,"4/06-4/06",4.6198597231319853,1.2000000000000004,5.5438316677583845,0,-5.5438316677583845,12.647291039684301,7.1034593719259167,0,0,null,null,null,null,null,null,null,null,null,null,0,null,null,null,null,null,null,null,null,null,null,null,null,null,null,null,null,null,null,null,null,null,null,null,null,null,null,null,null,null,null,"2018-06-04","2018-06-04"]
[2018,"5/06-5/06",4.5919932923605895,{"$f":"D175","v":1.2000000000000004},5.5103919508327088,0,-5.5103919508327088,7.1034593719259167,1.5930674210932079,0,0,null,null,null,null,null,null,null,null,null,null,0,null,null,null,null,null,null,null,null,null,null,null,null,null,null,null,null,null,null,null,null,null,null,null,null,null,null,null,null,null,null,"2018-06-05","2018-06-05"]
[2018,"6/06-6/06",4.5828114450789537,{"$f":"D176","v":1.2000000000000004},5.4993737340947462,0,48.533313549573656,1.5930674210932079,50.126380970666865,54.032687283668402,63.567867392551065,null,null,null,null,null,null,null,null,null,null,0,null,null,null,null,null,null,null,null,null,null,null,null,null,null,null,null,null,null,null,null,null,null,null,null,null,null,null,null,null,null,"2018-06-06","2018-06-06"]
[2018,"7/06-7/06",4.7637731553389209,1.2000000000000004,5.716527786406707,0,-5.716527786406707,50.126380970666865,44.409853184260157,0,0,null,null,null,null,null,null,null,null,null,null,0,null,null,null,null,null,null,null,null,null,null,null,null,null,null,null,null,null,null,null,null,null,null,null,null,null,null,null,null,null,null,"2018-06-07","2018-06-07"]
[2018,"8/06-8/06",4.9694425052169704,1.2000000000000004,5.9633310062603666,0.254,-5.709331006260367,44.409853184260157,38.700522177999787,0,0,null,null,null,null,null,null,null,null,null,null,0,null,null,null,null,null,null,null,null,null,null,null,null,null,null,null,null,null,null,null,null,null,null,null,null,null,null,null,null,null,null,"2018-06-08","2018-06-08"]
[2018,"9/06-9/06",4.7036552451374138,1.2000000000000004,5.6443862941648986,1.016,-4.6283862941648986,38.700522177999787,34.072135883834889,0,0,null,null,null,null,null,null,null,null,null,null,0,null,null,null,null,null,null,null,null,null,null,null,null,null,null,null,null,null,null,null,null,null,null,null,null,null,null,null,null,null,null,"2018-06-09","2018-06-09"]
[2018,"10/06-10/06",4.6423340586251234,1.2000000000000004,5.5708008703501495,0,-5.5708008703501495,34.072135883834889,28.501335013484741,0,0,null,null,null,null,null,null,null,null,null,null,0,null,null,null,null,null,null,null,null,null,null,null,null,null,null,null,null,null,null,null,null,null,null,null,null,null,null,null,null,null,null,"2018-06-10","2018-06-10"]
[2018,"11/06-11/06",4.4913142651166957,1.2000000000000004,5.3895771181400365,0,-5.3895771181400365,28.501335013484741,23.111757895344706,0,0,null,null,null,null,null,null,null,null,null,null,0,null,null,null,null,null,null,null,null,null,null,null,null,null,null,null,null,null,null,null,null,null,null,null,null,null,null,null,null,null,null,"2018-06-11","2018-06-11"]
[2018,"12/06-12/06",4.8031299013460904,1.2000000000000004,5.7637558816153103,0,-5.7637558816153103,23.111757895344706,17.348002013729396,0,0,null,null,null,null,null,null,null,null,null,null,0,null,null,null,null,null,null,null,null,null,null,null,null,null,null,null,null,null,null,null,null,null,null,null,null,null,null,null,null,null,null,"2018-06-12","2018-06-12"]
[2018,"13/06-13/06",5.1656564010563084,1.2000000000000004,6.1987876812675724,0,-6.1987876812675724,17.348002013729396,11.149214332461824,0,0,null,null,null,null,null,null,null,null,null,null,0,null,null,null,null,null,null,null,null,null,null,null,null,null,null,null,null,null,null,null,null,null,null,null,null,null,null,null,null,null,null,"2018-06-13","2018-06-13"]
[2018,"14/06-14/06",5.6461549628332746,1.2000000000000004,6.7753859553999316,0,-6.7753859553999316,11.149214332461824,4.3738283770618924,0,0,null,null,null,null,null,null,null,null,null,null,0,null,null,null,null,null,null,null,null,null,null,null,null,null,null,null,null,null,null,null,null,null,null,null,null,null,null,null,null,null,null,"2018-06-14","2018-06-14"]
[2018,"15/06-15/06",5.8499221545784525,1.2000000000000004,7.0199065854941454,0,44.232019742205573,4.3738283770618924,48.605848119267463,51.251926327699721,60.296383914940847,null,null,null,null,null,null,null,null,null,null,0,null,null,null,null,null,null,null,null,null,null,null,null,null,null,null,null,null,null,null,null,null,null,null,null,null,null,null,null,null,null,"2018-06-15","2018-06-15"]
[2018,"16/06-16/06",6.1842798499039571,1.2000000000000004,7.4211358198847508,0,-7.4211358198847508,48.605848119267463,41.18471229938271,0,0,null,null,null,null,null,null,null,null,null,null,0,null,null,null,null,null,null,null,null,null,null,null,null,null,null,null,null,null,null,null,null,null,null,null,null,null,null,null,null,null,null,"2018-06-16","2018-06-16"]
[2018,"17/06-17/06",6.3368440042322822,1.2000000000000004,7.604212805078741,0,-7.604212805078741,41.18471229938271,33.580499494303972,0,0,null,null,null,null,null,null,null,null,null,null,0,null,null,null,null,null,null,null,null,null,null,null,null,null,null,null,null,null,null,null,null,null,null,null,null,null,null,null,null,null,null,"2018-06-17","2018-06-17"]
[2018,"18/06-18/06",6.6504214612808514,1.2000000000000004,7.9805057535370247,0,-7.9805057535370247,33.580499494303972,25.599993740766948,0,0,null,null,null,null,null,null,null,null,null,null,0,null,null,null,null,null,null,null,null,null,null,null,null,null,null,null,null,null,null,null,null,null,null,null,null,null,null,null,null,null,null,"2018-06-18","2018-06-18"]
[2018,"19/06-19/06",7.0577167617512275,1.2000000000000004,8.4692601141014752,1.016,-7.4532601141014752,25.599993740766948,18.146733626665473,0,0,null,null,null,null,null,null,null,null,null,null,0,null,null,null,null,null,null,null,null,null,null,null,null,null,null,null,null,null,null,null,null,null,null,null,null,null,null,null,null,null,null,"2018-06-19","2018-06-19"]
[2018,"20/06-20/06",6.5300008445445146,1.2000000000000004,7.8360010134534201,0,-7.8360010134534201,18.146733626665473,10.310732613212053,0,0,null,null,null,null,null,null,null,null,null,null,0,null,null,null,null,null,null,null,null,null,null,null,null,null,null,null,null,null,null,null,null,null,null,null,null,null,null,null,null,null,null,"2018-06-20","2018-06-20"]
[2018,"21/06-21/06",5.9070538666577743,1.2000000000000004,7.0884646399893319,0,-7.0884646399893319,10.310732613212053,3.2222679732227215,0,0,null,null,null,null,null,null,null,null,null,null,0,null,null,null,null,null,null,null,null,null,null,null,null,null,null,null,null,null,null,null,null,null,null,null,null,null,null,null,null,null,null,"2018-06-21","2018-06-21"]
[2018,"22/06-22/06",6.2594003633335786,1.2000000000000004,7.5112804360002965,1.016,45.908206295538591,3.2222679732227215,49.130474268761311,52.403486731538891,61.651160860633993,null,null,null,null,null,null,null,null,null,null,0,null,null,null,null,null,null,null,null,null,null,null,null,null,null,null,null,null,null,null,null,null,null,null,null,null,null,null,null,null,null,"2018-06-22","2018-06-22"]
[2018,"23/06-23/06",6.2552220597524402,1.2000000000000004,7.506266471702931,0.50800000000000001,-6.998266471702931,49.130474268761311,42.132207797058378,0,0,null,null,null,null,null,null,null,null,null,null,0,null,null,null,null,null,null,null,null,null,null,null,null,null,null,null,null,null,null,null,null,null,null,null,null,null,null,null,null,null,null,"2018-06-23","2018-06-23"]
[2018,"24/06-24/06",6.5875346036901297,1.2000000000000004,7.9050415244281584,0,-7.9050415244281584,42.132207797058378,34.227166272630221,0,0,null,null,null,null,null,null,null,null,null,null,0,null,null,null,null,null,null,null,null,null,null,null,null,null,null,null,null,null,null,null,null,null,null,null,null,null,null,null,null,null,null,"2018-06-24","2018-06-24"]
[2018,"25/06-25/06",6.3876119201604746,1.2000000000000004,7.6651343041925717,0,-7.6651343041925717,34.227166272630221,26.562031968437651,0,0,null,null,null,null,null,null,null,null,null,null,0,null,null,null,null,null,null,null,null,null,null,null,null,null,null,null,null,null,null,null,null,null,null,null,null,null,null,null,null,null,null,"2018-06-25","2018-06-25"]
[2018,"26/06-26/06",5.5012242099454669,1.2000000000000004,6.6014690519345622,0,-6.6014690519345622,26.562031968437651,19.96056291650309,0,0,null,null,null,null,null,null,null,null,null,null,0,null,null,null,null,null,null,null,null,null,null,null,null,null,null,null,null,null,null,null,null,null,null,null,null,null,null,null,null,null,null,"2018-06-26","2018-06-26"]
[2018,"27/06-27/06",5.873053762299782,1.2000000000000004,7.0476645147597408,0,-7.0476645147597408,19.96056291650309,12.912898401743348,0,0,null,null,null,null,null,null,null,null,null,null,0,null,null,null,null,null,null,null,null,null,null,null,null,null,null,null,null,null,null,null,null,null,null,null,null,null,null,null,null,null,null,"2018-06-27","2018-06-27"]
[2018,"28/06-28/06",5.71277892033185,1.2000000000000004,6.8553347043982225,0,-6.8553347043982225,12.912898401743348,6.0575636973451257,0,0,null,null,null,null,null,null,null,null,null,null,0,null,null,null,null,null,null,null,null,null,null,null,null,null,null,null,null,null,null,null,null,null,null,null,null,null,null,null,null,null,null,"2018-06-28","2018-06-28"]
[2018,"29/06-29/06",5.7323439619007965,1.2000000000000004,6.8788127542809585,0,42.68937825313553,6.0575636973451257,48.746941950480654,49.568191007416488,58.315518832254696,null,null,null,null,null,null,null,null,null,null,0,null,null,null,null,null,null,null,null,null,null,null,null,null,null,null,null,null,null,null,null,null,null,null,null,null,null,null,null,null,null,"2018-06-29","2018-06-29"]
[2018,"30/06-30/06",5.711350421037789,1.2000000000000004,6.8536205052453489,0,-6.8536205052453489,48.746941950480654,41.893321445235301,0,0,null,null,null,null,null,null,null,null,null,null,0,null,null,null,null,null,null,null,null,null,null,null,null,null,null,null,null,null,null,null,null,null,null,null,null,null,null,null,null,null,null,"2018-06-30","2018-06-30"]
[2018,"1/07-1/07",5.4967193175223077,1.2000000000000004,6.5960631810267714,17.018000000000001,10.421936818973229,41.893321445235301,52.315258264208531,0,0,null,null,null,null,null,null,null,null,null,null,0,null,null,null,null,null,null,null,null,null,null,null,null,null,null,null,null,null,null,null,null,null,null,null,null,null,null,null,null,null,null,"2018-07-01","2018-07-01"]
[2018,"2/07-2/07",5.4631100819563079,1.2000000000000004,6.5557320983475718,2.032,-4.5237320983475717,52.315258264208531,47.791526165860958,0,0,null,null,null,null,null,null,null,null,null,null,0,null,null,null,null,null,null,null,null,null,null,null,null,null,null,null,null,null,null,null,null,null,null,null,null,null,null,null,null,null,null,"2018-07-02","2018-07-02"]
[2018,"3/07-3/07",5.6600435280316486,1.2000000000000004,6.7920522336379809,0.254,-6.5380522336379805,47.791526165860958,41.253473932222974,0,0,null,null,null,null,null,null,null,null,null,null,0,null,null,null,null,null,null,null,null,null,null,null,null,null,null,null,null,null,null,null,null,null,null,null,null,null,null,null,null,null,null,"2018-07-03","2018-07-03"]
[2018,"4/07-4/07",5.831663817899849,1.2000000000000004,6.9979965814798213,0,-6.9979965814798213,41.253473932222974,34.255477350743149,0,0,null,null,null,null,null,null,null,null,null,null,0,null,null,null,null,null,null,null,null,null,null,null,null,null,null,null,null,null,null,null,null,null,null,null,null,null,null,null,null,null,null,"2018-07-04","2018-07-04"]
[2018,"5/07-5/07",5.7186136018197473,1.2000000000000004,6.8623363221836993,0,-6.8623363221836993,34.255477350743149,27.393141028559448,0,0,null,null,null,null,null,null,null,null,null,null,0,null,null,null,null,null,null,null,null,null,null,null,null,null,null,null,null,null,null,null,null,null,null,null,null,null,null,null,null,null,null,"2018-07-05","2018-07-05"]
[2018,"6/07-6/07",5.8338036983340693,1.2000000000000004,7.0005644380008851,0,-7.0005644380008851,27.393141028559448,20.392576590558562,0,0,null,null,null,null,null,null,null,null,null,null,0,null,null,null,null,null,null,null,null,null,null,null,null,null,null,null,null,null,null,null,null,null,null,null,null,null,null,null,null,null,null,"2018-07-06","2018-07-06"]
[2018,"7/07-7/07",5.8916253166966417,1.2000000000000004,7.069950380035972,0,-7.069950380035972,20.392576590558562,13.322626210522589,0,0,null,null,null,null,null,null,null,null,null,null,0,null,null,null,null,null,null,null,null,null,null,null,null,null,null,null,null,null,null,null,null,null,null,null,null,null,null,null,null,null,null,"2018-07-07","2018-07-07"]
[2018,"8/07-8/07",6.4692270718267881,1.2000000000000004,7.7630724861921481,0,-7.7630724861921481,13.322626210522589,5.5595537243304411,0,0,null,null,null,null,null,null,null,null,null,null,0,null,null,null,null,null,null,null,null,null,null,null,null,null,null,null,null,null,null,null,null,null,null,null,null,null,null,null,null,null,null,"2018-07-08","2018-07-08"]
[2018,"9/07-9/07",6.3288530542439974,1.2000000000000004,7.594623665092799,0,42.471577315338372,5.5595537243304411,48.031131039668814,50.066200980431169,58.901412918154321,null,null,null,null,null,null,null,null,null,null,0,null,null,null,null,null,null,null,null,null,null,null,null,null,null,null,null,null,null,null,null,null,null,null,null,null,null,null,null,null,null,"2018-07-09","2018-07-09"]
[2018,"10/07-10/07",6.7247039822130352,1.2000000000000004,8.0696447786556451,0,-8.0696447786556451,48.031131039668814,39.961486261013171,0,0,null,null,null,null,null,null,null,null,null,null,0,null,null,null,null,null,null,null,null,null,null,null,null,null,null,null,null,null,null,null,null,null,null,null,null,null,null,null,null,null,null,"2018-07-10","2018-07-10"]
[2018,"11/07-11/07",6.4208992647191643,1.2000000000000004,7.7050791176629998,0,-7.7050791176629998,39.961486261013171,32.256407143350174,0,0,null,null,null,null,null,null,null,null,null,null,0,null,null,null,null,null,null,null,null,null,null,null,null,null,null,null,null,null,null,null,null,null,null,null,null,null,null,null,null,null,null,"2018-07-11","2018-07-11"]
[2018,"12/07-12/07",6.0533622707375017,1.2000000000000004,7.2640347248850041,0,-7.2640347248850041,32.256407143350174,24.99237241846517,{"$f":"IF(OR($A213=\"\",$C213=\"\",$D213=\"\",$F213=\"\",$J212=\"\"),\"\",IF($I212+$F213-$E213<=0,$K$13*$B$13-$I212,0))","v":0},0,null,null,null,null,null,null,null,null,null,null,0,null,null,null,null,null,null,null,null,null,null,null,null,null,null,null,null,null,null,null,null,null,null,null,null,null,null,null,null,null,null,"2018-07-12","2018-07-12"]
[2018,"13/07-13/07",5.4935194907564329,1.2000000000000004,6.5922233889077217,0,-6.5922233889077217,24.99237241846517,{"$f":"IF(G214=\"\",\"\",MAX(MIN($K$13*$B$13,H214+G214),0))","v":18.400149029557447},0,{"$f":"IF(OR(A214=\"\",G214=\"\"),\"\",J214/$H$15)","v":0},null,null,null,null,null,null,null,null,null,null,0,null,null,null,null,null,null,null,null,null,null,null,null,null,null,null,null,null,null,null,null,null,null,null,null,null,null,null,null,null,null,"2018-07-13",{"$f":"IF(BA214=\"\",\"\",BA214+$X$1-1)","v":"2018-07-13"}]
[2018,"14/07-14/07",5.7300014325835988,1.2000000000000004,{"$f":"IF(OR(A215=\"\", C215=\"\",D215=\"\",E214=\"\"),\"\",C215*D215)","v":6.8760017191003211},0,{"$f":"IF(OR(A215=\"\", C215=\"\",D215=\"\",F215=\"\",G214=\"\"),\"\",J215+F215-E215)","v":-6.8760017191003211},{"$f":"IF(G215=\"\",\"\",MAX(I214,0))","v":18.400149029557447},11.524147310457126,0,0,null,null,null,null,null,null,null,null,null,null,{"$f":"IF(OR(A215=\"\",J215=\"\"),\"\",IF(AND(F215=0,J215=0),0,MAX(I214+G215-$N$13,0)))","v":0},null,null,null,null,null,null,null,null,null,null,null,null,null,null,null,null,null,null,null,null,null,null,null,null,null,null,null,null,null,null,{"$f":"IF(BB214<$H$17,BB214+1,\"\")","v":"2018-07-14"},"2018-07-14"]
[2018,"15/07-15/07",5.6079549477635853,1.2000000000000004,6.7295459373163045,0,-6.7295459373163045,11.524147310457126,4.7946013731408215,0,0,null,null,null,null,null,null,null,null,null,null,0,null,null,null,null,null,null,null,null,null,null,null,null,null,null,null,null,null,null,null,null,null,null,null,null,null,null,null,null,null,null,"2018-07-15","2018-07-15"]
[2018,"16/07-16/07",5.411733022776394,1.2000000000000004,6.4940796273316748,0,44.337073704289118,4.7946013731408215,49.131675077429939,50.83115333162079,59.801356860730344,null,null,null,null,null,null,null,null,null,null,0,null,null,null,null,null,null,null,null,null,null,null,null,null,null,null,null,null,null,null,null,null,null,null,null,null,null,null,null,null,null,"2018-07-16","2018-07-16"]
[2018,"17/07-17/07",5.9307166545906282,1.2000000000000004,7.1168599855087562,0,-7.1168599855087562,49.131675077429939,42.014815091921186,0,0,null,null,null,null,null,null,null,null,null,null,0,null,null,null,null,null,null,null,null,null,null,null,null,null,null,null,null,null,null,null,null,null,null,null,null,null,null,null,null,null,null,"2018-07-17","2018-07-17"]
[2018,"18/07-18/07",6.1922387430470662,1.2000000000000004,7.4306864916564823,0,-7.4306864916564823,42.014815091921186,34.584128600264705,0,0,null,null,null,null,null,null,null,null,null,null,0,null,null,null,null,null,null,null,null,null,null,null,null,null,null,null,null,null,null,null,null,null,null,null,null,null,null,null,null,null,null,"2018-07-18","2018-07-18"]
[2018,"19/07-19/07",5.7687309739196699,1.2000000000000004,6.9224771687036064,0,-6.9224771687036064,34.584128600264705,27.661651431561097,0,0,null,null,null,null,null,null,null,null,null,null,0,null,null,null,null,null,null,null,null,null,null,null,null,null,null,null,null,null,null,null,null,null,null,null,null,null,null,null,null,null,null,"2018-07-19","2018-07-19"]
[2018,"20/07-20/07",5.8848496503522263,1.2000000000000004,7.0618195804226742,0,-7.0618195804226742,27.661651431561097,20.599831851138422,0,0,null,null,null,null,null,null,null,null,null,null,0,null,null,null,null,null,null,null,null,null,null,null,null,null,null,null,null,null,null,null,null,null,null,null,null,null,null,null,null,null,null,"2018-07-20","2018-07-20"]
[2018,"21/07-21/07",6.1787940118056985,1.2000000000000004,7.4145528141668411,0,-7.4145528141668411,20.599831851138422,13.185279036971581,0,0,null,null,null,null,null,null,null,null,null,null,0,null,null,null,null,null,null,null,null,null,null,null,null,null,null,null,null,null,null,null,null,null,null,null,null,null,null,null,null,null,null,"2018-07-21","2018-07-21"]
[2018,"22/07-22/07",6.1973481012737661,1.2000000000000004,7.4368177215285218,0,-7.4368177215285218,13.185279036971581,5.748461315443059,0,0,null,null,null,null,null,null,null,null,null,null,0,null,null,null,null,null,null,null,null,null,null,null,null,null,null,null,null,null,null,null,null,null,null,null,null,null,null,null,null,null,null,"2018-07-22","2018-07-22"]
[2018,"23/07-23/07",6.1407345672811369,1.2000000000000004,7.3688814807373664,0,42.508411908581188,5.748461315443059,48.256873224024247,49.877293389318552,58.679168693315944,null,null,null,null,null,null,null,null,null,null,0,null,null,null,null,null,null,null,null,null,null,null,null,null,null,null,null,null,null,null,null,null,null,null,null,null,null,null,null,null,null,"2018-07-23","2018-07-23"]
[2018,"24/07-24/07",6.1404541273647197,{"$f":"D224-0.8/35","v":1.1771428571428575},7.228191715640758,0,-7.228191715640758,48.256873224024247,41.028681508383485,0,0,null,null,null,null,null,null,null,null,null,null,0,null,null,null,null,null,null,null,null,null,null,null,null,null,null,null,null,null,null,null,null,null,null,null,null,null,null,null,null,null,null,"2018-07-24","2018-07-24"]
[2018,"25/07-25/07",5.6395055013628426,{"$f":"D225-0.8/35","v":1.1542857142857146},6.5096006358588259,0,-6.5096006358588259,41.028681508383485,34.519080872524661,0,0,null,null,null,null,null,null,null,null,null,null,0,null,null,null,null,null,null,null,null,null,null,null,null,null,null,null,null,null,null,null,null,null,null,null,null,null,null,null,null,null,null,"2018-07-25","2018-07-25"]
[2018,"26/07-26/07",5.5765760803415052,1.1314285714285717,6.3094975080435329,0,-6.3094975080435329,34.519080872524661,28.209583364481126,0,0,null,null,null,null,null,null,null,null,null,null,0,null,null,null,null,null,null,null,null,null,null,null,null,null,null,null,null,null,null,null,null,null,null,null,null,null,null,null,null,null,null,"2018-07-26","2018-07-26"]
[2018,"27/07-27/07",6.0640131233866876,1.1085714285714288,6.7223916910686716,0,-6.7223916910686716,28.209583364481126,21.487191673412454,0,0,null,null,null,null,null,null,null,null,null,null,0,null,null,null,null,null,null,null,null,null,null,null,null,null,null,null,null,null,null,null,null,null,null,null,null,null,null,null,null,null,null,"2018-07-27","2018-07-27"]
[2018,"28/07-28/07",6.0429783730199702,1.0857142857142859,6.5609479478502539,0,-6.5609479478502539,21.487191673412454,14.9262437255622,0,0,null,null,null,null,null,null,null,null,null,null,0,null,null,null,null,null,null,null,null,null,null,null,null,null,null,null,null,null,null,null,null,null,null,null,null,null,null,null,null,null,null,"2018-07-28","2018-07-28"]
[2018,"29/07-29/07",5.9926317082913485,1.0628571428571429,6.369311415669662,0,-6.369311415669662,14.9262437255622,8.5569323098925381,0,0,null,null,null,null,null,null,null,null,null,null,0,null,null,null,null,null,null,null,null,null,null,null,null,null,null,null,null,null,null,null,null,null,null,null,null,null,null,null,null,null,null,"2018-07-29","2018-07-29"]
[{"$f":"IF(BA231=\"\",\"\",YEAR(BB231))","v":2018},{"$f":"IF(A231=\"\",\"\",TEXT(BA231,\"d/mm\")&\"-\"&TEXT(BB231,\"d/mm\"))","v":"30/07-30/07"},5.765598269163176,1.04,5.9962221999297034,0,-5.9962221999297034,8.5569323098925381,2.5607101099628347,0,0,null,null,null,null,null,null,null,null,null,null,0,null,null,null,null,null,null,null,null,null,null,null,null,null,null,null,null,null,null,null,null,null,null,null,null,null,null,null,null,null,null,"2018-07-30","2018-07-30"]
[2018,"31/07-31/07",5.9469261595108183,1.0171428571428571,6.0488734651024325,0,47.016171129696346,2.5607101099628347,49.57688123965918,53.065044594798778,62.429464229175032,null,null,null,null,null,null,null,null,null,null,0,null,null,null,null,null,null,null,null,null,null,null,null,null,null,null,null,null,null,null,null,null,null,null,null,null,null,null,null,null,null,"2018-07-31","2018-07-31"]
[2018,"1/08-1/08",6.418641902817237,0.99428571428571422,6.3819639490868525,0,-6.3819639490868525,49.57688123965918,43.194917290572327,0,0,null,null,null,null,null,null,null,null,null,null,0,null,null,null,null,null,null,null,null,null,null,null,null,null,null,null,null,null,null,null,null,null,null,null,null,null,null,null,null,null,null,"2018-08-01","2018-08-01"]
[2018,"2/08-2/08",6.707230763972591,0.97142857142857131,6.5155955992876589,0,-6.5155955992876589,43.194917290572327,36.67932169128467,0,0,null,null,null,null,null,null,null,null,null,null,0,null,null,null,null,null,null,null,null,null,null,null,null,null,null,null,null,null,null,null,null,null,null,null,null,null,null,null,null,null,null,"2018-08-02","2018-08-02"]
[2018,"3/08-3/08",7.897925430848165,0.9485714285714284,7.4917464086902577,0,-7.4917464086902577,36.67932169128467,29.187575282594413,0,0,null,null,null,null,null,null,null,null,null,null,0,null,null,null,null,null,null,null,null,null,null,null,null,null,null,null,null,null,null,null,null,null,null,null,null,null,null,null,null,null,null,"2018-08-03","2018-08-03"]
[2018,"4/08-4/08",7.9762419223543706,0.92571428571428549,7.3837210938366153,0,-7.3837210938366153,29.187575282594413,21.803854188757796,0,0,null,null,null,null,null,null,null,null,null,null,0,null,null,null,null,null,null,null,null,null,null,null,null,null,null,null,null,null,null,null,null,null,null,null,null,null,null,null,null,null,null,"2018-08-04","2018-08-04"]
[2018,"5/08-5/08",8.0482294275911102,0.90285714285714258,7.2664014260536858,0.254,-7.0124014260536853,21.803854188757796,14.791452762704111,0,0,null,null,null,null,null,null,null,null,null,null,0,null,null,null,null,null,null,null,null,null,null,null,null,null,null,null,null,null,null,null,null,null,null,null,null,null,null,null,null,null,null,"2018-08-05","2018-08-05"]
[2018,"6/08-6/08",7.9178660406895229,0.87999999999999967,6.9677221158067777,0,-6.9677221158067777,14.791452762704111,7.8237306468973333,0,0,null,null,null,null,null,null,null,null,null,null,0,null,null,null,null,null,null,null,null,null,null,null,null,null,null,null,null,null,null,null,null,null,null,null,null,null,null,null,null,null,null,"2018-08-06","2018-08-06"]
[2018,"7/08-7/08",7.4162719640052792,0.85714285714285676,6.3568045405759506,0,-6.3568045405759506,7.8237306468973333,1.4669261063213828,0,0,null,null,null,null,null,null,null,null,null,null,0,null,null,null,null,null,null,null,null,null,null,null,null,null,null,null,null,null,null,null,null,null,null,null,null,null,null,null,null,null,null,"2018-08-07","2018-08-07"]
[2018,"8/08-8/08",6.3195820220257017,0.83428571428571385,5.2723370012328683,0,48.88649159720736,1.4669261063213828,50.353417703528741,54.15882859844023,63.716268939341447,null,null,null,null,null,null,null,null,null,null,0,null,null,null,null,null,null,null,null,null,null,null,null,null,null,null,null,null,null,null,null,null,null,null,null,null,null,null,null,null,null,"2018-08-08","2018-08-08"]
[2018,"9/08-9/08",5.9430177593526166,0.81142857142857094,4.8223344104461203,0,-4.8223344104461203,50.353417703528741,45.531083293082624,0,0,null,null,null,null,null,null,null,null,null,null,0,null,null,null,null,null,null,null,null,null,null,null,null,null,null,null,null,null,null,null,null,null,null,null,null,null,null,null,null,null,null,"2018-08-09","2018-08-09"]
[2018,"10/08-10/08",5.9284174487668047,0.78857142857142803,4.67498061674182,0,-4.67498061674182,45.531083293082624,40.856102676340804,0,0,null,null,null,null,null,null,null,null,null,null,0,null,null,null,null,null,null,null,null,null,null,null,null,null,null,null,null,null,null,null,null,null,null,null,null,null,null,null,null,null,null,"2018-08-10","2018-08-10"]
[2018,"11/08-11/08",6.0011241056023072,0.76571428571428513,4.5951464580040486,0,-4.5951464580040486,40.856102676340804,36.260956218336759,0,0,null,null,null,null,null,null,null,null,null,null,0,null,null,null,null,null,null,null,null,null,null,null,null,null,null,null,null,null,null,null,null,null,null,null,null,null,null,null,null,null,null,"2018-08-11","2018-08-11"]
[2018,"12/08-12/08",6.1704246032266781,0.74285714285714222,4.5837439909683857,0,-4.5837439909683857,36.260956218336759,31.677212227368372,0,0,null,null,null,null,null,null,null,null,null,null,0,null,null,null,null,null,null,null,null,null,null,null,null,null,null,null,null,null,null,null,null,null,null,null,null,null,null,null,null,null,null,"2018-08-12","2018-08-12"]
[2018,"13/08-13/08",6.1445071427611184,0.71999999999999931,4.4240451427880014,0,-4.4240451427880014,31.677212227368372,27.253167084580369,0,0,null,null,null,null,null,null,null,null,null,null,0,null,null,null,null,null,null,null,null,null,null,null,null,null,null,null,null,null,null,null,null,null,null,null,null,null,null,null,null,null,null,"2018-08-13","2018-08-13"]
[2018,"14/08-14/08",5.9569881055989597,0.6971428571428564,4.1528717079032704,0,-4.1528717079032704,27.253167084580369,23.100295376677099,0,0,null,null,null,null,null,null,null,null,null,null,0,null,null,null,null,null,null,null,null,null,null,null,null,null,null,null,null,null,null,null,null,null,null,null,null,null,null,null,null,null,null,"2018-08-14","2018-08-14"]
[2018,"15/08-15/08",5.8068655906492417,0.67428571428571349,3.9154865125520555,0,-3.9154865125520555,23.100295376677099,19.184808864125046,0,0,null,null,null,null,null,null,null,null,null,null,0,null,null,null,null,null,null,null,null,null,null,null,null,null,null,null,null,null,null,null,null,null,null,null,null,null,null,null,null,null,null,"2018-08-15","2018-08-15"]
[2018,"16/08-16/08",5.7239637310204392,0.65142857142857058,3.7287535162075955,0,-3.7287535162075955,19.184808864125046,15.456055347917451,0,0,null,null,null,null,null,null,null,null,null,null,0,null,null,null,null,null,null,null,null,null,null,null,null,null,null,null,null,null,null,null,null,null,null,null,null,null,null,null,null,null,null,"2018-08-16","2018-08-16"]
[2018,"17/08-17/08",5.6165018571007677,0.62857142857142767,3.5303725958919059,0,-3.5303725958919059,15.456055347917451,11.925682752025544,0,0,null,null,null,null,null,null,null,null,null,null,0,null,null,null,null,null,null,null,null,null,null,null,null,null,null,null,null,null,null,null,null,null,null,null,null,null,null,null,null,null,null,"2018-08-17","2018-08-17"]
[2018,"18/08-18/08",5.7251286534555339,0.60571428571428476,3.4677922129502035,0,-3.4677922129502035,11.925682752025544,8.4578905390753398,0,0,null,null,null,null,null,null,null,null,null,null,0,null,null,null,null,null,null,null,null,null,null,null,null,null,null,null,null,null,null,null,null,null,null,null,null,null,null,null,null,null,null,"2018-08-18","2018-08-18"]
[2018,"19/08-19/08",6.2438974008621821,0.58285714285714185,3.6393001993596656,0,-3.6393001993596656,8.4578905390753398,4.8185903397156746,0,0,null,null,null,null,null,null,null,null,null,null,0,null,null,null,null,null,null,null,null,null,null,null,null,null,null,null,null,null,null,null,null,null,null,null,null,null,null,null,null,null,null,"2018-08-19","2018-08-19"]
[2018,"20/08-20/08",6.4755013887495023,0.55999999999999894,3.6262807776997144,0,-3.6262807776997144,4.8185903397156746,1.1923095620159603,0,0,null,null,null,null,null,null,null,null,null,null,0,null,null,null,null,null,null,null,null,null,null,null,null,null,null,null,null,null,null,null,null,null,null,null,null,null,null,null,null,null,null,"2018-08-20","2018-08-20"]
[2018,"21/08-21/08",6.3174732490703809,0.53714285714285603,3.3933856309292261,0,51.04005951181643,1.1923095620159603,52.232369073832388,54.433445142745654,64.039347226759588,null,null,null,null,null,null,null,null,null,null,0,null,null,null,null,null,null,null,null,null,null,null,null,null,null,null,null,null,null,null,null,null,null,null,null,null,null,null,null,null,null,"2018-08-21","2018-08-21"]
[2018,"22/08-22/08",6.5014909532112499,0.51428571428571312,3.3436239187943495,0,-3.3436239187943495,52.232369073832388,48.888745155038038,0,0,null,null,null,null,null,null,null,null,null,null,0,null,null,null,null,null,null,null,null,null,null,null,null,null,null,null,null,null,null,null,null,null,null,null,null,null,null,null,null,null,null,"2018-08-22","2018-08-22"]
[2018,"23/08-23/08",6.1212966721885067,0.49142857142857027,3.0081800789040591,0,-3.0081800789040591,48.888745155038038,45.880565076133976,0,0,null,null,null,null,null,null,null,null,null,null,0,null,null,null,null,null,null,null,null,null,null,null,null,null,null,null,null,null,null,null,null,null,null,null,null,null,null,null,null,null,null,"2018-08-23","2018-08-23"]
[2018,"24/08-24/08",6.4803971202798749,0.46857142857142742,3.0365289363597054,0,-3.0365289363597054,45.880565076133976,42.844036139774268,0,0,null,null,null,null,null,null,null,null,null,null,0,null,null,null,null,null,null,null,null,null,null,null,null,null,null,null,null,null,null,null,null,null,null,null,null,null,null,null,null,null,null,"2018-08-24","2018-08-24"]
[2018,"25/08-25/08",6.2869938651362336,0.44571428571428456,2.8022029798892856,0,-2.8022029798892856,42.844036139774268,40.04183315988498,0,0,null,null,null,null,null,null,null,null,null,null,0,null,null,null,null,null,null,null,null,null,null,null,null,null,null,null,null,null,null,null,null,null,null,null,null,null,null,null,null,null,null,"2018-08-25","2018-08-25"]
[2018,"26/08-26/08",6.2072491315977105,0.42285714285714171,2.624779632789882,0,-2.624779632789882,40.04183315988498,37.417053527095099,0,0,null,null,null,null,null,null,null,null,null,null,0,null,null,null,null,null,null,null,null,null,null,null,null,null,null,null,null,null,null,null,null,null,null,null,null,null,null,null,null,null,null,"2018-08-26","2018-08-26"]
[2018,"27/08-27/08",5.8947495826874547,0.4,2.3578998330749821,0,-2.3578998330749821,37.417053527095099,35.059153694020118,0,0,null,null,null,null,null,null,null,null,null,null,0,null,null,null,null,null,null,null,null,null,null,null,null,null,null,null,null,null,null,null,null,null,null,null,null,null,null,null,null,null,null,"2018-08-27","2018-08-27"]
[2018,"28/08-28/08",6.2890630296382497,0.4,2.5156252118553,0,-2.5156252118553,35.059153694020118,32.543528482164817,0,0,null,null,null,null,null,null,null,null,null,null,0,null,null,null,null,null,null,null,null,null,null,null,null,null,null,null,null,null,null,null,null,null,null,null,null,null,null,null,null,null,null,"2018-08-28","2018-08-28"]
[2018,"29/08-29/08",5.1573089611813643,0,0,0,0,32.543528482164817,32.543528482164817,0,0,null,null,null,null,null,null,null,null,null,null,0,null,null,null,null,null,null,null,null,null,null,null,null,null,null,null,null,null,null,null,null,null,null,null,null,null,null,null,null,null,null,"2018-08-29","2018-08-29"]
[2018,"30/08-30/08",5.4601557773397271,0,0,0,0,32.543528482164817,32.543528482164817,0,0,null,null,null,null,null,null,null,null,null,null,0,null,null,null,null,null,null,null,null,null,null,null,null,null,null,null,null,null,null,null,null,null,null,null,null,null,null,null,null,null,null,"2018-08-30","2018-08-30"]
[2018,"31/08-31/08",5.4361762479682634,0,0,0,0,32.543528482164817,32.543528482164817,0,0,null,null,null,null,null,null,null,null,null,null,0,null,null,null,null,null,null,null,null,null,null,null,null,null,null,null,null,null,null,null,null,null,null,null,null,null,null,null,null,null,null,"2018-08-31","2018-08-31"]
[2018,"1/09-1/09",5.7413836826500226,0,0,0,0,32.543528482164817,32.543528482164817,0,0,null,null,null,null,null,null,null,null,null,null,0,null,null,null,null,null,null,null,null,null,null,null,null,null,null,null,null,null,null,null,null,null,null,null,null,null,null,null,null,null,null,"2018-09-01","2018-09-01"]
[2018,"2/09-2/09",5.8616523698650811,0,0,0,0,32.543528482164817,32.543528482164817,0,0,null,null,null,null,null,null,null,null,null,null,0,null,null,null,null,null,null,null,null,null,null,null,null,null,null,null,null,null,null,null,null,null,null,null,null,null,null,null,null,null,null,"2018-09-02","2018-09-02"]
[2018,"3/09-3/09",5.6035429996019674,0,0,0,0,32.543528482164817,32.543528482164817,0,0,null,null,null,null,null,null,null,null,null,null,0,null,null,null,null,null,null,null,null,null,null,null,null,null,null,null,null,null,null,null,null,null,null,null,null,null,null,null,null,null,null,"2018-09-03","2018-09-03"]
[2018,"4/09-4/09",4.8561139817087877,0,0,0,0,32.543528482164817,32.543528482164817,0,0,null,null,null,null,null,null,null,null,null,null,0,null,null,null,null,null,null,null,null,null,null,null,null,null,null,null,null,null,null,null,null,null,null,null,null,null,null,null,null,null,null,"2018-09-04","2018-09-04"]
[2018,"5/09-5/09",4.5402019971905521,0,0,0,0,32.543528482164817,32.543528482164817,0,0,null,null,null,null,null,null,null,null,null,null,0,null,null,null,null,null,null,null,null,null,null,null,null,null,null,null,null,null,null,null,null,null,null,null,null,null,null,null,null,null,null,"2018-09-05","2018-09-05"]
[2018,"6/09-6/09",4.5408138188757627,0,0,0,0,32.543528482164817,32.543528482164817,0,0,null,null,null,null,null,null,null,null,null,null,0,null,null,null,null,null,null,null,null,null,null,null,null,null,null,null,null,null,null,null,null,null,null,null,null,null,null,null,null,null,null,"2018-09-06","2018-09-06"]
[2018,"7/09-7/09",4.4913082014113206,0,0,0,0,32.543528482164817,32.543528482164817,0,0,null,null,null,null,null,null,null,null,null,null,0,null,null,null,null,null,null,null,null,null,null,null,null,null,null,null,null,null,null,null,null,null,null,null,null,null,null,null,null,null,null,"2018-09-07","2018-09-07"]
[2018,"8/09-8/09",4.3924215410985186,0,0,0,0,32.543528482164817,32.543528482164817,0,0,null,null,null,null,null,null,null,null,null,null,0,null,null,null,null,null,null,null,null,null,null,null,null,null,null,null,null,null,null,null,null,null,null,null,null,null,null,null,null,null,null,"2018-09-08","2018-09-08"]
[2018,"9/09-9/09",4.3271124600571751,0,0,0,0,32.543528482164817,32.543528482164817,0,0,null,null,null,null,null,null,null,null,null,null,0,null,null,null,null,null,null,null,null,null,null,null,null,null,null,null,null,null,null,null,null,null,null,null,null,null,null,null,null,null,null,"2018-09-09","2018-09-09"]
[2018,"10/09-10/09",4.4625451086903691,0,0,0,0,32.543528482164817,32.543528482164817,0,0,null,null,null,null,null,null,null,null,null,null,0,null,null,null,null,null,null,null,null,null,null,null,null,null,null,null,null,null,null,null,null,null,null,null,null,null,null,null,null,null,null,"2018-09-10","2018-09-10"]
[2018,"11/09-11/09",5.0359669285558475,0,0,0,0,32.543528482164817,32.543528482164817,0,0,null,null,null,null,null,null,null,null,null,null,0,null,null,null,null,null,null,null,null,null,null,null,null,null,null,null,null,null,null,null,null,null,null,null,null,null,null,null,null,null,null,"2018-09-11","2018-09-11"]
[2018,"12/09-12/09",5.0046679231260214,0,0,0,0,32.543528482164817,32.543528482164817,0,0,null,null,null,null,null,null,null,null,null,null,0,null,null,null,null,null,null,null,null,null,null,null,null,null,null,null,null,null,null,null,null,null,null,null,null,null,null,null,null,null,null,"2018-09-12","2018-09-12"]
[2018,"13/09-13/09",5.1502524362263102,0,0,0,0,32.543528482164817,32.543528482164817,0,0,null,null,null,null,null,null,null,null,null,null,0,null,null,null,null,null,null,null,null,null,null,null,null,null,null,null,null,null,null,null,null,null,null,null,null,null,null,null,null,null,null,"2018-09-13","2018-09-13"]
[2018,"14/09-14/09",5.2451756453821412,0,0,0,0,32.543528482164817,32.543528482164817,{"$f":"IF(OR($A277=\"\",$C277=\"\",$D277=\"\",$F277=\"\",$J276=\"\"),\"\",IF($I276+$F277-$E277<=0,$K$13*$B$13-$I276,0))","v":0},0,null,null,null,null,null,null,null,null,null,null,0,null,null,null,null,null,null,null,null,null,null,null,null,null,null,null,null,null,null,null,null,null,null,null,null,null,null,null,null,null,null,"2018-09-14","2018-09-14"]
[2018,"15/09-15/09",4.9934851905721729,0,0,0.254,0.254,32.543528482164817,{"$f":"IF(G278=\"\",\"\",MAX(MIN($K$13*$B$13,H278+G278),0))","v":32.797528482164815},0,{"$f":"IF(OR(A278=\"\",G278=\"\"),\"\",J278/$H$15)","v":0},null,null,null,null,null,null,null,null,null,null,0,null,null,null,null,null,null,null,null,null,null,null,null,null,null,null,null,null,null,null,null,null,null,null,null,null,null,null,null,null,null,"2018-09-15",{"$f":"IF(BA278=\"\",\"\",BA278+$X$1-1)","v":"2018-09-15"}]
[2018,"16/09-16/09",4.639767953072103,0,{"$f":"IF(OR(A279=\"\", C279=\"\",D279=\"\",E278=\"\"),\"\",C279*D279)","v":0},0.7619999999999999,{"$f":"IF(OR(A279=\"\", C279=\"\",D279=\"\",F279=\"\",G278=\"\"),\"\",J279+F279-E279)","v":0.7619999999999999},{"$f":"IF(G279=\"\",\"\",MAX(I278,0))","v":32.797528482164815},33.559528482164815,0,0,null,null,null,null,null,null,null,null,null,null,{"$f":"IF(OR(A279=\"\",J279=\"\"),\"\",IF(AND(F279=0,J279=0),0,MAX(I278+G279-$N$13,0)))","v":0},null,null,null,null,null,null,null,null,null,null,null,null,null,null,null,null,null,null,null,null,null,null,null,null,null,null,null,null,null,null,{"$f":"IF(BB278<$H$17,BB278+1,\"\")","v":"2018-09-16"},"2018-09-16"]
[2018,"17/09-17/09",4.6840064931745271,0,0,0,0,33.559528482164815,33.559528482164815,0,0,null,null,null,null,null,null,null,null,null,null,0,null,null,null,null,null,null,null,null,null,null,null,null,null,null,null,null,null,null,null,null,null,null,null,null,null,null,null,null,null,null,"2018-09-17","2018-09-17"]
[2018,"18/09-18/09",4.8917732991178218,0,0,0,0,33.559528482164815,33.559528482164815,0,0,null,null,null,null,null,null,null,null,null,null,0,null,null,null,null,null,null,null,null,null,null,null,null,null,null,null,null,null,null,null,null,null,null,null,null,null,null,null,null,null,null,"2018-09-18","2018-09-18"]
[2018,"19/09-19/09",4.5790842120989899,0,0,0,0,33.559528482164815,33.559528482164815,0,0,null,null,null,null,null,null,null,null,null,null,0,null,null,null,null,null,null,null,null,null,null,null,null,null,null,null,null,null,null,null,null,null,null,null,null,null,null,null,null,null,null,"2018-09-19","2018-09-19"]
[2018,"20/09-20/09",4.5746248064602977,0,0,0,0,33.559528482164815,33.559528482164815,0,0,null,null,null,null,null,null,null,null,null,null,0,null,null,null,null,null,null,null,null,null,null,null,null,null,null,null,null,null,null,null,null,null,null,null,null,null,null,null,null,null,null,"2018-09-20","2018-09-20"]
[2018,"21/09-21/09",4.6500117283184235,0,0,0,0,33.559528482164815,33.559528482164815,0,0,null,null,null,null,null,null,null,null,null,null,0,null,null,null,null,null,null,null,null,null,null,null,null,null,null,null,null,null,null,null,null,null,null,null,null,null,null,null,null,null,null,"2018-09-21","2018-09-21"]
[2018,"22/09-22/09",4.5524705476225735,0,0,0,0,33.559528482164815,33.559528482164815,0,0,null,null,null,null,null,null,null,null,null,null,0,null,null,null,null,null,null,null,null,null,null,null,null,null,null,null,null,null,null,null,null,null,null,null,null,null,null,null,null,null,null,"2018-09-22","2018-09-22"]
[2018,"23/09-23/09",4.7462540657427699,0,0,0,0,33.559528482164815,33.559528482164815,0,0,null,null,null,null,null,null,null,null,null,null,0,null,null,null,null,null,null,null,null,null,null,null,null,null,null,null,null,null,null,null,null,null,null,null,null,null,null,null,null,null,null,"2018-09-23","2018-09-23"]
[2018,"24/09-24/09",5.2483592774643482,0,0,0,0,33.559528482164815,33.559528482164815,0,0,null,null,null,null,null,null,null,null,null,null,0,null,null,null,null,null,null,null,null,null,null,null,null,null,null,null,null,null,null,null,null,null,null,null,null,null,null,null,null,null,null,"2018-09-24","2018-09-24"]
[2018,"25/09-25/09",5.2917088277067093,0,0,0,0,33.559528482164815,33.559528482164815,0,0,null,null,null,null,null,null,null,null,null,null,0,null,null,null,null,null,null,null,null,null,null,null,null,null,null,null,null,null,null,null,null,null,null,null,null,null,null,null,null,null,null,"2018-09-25","2018-09-25"]
[2018,"26/09-26/09",5.1713716031388568,0,0,0,0,33.559528482164815,33.559528482164815,0,0,null,null,null,null,null,null,null,null,null,null,0,null,null,null,null,null,null,null,null,null,null,null,null,null,null,null,null,null,null,null,null,null,null,null,null,null,null,null,null,null,null,"2018-09-26","2018-09-26"]
[2018,"27/09-27/09",4.5422798949294929,0,0,3.0479999999999996,3.0479999999999996,33.559528482164815,36.607528482164817,0,0,null,null,null,null,null,null,null,null,null,null,0,null,null,null,null,null,null,null,null,null,null,null,null,null,null,null,null,null,null,null,null,null,null,null,null,null,null,null,null,null,null,"2018-09-27","2018-09-27"]
[2018,"28/09-28/09",4.2807297624767386,0,0,0,0,36.607528482164817,36.607528482164817,0,0,null,null,null,null,null,null,null,null,null,null,0,null,null,null,null,null,null,null,null,null,null,null,null,null,null,null,null,null,null,null,null,null,null,null,null,null,null,null,null,null,null,"2018-09-28","2018-09-28"]
[2018,"29/09-29/09",4.3590336161514447,0,0,0,0,36.607528482164817,36.607528482164817,0,0,null,null,null,null,null,null,null,null,null,null,0,null,null,null,null,null,null,null,null,null,null,null,null,null,null,null,null,null,null,null,null,null,null,null,null,null,null,null,null,null,null,"2018-09-29","2018-09-29"]
[2018,"30/09-30/09",4.1356279595554417,0,0,0,0,36.607528482164817,36.607528482164817,0,0,null,null,null,null,null,null,null,null,null,null,0,null,null,null,null,null,null,null,null,null,null,null,null,null,null,null,null,null,null,null,null,null,null,null,null,null,null,null,null,null,null,"2018-09-30","2018-09-30"]
[2018,"1/10-1/10",3.9869201602025663,0,0,0,0,36.607528482164817,36.607528482164817,0,0,null,null,null,null,null,null,null,null,null,null,0,null,null,null,null,null,null,null,null,null,null,null,null,null,null,null,null,null,null,null,null,null,null,null,null,null,null,null,null,null,null,"2018-10-01","2018-10-01"]
[{"$f":"IF(BA295=\"\",\"\",YEAR(BB295))","v":2018},{"$f":"IF(A295=\"\",\"\",TEXT(BA295,\"d/mm\")&\"-\"&TEXT(BB295,\"d/mm\"))","v":"2/10-2/10"},3.7558675920305027,0,0,0,0,36.607528482164817,36.607528482164817,0,0,null,null,null,null,null,null,null,null,null,null,0,null,null,null,null,null,null,null,null,null,null,null,null,null,null,null,null,null,null,null,null,null,null,null,null,null,null,null,null,null,null,"2018-10-02","2018-10-02"]
[2018,"3/10-3/10",4.1761304490624616,0,0,0,0,36.607528482164817,36.607528482164817,0,0,null,null,null,null,null,null,null,null,null,null,0,null,null,null,null,null,null,null,null,null,null,null,null,null,null,null,null,null,null,null,null,null,null,null,null,null,null,null,null,null,null,"2018-10-03","2018-10-03"]
[2018,"4/10-4/10",3.888947434980742,0,0,0,0,36.607528482164817,36.607528482164817,0,0,null,null,null,null,null,null,null,null,null,null,0,null,null,null,null,null,null,null,null,null,null,null,null,null,null,null,null,null,null,null,null,null,null,null,null,null,null,null,null,null,null,"2018-10-04","2018-10-04"]
[2018,"5/10-5/10",3.8375418445281895,0,0,0,0,36.607528482164817,36.607528482164817,0,0,null,null,null,null,null,null,null,null,null,null,0,null,null,null,null,null,null,null,null,null,null,null,null,null,null,null,null,null,null,null,null,null,null,null,null,null,null,null,null,null,null,"2018-10-05","2018-10-05"]
[2018,"6/10-6/10",3.7253502741964426,0,0,0,0,36.607528482164817,36.607528482164817,0,0,null,null,null,null,null,null,null,null,null,null,0,null,null,null,null,null,null,null,null,null,null,null,null,null,null,null,null,null,null,null,null,null,null,null,null,null,null,null,null,null,null,"2018-10-06","2018-10-06"]
[2018,"7/10-7/10",3.846076558975752,0,0,0,0,36.607528482164817,36.607528482164817,0,0,null,null,null,null,null,null,null,null,null,null,0,null,null,null,null,null,null,null,null,null,null,null,null,null,null,null,null,null,null,null,null,null,null,null,null,null,null,null,null,null,null,"2018-10-07","2018-10-07"]
[2018,"8/10-8/10",3.883430559206857,0,0,0,0,36.607528482164817,36.607528482164817,0,0,null,null,null,null,null,null,null,null,null,null,0,null,null,null,null,null,null,null,null,null,null,null,null,null,null,null,null,null,null,null,null,null,null,null,null,null,null,null,null,null,null,"2018-10-08","2018-10-08"]
[2018,"9/10-9/10",3.4724350954035215,0,0,0,0,36.607528482164817,36.607528482164817,0,0,null,null,null,null,null,null,null,null,null,null,0,null,null,null,null,null,null,null,null,null,null,null,null,null,null,null,null,null,null,null,null,null,null,null,null,null,null,null,null,null,null,"2018-10-09","2018-10-09"]
[2018,"10/10-10/10",3.4263368888168428,0,0,0,0,36.607528482164817,36.607528482164817,0,0,null,null,null,null,null,null,null,null,null,null,0,null,null,null,null,null,null,null,null,null,null,null,null,null,null,null,null,null,null,null,null,null,null,null,null,null,null,null,null,null,null,"2018-10-10","2018-10-10"]
[2018,"11/10-11/10",3.337740737679753,0,0,0,0,36.607528482164817,36.607528482164817,0,0,null,null,null,null,null,null,null,null,null,null,0,null,null,null,null,null,null,null,null,null,null,null,null,null,null,null,null,null,null,null,null,null,null,null,null,null,null,null,null,null,null,"2018-10-11","2018-10-11"]
[2018,"12/10-12/10",3.3682909412480577,0,0,0,0,36.607528482164817,36.607528482164817,0,0,null,null,null,null,null,null,null,null,null,null,0,null,null,null,null,null,null,null,null,null,null,null,null,null,null,null,null,null,null,null,null,null,null,null,null,null,null,null,null,null,null,"2018-10-12","2018-10-12"]
[2018,"13/10-13/10",3.5207792701219676,0,0,0,0,36.607528482164817,36.607528482164817,0,0,null,null,null,null,null,null,null,null,null,null,0,null,null,null,null,null,null,null,null,null,null,null,null,null,null,null,null,null,null,null,null,null,null,null,null,null,null,null,null,null,null,"2018-10-13","2018-10-13"]
[2018,"14/10-14/10",3.0266370591207723,0,0,0,0,36.607528482164817,36.607528482164817,0,0,null,null,null,null,null,null,null,null,null,null,0,null,null,null,null,null,null,null,null,null,null,null,null,null,null,null,null,null,null,null,null,null,null,null,null,null,null,null,null,null,null,"2018-10-14","2018-10-14"]
[2018,"15/10-15/10",3.7403022900548097,0,0,0,0,36.607528482164817,36.607528482164817,0,0,null,null,null,null,null,null,null,null,null,null,0,null,null,null,null,null,null,null,null,null,null,null,null,null,null,null,null,null,null,null,null,null,null,null,null,null,null,null,null,null,null,"2018-10-15","2018-10-15"]
[2018,"16/10-16/10",3.7551047969945488,0,0,0,0,36.607528482164817,36.607528482164817,0,0,null,null,null,null,null,null,null,null,null,null,0,null,null,null,null,null,null,null,null,null,null,null,null,null,null,null,null,null,null,null,null,null,null,null,null,null,null,null,null,null,null,"2018-10-16","2018-10-16"]
[2018,"17/10-17/10",3.0239307881272728,0,0,7.8739999999999997,7.8739999999999997,36.607528482164817,44.481528482164819,0,0,null,null,null,null,null,null,null,null,null,null,0,null,null,null,null,null,null,null,null,null,null,null,null,null,null,null,null,null,null,null,null,null,null,null,null,null,null,null,null,null,null,"2018-10-17","2018-10-17"]
[2018,"18/10-18/10",2.6595875296937233,0,0,7.1120000000000001,7.1120000000000001,44.481528482164819,51.593528482164821,0,0,null,null,null,null,null,null,null,null,null,null,0,null,null,null,null,null,null,null,null,null,null,null,null,null,null,null,null,null,null,null,null,null,null,null,null,null,null,null,null,null,null,"2018-10-18","2018-10-18"]
[2018,"19/10-19/10",2.3808275542252546,0,0,0.50800000000000001,0.50800000000000001,51.593528482164821,52.101528482164824,0,0,null,null,null,null,null,null,null,null,null,null,0,null,null,null,null,null,null,null,null,null,null,null,null,null,null,null,null,null,null,null,null,null,null,null,null,null,null,null,null,null,null,"2018-10-19","2018-10-19"]
[2018,"20/10-20/10",2.3832408006604768,0,0,0.254,0.254,52.101528482164824,52.355528482164821,0,0,null,null,null,null,null,null,null,null,null,null,0,null,null,null,null,null,null,null,null,null,null,null,null,null,null,null,null,null,null,null,null,null,null,null,null,null,null,null,null,null,null,"2018-10-20","2018-10-20"]
[2018,"21/10-21/10",2.4073707722619635,0,0,2.032,2.032,52.355528482164821,54.387528482164825,0,0,null,null,null,null,null,null,null,null,null,null,0,null,null,null,null,null,null,null,null,null,null,null,null,null,null,null,null,null,null,null,null,null,null,null,null,null,null,null,null,null,null,"2018-10-21","2018-10-21"]
[2018,"22/10-22/10",2.4126675875850121,0,0,0,0,54.387528482164825,54.387528482164825,0,0,null,null,null,null,null,null,null,null,null,null,0,null,null,null,null,null,null,null,null,null,null,null,null,null,null,null,null,null,null,null,null,null,null,null,null,null,null,null,null,null,null,"2018-10-22","2018-10-22"]
[2018,"23/10-23/10",2.2467209723036987,0,0,0,0,54.387528482164825,54.387528482164825,0,0,null,null,null,null,null,null,null,null,null,null,0,null,null,null,null,null,null,null,null,null,null,null,null,null,null,null,null,null,null,null,null,null,null,null,null,null,null,null,null,null,null,"2018-10-23","2018-10-23"]
[2018,"24/10-24/10",2.4939175176881294,0,0,0,0,54.387528482164825,54.387528482164825,0,0,null,null,null,null,null,null,null,null,null,null,0,null,null,null,null,null,null,null,null,null,null,null,null,null,null,null,null,null,null,null,null,null,null,null,null,null,null,null,null,null,null,"2018-10-24","2018-10-24"]
[2018,"25/10-25/10",2.6278002012123789,0,0,0,0,54.387528482164825,54.387528482164825,0,0,null,null,null,null,null,null,null,null,null,null,0,null,null,null,null,null,null,null,null,null,null,null,null,null,null,null,null,null,null,null,null,null,null,null,null,null,null,null,null,null,null,"2018-10-25","2018-10-25"]
[2018,"26/10-26/10",2.6919783237905706,0,0,0,0,54.387528482164825,54.387528482164825,0,0,null,null,null,null,null,null,null,null,null,null,0,null,null,null,null,null,null,null,null,null,null,null,null,null,null,null,null,null,null,null,null,null,null,null,null,null,null,null,null,null,null,"2018-10-26","2018-10-26"]
[2018,"27/10-27/10",2.7853345729969585,0,0,0,0,54.387528482164825,54.387528482164825,0,0,null,null,null,null,null,null,null,null,null,null,0,null,null,null,null,null,null,null,null,null,null,null,null,null,null,null,null,null,null,null,null,null,null,null,null,null,null,null,null,null,null,"2018-10-27","2018-10-27"]
[2018,"28/10-28/10",2.8653728491866595,0,0,0,0,54.387528482164825,54.387528482164825,0,0,null,null,null,null,null,null,null,null,null,null,0,null,null,null,null,null,null,null,null,null,null,null,null,null,null,null,null,null,null,null,null,null,null,null,null,null,null,null,null,null,null,"2018-10-28","2018-10-28"]
[2018,"29/10-29/10",2.8761271807466433,0,0,0,0,54.387528482164825,54.387528482164825,0,0,null,null,null,null,null,null,null,null,null,null,0,null,null,null,null,null,null,null,null,null,null,null,null,null,null,null,null,null,null,null,null,null,null,null,null,null,null,null,null,null,null,"2018-10-29","2018-10-29"]
[2018,"30/10-30/10",2.4016357426795309,0,0,0,0,54.387528482164825,54.387528482164825,0,0,null,null,null,null,null,null,null,null,null,null,0,null,null,null,null,null,null,null,null,null,null,null,null,null,null,null,null,null,null,null,null,null,null,null,null,null,null,null,null,null,null,"2018-10-30","2018-10-30"]
[2018,"31/10-31/10",2.2859864385031647,0,0,0,0,54.387528482164825,54.387528482164825,0,0,null,null,null,null,null,null,null,null,null,null,0,null,null,null,null,null,null,null,null,null,null,null,null,null,null,null,null,null,null,null,null,null,null,null,null,null,null,null,null,null,null,"2018-10-31","2018-10-31"]
[2018,"1/11-1/11",2.2521754769482722,0,0,0,0,54.387528482164825,54.387528482164825,0,0,null,null,null,null,null,null,null,null,null,null,0,null,null,null,null,null,null,null,null,null,null,null,null,null,null,null,null,null,null,null,null,null,null,null,null,null,null,null,null,null,null,"2018-11-01","2018-11-01"]
[2018,"2/11-2/11",2.0061747933424643,0,0,0,0,54.387528482164825,54.387528482164825,0,0,null,null,null,null,null,null,null,null,null,null,0,null,null,null,null,null,null,null,null,null,null,null,null,null,null,null,null,null,null,null,null,null,null,null,null,null,null,null,null,null,null,"2018-11-02","2018-11-02"]
[2018,"3/11-3/11",2.00324158360579,0,0,13.97,13.97,54.387528482164825,55.625754704761611,0,0,null,null,null,null,null,null,null,null,null,null,12.731773777403212,null,null,null,null,null,null,null,null,null,null,null,null,null,null,null,null,null,null,null,null,null,null,null,null,null,null,null,null,null,null,"2018-11-03","2018-11-03"]
[2018,"4/11-4/11",1.7855886813755109,0,0,0.7619999999999999,0.7619999999999999,55.625754704761611,55.625754704761611,0,0,null,null,null,null,null,null,null,null,null,null,0.76200000000000045,null,null,null,null,null,null,null,null,null,null,null,null,null,null,null,null,null,null,null,null,null,null,null,null,null,null,null,null,null,null,"2018-11-04","2018-11-04"]
[2018,"5/11-5/11",1.796146279593398,0,0,2.032,2.032,55.625754704761611,55.625754704761611,0,0,null,null,null,null,null,null,null,null,null,null,2.0320000000000036,null,null,null,null,null,null,null,null,null,null,null,null,null,null,null,null,null,null,null,null,null,null,null,null,null,null,null,null,null,null,"2018-11-05","2018-11-05"]
[2018,"6/11-6/11",1.6257336230587125,0,0,0.254,0.254,55.625754704761611,55.625754704761611,0,0,null,null,null,null,null,null,null,null,null,null,0.25399999999999778,null,null,null,null,null,null,null,null,null,null,null,null,null,null,null,null,null,null,null,null,null,null,null,null,null,null,null,null,null,null,"2018-11-06","2018-11-06"]
[2018,"7/11-7/11",1.6161243633603015,0,0,0,0,55.625754704761611,55.625754704761611,0,0,null,null,null,null,null,null,null,null,null,null,0,null,null,null,null,null,null,null,null,null,null,null,null,null,null,null,null,null,null,null,null,null,null,null,null,null,null,null,null,null,null,"2018-11-07","2018-11-07"]
[2018,"8/11-8/11",1.6045824010266305,0,0,0,0,55.625754704761611,55.625754704761611,0,0,null,null,null,null,null,null,null,null,null,null,0,null,null,null,null,null,null,null,null,null,null,null,null,null,null,null,null,null,null,null,null,null,null,null,null,null,null,null,null,null,null,"2018-11-08","2018-11-08"]
[2018,"9/11-9/11",1.5155623273983048,0,0,0,0,55.625754704761611,55.625754704761611,0,0,null,null,null,null,null,null,null,null,null,null,0,null,null,null,null,null,null,null,null,null,null,null,null,null,null,null,null,null,null,null,null,null,null,null,null,null,null,null,null,null,null,"2018-11-09","2018-11-09"]
[2018,"10/11-10/11",1.4314843740446217,0,0,0,0,55.625754704761611,55.625754704761611,0,0,null,null,null,null,null,null,null,null,null,null,0,null,null,null,null,null,null,null,null,null,null,null,null,null,null,null,null,null,null,null,null,null,null,null,null,null,null,null,null,null,null,"2018-11-10","2018-11-10"]
[2018,"11/11-11/11",1.3770167890286671,0,0,0,0,55.625754704761611,55.625754704761611,0,0,null,null,null,null,null,null,null,null,null,null,0,null,null,null,null,null,null,null,null,null,null,null,null,null,null,null,null,null,null,null,null,null,null,null,null,null,null,null,null,null,null,"2018-11-11","2018-11-11"]
[2018,"12/11-12/11",1.5151435575576269,0,0,0,0,55.625754704761611,55.625754704761611,0,0,null,null,null,null,null,null,null,null,null,null,0,null,null,null,null,null,null,null,null,null,null,null,null,null,null,null,null,null,null,null,null,null,null,null,null,null,null,null,null,null,null,"2018-11-12","2018-11-12"]
[2018,"13/11-13/11",1.5056007356048529,0,0,0,0,55.625754704761611,55.625754704761611,0,0,null,null,null,null,null,null,null,null,null,null,0,null,null,null,null,null,null,null,null,null,null,null,null,null,null,null,null,null,null,null,null,null,null,null,null,null,null,null,null,null,null,"2018-11-13","2018-11-13"]
[2018,"14/11-14/11",1.5258386620969584,0,0,0,0,55.625754704761611,55.625754704761611,0,0,null,null,null,null,null,null,null,null,null,null,0,null,null,null,null,null,null,null,null,null,null,null,null,null,null,null,null,null,null,null,null,null,null,null,null,null,null,null,null,null,null,"2018-11-14","2018-11-14"]
[2018,"15/11-15/11",1.3269441148335921,0,0,0,0,55.625754704761611,55.625754704761611,0,0,null,null,null,null,null,null,null,null,null,null,0,null,null,null,null,null,null,null,null,null,null,null,null,null,null,null,null,null,null,null,null,null,null,null,null,null,null,null,null,null,null,"2018-11-15","2018-11-15"]
[2018,"16/11-16/11",1.3067554626860662,0,0,0,0,55.625754704761611,55.625754704761611,0,0,null,null,null,null,null,null,null,null,null,null,0,null,null,null,null,null,null,null,null,null,null,null,null,null,null,null,null,null,null,null,null,null,null,null,null,null,null,null,null,null,null,"2018-11-16","2018-11-16"]
[2018,"17/11-17/11",1.285476107227923,0,0,0,0,55.625754704761611,55.625754704761611,{"$f":"IF(OR($A341=\"\",$C341=\"\",$D341=\"\",$F341=\"\",$J340=\"\"),\"\",IF($I340+$F341-$E341<=0,$K$13*$B$13-$I340,0))","v":0},0,null,null,null,null,null,null,null,null,null,null,0,null,null,null,null,null,null,null,null,null,null,null,null,null,null,null,null,null,null,null,null,null,null,null,null,null,null,null,null,null,null,"2018-11-17","2018-11-17"]
[2018,"18/11-18/11",1.2299276067729585,0,0,0,0,55.625754704761611,{"$f":"IF(G342=\"\",\"\",MAX(MIN($K$13*$B$13,H342+G342),0))","v":55.625754704761611},0,{"$f":"IF(OR(A342=\"\",G342=\"\"),\"\",J342/$H$15)","v":0},null,null,null,null,null,null,null,null,null,null,0,null,null,null,null,null,null,null,null,null,null,null,null,null,null,null,null,null,null,null,null,null,null,null,null,null,null,null,null,null,null,"2018-11-18",{"$f":"IF(BA342=\"\",\"\",BA342+$X$1-1)","v":"2018-11-18"}]
[2018,"19/11-19/11",1.3835478346788628,0,{"$f":"IF(OR(A343=\"\", C343=\"\",D343=\"\",E342=\"\"),\"\",C343*D343)","v":0},0,{"$f":"IF(OR(A343=\"\", C343=\"\",D343=\"\",F343=\"\",G342=\"\"),\"\",J343+F343-E343)","v":0},{"$f":"IF(G343=\"\",\"\",MAX(I342,0))","v":55.625754704761611},55.625754704761611,0,0,null,null,null,null,null,null,null,null,null,null,{"$f":"IF(OR(A343=\"\",J343=\"\"),\"\",IF(AND(F343=0,J343=0),0,MAX(I342+G343-$N$13,0)))","v":0},null,null,null,null,null,null,null,null,null,null,null,null,null,null,null,null,null,null,null,null,null,null,null,null,null,null,null,null,null,null,{"$f":"IF(BB342<$H$17,BB342+1,\"\")","v":"2018-11-19"},"2018-11-19"]
[2018,"20/11-20/11",1.3803255184562251,0,0,0,0,55.625754704761611,55.625754704761611,0,0,null,null,null,null,null,null,null,null,null,null,0,null,null,null,null,null,null,null,null,null,null,null,null,null,null,null,null,null,null,null,null,null,null,null,null,null,null,null,null,null,null,"2018-11-20","2018-11-20"]
[2018,"21/11-21/11",1.3524693397759395,0,0,0,0,55.625754704761611,55.625754704761611,0,0,null,null,null,null,null,null,null,null,null,null,0,null,null,null,null,null,null,null,null,null,null,null,null,null,null,null,null,null,null,null,null,null,null,null,null,null,null,null,null,null,null,"2018-11-21","2018-11-21"]
[2018,"22/11-22/11",1.4209947795688276,0,0,0,0,55.625754704761611,55.625754704761611,0,0,null,null,null,null,null,null,null,null,null,null,0,null,null,null,null,null,null,null,null,null,null,null,null,null,null,null,null,null,null,null,null,null,null,null,null,null,null,null,null,null,null,"2018-11-22","2018-11-22"]
[2018,"23/11-23/11",1.5480586244109722,0,0,0,0,55.625754704761611,55.625754704761611,0,0,null,null,null,null,null,null,null,null,null,null,0,null,null,null,null,null,null,null,null,null,null,null,null,null,null,null,null,null,null,null,null,null,null,null,null,null,null,null,null,null,null,"2018-11-23","2018-11-23"]
[2018,"24/11-24/11",1.6449986504340419,0,0,5.08,5.08,55.625754704761611,55.625754704761611,0,0,null,null,null,null,null,null,null,null,null,null,5.0799999999999983,null,null,null,null,null,null,null,null,null,null,null,null,null,null,null,null,null,null,null,null,null,null,null,null,null,null,null,null,null,null,"2018-11-24","2018-11-24"]
[2018,"25/11-25/11",1.5410207496452739,0,0,0,0,55.625754704761611,55.625754704761611,0,0,null,null,null,null,null,null,null,null,null,null,0,null,null,null,null,null,null,null,null,null,null,null,null,null,null,null,null,null,null,null,null,null,null,null,null,null,null,null,null,null,null,"2018-11-25","2018-11-25"]
[2018,"26/11-26/11",1.2140113687535781,0,0,0,0,55.625754704761611,55.625754704761611,0,0,null,null,null,null,null,null,null,null,null,null,0,null,null,null,null,null,null,null,null,null,null,null,null,null,null,null,null,null,null,null,null,null,null,null,null,null,null,null,null,null,null,"2018-11-26","2018-11-26"]
[2018,"27/11-27/11",1.2021735006343666,0,0,0,0,55.625754704761611,55.625754704761611,0,0,null,null,null,null,null,null,null,null,null,null,0,null,null,null,null,null,null,null,null,null,null,null,null,null,null,null,null,null,null,null,null,null,null,null,null,null,null,null,null,null,null,"2018-11-27","2018-11-27"]
[2018,"28/11-28/11",1.2401906601001564,0,0,0,0,55.625754704761611,55.625754704761611,0,0,null,null,null,null,null,null,null,null,null,null,0,null,null,null,null,null,null,null,null,null,null,null,null,null,null,null,null,null,null,null,null,null,null,null,null,null,null,null,null,null,null,"2018-11-28","2018-11-28"]
[2018,"29/11-29/11",1.1764057702754953,0,0,0.50800000000000001,0.50800000000000001,55.625754704761611,55.625754704761611,0,0,null,null,null,null,null,null,null,null,null,null,0.50800000000000267,null,null,null,null,null,null,null,null,null,null,null,null,null,null,null,null,null,null,null,null,null,null,null,null,null,null,null,null,null,null,"2018-11-29","2018-11-29"]
[2018,"30/11-30/11",1.0804118939332623,0,0,40.893999999999998,40.893999999999998,55.625754704761611,55.625754704761611,0,0,null,null,null,null,null,null,null,null,null,null,40.893999999999998,null,null,null,null,null,null,null,null,null,null,null,null,null,null,null,null,null,null,null,null,null,null,null,null,null,null,null,null,null,null,"2018-11-30","2018-11-30"]
[2018,"1/12-1/12",0.93034525108527533,0,0,0,0,55.625754704761611,55.625754704761611,0,0,null,null,null,null,null,null,null,null,null,null,0,null,null,null,null,null,null,null,null,null,null,null,null,null,null,null,null,null,null,null,null,null,null,null,null,null,null,null,null,null,null,"2018-12-01","2018-12-01"]
[2018,"2/12-2/12",0.77476074915341697,0,0,0,0,55.625754704761611,55.625754704761611,0,0,null,null,null,null,null,null,null,null,null,null,0,null,null,null,null,null,null,null,null,null,null,null,null,null,null,null,null,null,null,null,null,null,null,null,null,null,null,null,null,null,null,"2018-12-02","2018-12-02"]
[2018,"3/12-3/12",0.71175517047484216,0,0,0,0,55.625754704761611,55.625754704761611,0,0,null,null,null,null,null,null,null,null,null,null,0,null,null,null,null,null,null,null,null,null,null,null,null,null,null,null,null,null,null,null,null,null,null,null,null,null,null,null,null,null,null,"2018-12-03","2018-12-03"]
[2018,"4/12-4/12",0.72990817788715878,0,0,0,0,55.625754704761611,55.625754704761611,0,0,null,null,null,null,null,null,null,null,null,null,0,null,null,null,null,null,null,null,null,null,null,null,null,null,null,null,null,null,null,null,null,null,null,null,null,null,null,null,null,null,null,"2018-12-04","2018-12-04"]
[{"$f":"IF(BA359=\"\",\"\",YEAR(BB359))","v":2018},{"$f":"IF(A359=\"\",\"\",TEXT(BA359,\"d/mm\")&\"-\"&TEXT(BB359,\"d/mm\"))","v":"5/12-5/12"},0.77739036572857823,0,0,0,0,55.625754704761611,55.625754704761611,0,0,null,null,null,null,null,null,null,null,null,null,0,null,null,null,null,null,null,null,null,null,null,null,null,null,null,null,null,null,null,null,null,null,null,null,null,null,null,null,null,null,null,"2018-12-05","2018-12-05"]
[2018,"6/12-6/12",0.73387878891857339,0,0,0,0,55.625754704761611,55.625754704761611,0,0,null,null,null,null,null,null,null,null,null,null,0,null,null,null,null,null,null,null,null,null,null,null,null,null,null,null,null,null,null,null,null,null,null,null,null,null,null,null,null,null,null,"2018-12-06","2018-12-06"]
[2018,"7/12-7/12",0.71371845151177293,0,0,0,0,55.625754704761611,55.625754704761611,0,0,null,null,null,null,null,null,null,null,null,null,0,null,null,null,null,null,null,null,null,null,null,null,null,null,null,null,null,null,null,null,null,null,null,null,null,null,null,null,null,null,null,"2018-12-07","2018-12-07"]
[2018,"8/12-8/12",0.75470933403689378,0,0,0,0,55.625754704761611,55.625754704761611,0,0,null,null,null,null,null,null,null,null,null,null,0,null,null,null,null,null,null,null,null,null,null,null,null,null,null,null,null,null,null,null,null,null,null,null,null,null,null,null,null,null,null,"2018-12-08","2018-12-08"]
[2018,"9/12-9/12",0.74087043752186077,0,0,0,0,55.625754704761611,55.625754704761611,0,0,null,null,null,null,null,null,null,null,null,null,0,null,null,null,null,null,null,null,null,null,null,null,null,null,null,null,null,null,null,null,null,null,null,null,null,null,null,null,null,null,null,"2018-12-09","2018-12-09"]
[2018,"10/12-10/12",1.0024561021357532,0,0,0,0,55.625754704761611,55.625754704761611,0,0,null,null,null,null,null,null,null,null,null,null,0,null,null,null,null,null,null,null,null,null,null,null,null,null,null,null,null,null,null,null,null,null,null,null,null,null,null,null,null,null,null,"2018-12-10","2018-12-10"]
[2018,"11/12-11/12",1.028273247129285,0,0,2.032,2.032,55.625754704761611,55.625754704761611,0,0,null,null,null,null,null,null,null,null,null,null,2.0320000000000036,null,null,null,null,null,null,null,null,null,null,null,null,null,null,null,null,null,null,null,null,null,null,null,null,null,null,null,null,null,null,"2018-12-11","2018-12-11"]
[2018,"12/12-12/12",0.91315500224041068,0,0,28.955999999999996,28.955999999999996,55.625754704761611,55.625754704761611,0,0,null,null,null,null,null,null,null,null,null,null,28.955999999999996,null,null,null,null,null,null,null,null,null,null,null,null,null,null,null,null,null,null,null,null,null,null,null,null,null,null,null,null,null,null,"2018-12-12","2018-12-12"]
[2018,"13/12-13/12",0.68323473820788683,0,0,0,0,55.625754704761611,55.625754704761611,0,0,null,null,null,null,null,null,null,null,null,null,0,null,null,null,null,null,null,null,null,null,null,null,null,null,null,null,null,null,null,null,null,null,null,null,null,null,null,null,null,null,null,"2018-12-13","2018-12-13"]
[2018,"14/12-14/12",0.71464847786972951,0,0,0,0,55.625754704761611,55.625754704761611,0,0,null,null,null,null,null,null,null,null,null,null,0,null,null,null,null,null,null,null,null,null,null,null,null,null,null,null,null,null,null,null,null,null,null,null,null,null,null,null,null,null,null,"2018-12-14","2018-12-14"]
[2018,"15/12-15/12",0.82634351192978395,0,0,0.7619999999999999,0.7619999999999999,55.625754704761611,55.625754704761611,0,0,null,null,null,null,null,null,null,null,null,null,0.76200000000000045,null,null,null,null,null,null,null,null,null,null,null,null,null,null,null,null,null,null,null,null,null,null,null,null,null,null,null,null,null,null,"2018-12-15","2018-12-15"]
[2018,"16/12-16/12",0.9219839253998483,0,0,1.016,1.016,55.625754704761611,55.625754704761611,0,0,null,null,null,null,null,null,null,null,null,null,1.0159999999999982,null,null,null,null,null,null,null,null,null,null,null,null,null,null,null,null,null,null,null,null,null,null,null,null,null,null,null,null,null,null,"2018-12-16","2018-12-16"]
[2018,"17/12-17/12",0.70840448752971774,0,0,0,0,55.625754704761611,55.625754704761611,0,0,null,null,null,null,null,null,null,null,null,null,0,null,null,null,null,null,null,null,null,null,null,null,null,null,null,null,null,null,null,null,null,null,null,null,null,null,null,null,null,null,null,"2018-12-17","2018-12-17"]
[2018,"18/12-18/12",0.65938885035779404,0,0,0,0,55.625754704761611,55.625754704761611,0,0,null,null,null,null,null,null,null,null,null,null,0,null,null,null,null,null,null,null,null,null,null,null,null,null,null,null,null,null,null,null,null,null,null,null,null,null,null,null,null,null,null,"2018-12-18","2018-12-18"]
[2018,"19/12-19/12",0.68659754290416153,0,0,0,0,55.625754704761611,55.625754704761611,0,0,null,null,null,null,null,null,null,null,null,null,0,null,null,null,null,null,null,null,null,null,null,null,null,null,null,null,null,null,null,null,null,null,null,null,null,null,null,null,null,null,null,"2018-12-19","2018-12-19"]
[2018,"20/12-20/12",0.77044354277438065,0,0,0,0,55.625754704761611,55.625754704761611,0,0,null,null,null,null,null,null,null,null,null,null,0,null,null,null,null,null,null,null,null,null,null,null,null,null,null,null,null,null,null,null,null,null,null,null,null,null,null,null,null,null,null,"2018-12-20","2018-12-20"]
[2018,"21/12-21/12",0.71557794962391319,0,0,0,0,55.625754704761611,55.625754704761611,0,0,null,null,null,null,null,null,null,null,null,null,0,null,null,null,null,null,null,null,null,null,null,null,null,null,null,null,null,null,null,null,null,null,null,null,null,null,null,null,null,null,null,"2018-12-21","2018-12-21"]
[2018,"22/12-22/12",0.68574354768321732,0,0,0,0,55.625754704761611,55.625754704761611,0,0,null,null,null,null,null,null,null,null,null,null,0,null,null,null,null,null,null,null,null,null,null,null,null,null,null,null,null,null,null,null,null,null,null,null,null,null,null,null,null,null,null,"2018-12-22","2018-12-22"]
[2018,"23/12-23/12",0.73450601358088385,0,0,0,0,55.625754704761611,55.625754704761611,0,0,null,null,null,null,null,null,null,null,null,null,0,null,null,null,null,null,null,null,null,null,null,null,null,null,null,null,null,null,null,null,null,null,null,null,null,null,null,null,null,null,null,"2018-12-23","2018-12-23"]
[2018,"24/12-24/12",0.64235305925284825,0,0,0,0,55.625754704761611,55.625754704761611,0,0,null,null,null,null,null,null,null,null,null,null,0,null,null,null,null,null,null,null,null,null,null,null,null,null,null,null,null,null,null,null,null,null,null,null,null,null,null,null,null,null,null,"2018-12-24","2018-12-24"]
[2018,"25/12-25/12",0.77277884545622566,0,0,0,0,55.625754704761611,55.625754704761611,0,0,null,null,null,null,null,null,null,null,null,null,0,null,null,null,null,null,null,null,null,null,null,null,null,null,null,null,null,null,null,null,null,null,null,null,null,null,null,null,null,null,null,"2018-12-25","2018-12-25"]
[2018,"26/12-26/12",0.87691577415462718,0,0,0,0,55.625754704761611,55.625754704761611,0,0,null,null,null,null,null,null,null,null,null,null,0,null,null,null,null,null,null,null,null,null,null,null,null,null,null,null,null,null,null,null,null,null,null,null,null,null,null,null,null,null,null,"2018-12-26","2018-12-26"]
[2018,"27/12-27/12",0.76004179690216889,0,0,6.0959999999999992,6.0959999999999992,55.625754704761611,55.625754704761611,0,0,null,null,null,null,null,null,null,null,null,null,6.0959999999999965,null,null,null,null,null,null,null,null,null,null,null,null,null,null,null,null,null,null,null,null,null,null,null,null,null,null,null,null,null,null,"2018-12-27","2018-12-27"]
[2018,"28/12-28/12",0.96270501532941599,0,0,2.032,2.032,55.625754704761611,55.625754704761611,0,0,null,null,null,null,null,null,null,null,null,null,2.0320000000000036,null,null,null,null,null,null,null,null,null,null,null,null,null,null,null,null,null,null,null,null,null,null,null,null,null,null,null,null,null,null,"2018-12-28","2018-12-28"]
[2018,"29/12-29/12",0.9765543193941828,0,0,0.50800000000000001,0.50800000000000001,55.625754704761611,55.625754704761611,0,0,null,null,null,null,null,null,null,null,null,null,0.50800000000000267,null,null,null,null,null,null,null,null,null,null,null,null,null,null,null,null,null,null,null,null,null,null,null,null,null,null,null,null,null,null,"2018-12-29","2018-12-29"]
[2018,"30/12-30/12",0.95060696406249878,0,0,0.50800000000000001,0.50800000000000001,55.625754704761611,55.625754704761611,0,0,null,null,null,null,null,null,null,null,null,null,0.50800000000000267,null,null,null,null,null,null,null,null,null,null,null,null,null,null,null,null,null,null,null,null,null,null,null,null,null,null,null,null,null,null,"2018-12-30","2018-12-30"]
[2018,"31/12-31/12",0.806778659718692,0,0,0,0,55.625754704761611,55.625754704761611,0,0,null,null,null,null,null,null,null,null,null,null,0,null,null,null,null,null,null,null,null,null,null,null,null,null,null,null,null,null,null,null,null,null,null,null,null,null,null,null,null,null,null,"2018-12-31","2018-12-31"]
["","",null,null,"",null,"","","",null,"",null,null,null,null,null,null,null,null,null,null,"",null,null,null,null,null,null,null,null,null,null,null,null,null,null,null,null,null,null,null,null,null,null,null,null,null,null,null,null,null,null,"",""]
[{"$f":"IF(BA387=\"\",\"\",YEAR(BB387))","v":""},{"$f":"IF(A387=\"\",\"\",TEXT(BA387,\"d/mm\")&\"-\"&TEXT(BB387,\"d/mm\"))","v":""},null,null,"",null,"","","",null,"",null,null,null,null,null,null,null,null,null,null,"",null,null,null,null,null,null,null,null,null,null,null,null,null,null,null,null,null,null,null,null,null,null,null,null,null,null,null,null,null,null,"",""]
["","",null,null,"",null,"","","",null,"",null,null,null,null,null,null,null,null,null,null,"",null,null,null,null,null,null,null,null,null,null,null,null,null,null,null,null,null,null,null,null,null,null,null,null,null,null,null,null,null,null,"",""]
["","",null,null,"",null,"","","",null,"",null,null,null,null,null,null,null,null,null,null,"",null,null,null,null,null,null,null,null,null,null,null,null,null,null,null,null,null,null,null,null,null,null,null,null,null,null,null,null,null,null,"",""]
["","",null,null,"",null,"","","",null,"",null,null,null,null,null,null,null,null,null,null,"",null,null,null,null,null,null,null,null,null,null,null,null,null,null,null,null,null,null,null,null,null,null,null,null,null,null,null,null,null,null,"",""]
["","",null,null,"",null,"","","",null,"",null,null,null,null,null,null,null,null,null,null,"",null,null,null,null,null,null,null,null,null,null,null,null,null,null,null,null,null,null,null,null,null,null,null,null,null,null,null,null,null,null,"",""]
["","",null,null,"",null,"","","",null,"",null,null,null,null,null,null,null,null,null,null,"",null,null,null,null,null,null,null,null,null,null,null,null,null,null,null,null,null,null,null,null,null,null,null,null,null,null,null,null,null,null,"",""]
["","",null,null,"",null,"","","",null,"",null,null,null,null,null,null,null,null,null,null,"",null,null,null,null,null,null,null,null,null,null,null,null,null,null,null,null,null,null,null,null,null,null,null,null,null,null,null,null,null,null,"",""]
["","",null,null,"",null,"","","",null,"",null,null,null,null,null,null,null,null,null,null,"",null,null,null,null,null,null,null,null,null,null,null,null,null,null,null,null,null,null,null,null,null,null,null,null,null,null,null,null,null,null,"",""]
["","",null,null,"",null,"","","",null,"",null,null,null,null,null,null,null,null,null,null,"",null,null,null,null,null,null,null,null,null,null,null,null,null,null,null,null,null,null,null,null,null,null,null,null,null,null,null,null,null,null,"",""]
["","",null,null,"",null,"","","",null,"",null,null,null,null,null,null,null,null,null,null,"",null,null,null,null,null,null,null,null,null,null,null,null,null,null,null,null,null,null,null,null,null,null,null,null,null,null,null,null,null,null,"",""]
["","",null,null,"",null,"","","",null,"",null,null,null,null,null,null,null,null,null,null,"",null,null,null,null,null,null,null,null,null,null,null,null,null,null,null,null,null,null,null,null,null,null,null,null,null,null,null,null,null,null,"",""]
["","",null,null,"",null,"","","",null,"",null,null,null,null,null,null,null,null,null,null,"",null,null,null,null,null,null,null,null,null,null,null,null,null,null,null,null,null,null,null,null,null,null,null,null,null,null,null,null,null,null,"",""]
["","",null,null,"",null,"","","",null,"",null,null,null,null,null,null,null,null,null,null,"",null,null,null,null,null,null,null,null,null,null,null,null,null,null,null,null,null,null,null,null,null,null,null,null,null,null,null,null,null,null,"",""]
["","",null,null,"",null,"","","",null,"",null,null,null,null,null,null,null,null,null,null,"",null,null,null,null,null,null,null,null,null,null,null,null,null,null,null,null,null,null,null,null,null,null,null,null,null,null,null,null,null,null,"",""]
["","",null,null,"",null,"","","",null,"",null,null,null,null,null,null,null,null,null,null,"",null,null,null,null,null,null,null,null,null,null,null,null,null,null,null,null,null,null,null,null,null,null,null,null,null,null,null,null,null,null,"",""]
["","",null,null,"",null,"","","",null,"",null,null,null,null,null,null,null,null,null,null,"",null,null,null,null,null,null,null,null,null,null,null,null,null,null,null,null,null,null,null,null,null,null,null,null,null,null,null,null,null,null,"",""]
["","",null,null,"",null,"","","",null,"",null,null,null,null,null,null,null,null,null,null,"",null,null,null,null,null,null,null,null,null,null,null,null,null,null,null,null,null,null,null,null,null,null,null,null,null,null,null,null,null,null,"",""]
["","",null,null,"",null,"","","",null,"",null,null,null,null,null,null,null,null,null,null,"",null,null,null,null,null,null,null,null,null,null,null,null,null,null,null,null,null,null,null,null,null,null,null,null,null,null,null,null,null,null,"",""]
["","",null,null,"",null,"","","",null,"",null,null,null,null,null,null,null,null,null,null,"",null,null,null,null,null,null,null,null,null,null,null,null,null,null,null,null,null,null,null,null,null,null,null,null,null,null,null,null,null,null,"",""]
["","",null,null,"",null,"","",{"$f":"IF(G406=\"\",\"\",MAX(MIN($K$13*$B$13,H406+G406),0))","v":""},null,{"$f":"IF(OR(A406=\"\",G406=\"\"),\"\",J406/$H$15)","v":""},null,null,null,null,null,null,null,null,null,null,"",null,null,null,null,null,null,null,null,null,null,null,null,null,null,null,null,null,null,null,null,null,null,null,null,null,null,null,null,null,null,"",{"$f":"IF(BA406=\"\",\"\",BA406+$X$1-1)","v":""}]
["","",null,null,{"$f":"IF(OR(A407=\"\", C407=\"\",D407=\"\",E406=\"\"),\"\",C407*D407)","v":""},null,{"$f":"IF(OR(A407=\"\", C407=\"\",D407=\"\",F407=\"\",G406=\"\"),\"\",J407+F407-E407)","v":""},{"$f":"IF(G407=\"\",\"\",MAX(I406,0))","v":""},"",null,"",null,null,null,null,null,null,null,null,null,null,{"$f":"IF(OR(A407=\"\",J407=\"\"),\"\",IF(AND(F407=0,J407=0),0,MAX(I406+G407-$N$13,0)))","v":""},null,null,null,null,null,null,null,null,null,null,null,null,null,null,null,null,null,null,null,null,null,null,null,null,null,null,null,null,null,null,{"$f":"IF(BB406<$H$17,BB406+1,\"\")","v":""},""]
["","",null,null,"",null,"","","",null,"",null,null,null,null,null,null,null,null,null,null,"",null,null,null,null,null,null,null,null,null,null,null,null,null,null,null,null,null,null,null,null,null,null,null,null,null,null,null,null,null,null,"",""]
["","",null,null,"",null,"","","",null,"",null,null,null,null,null,null,null,null,null,null,"",null,null,null,null,null,null,null,null,null,null,null,null,null,null,null,null,null,null,null,null,null,null,null,null,null,null,null,null,null,null,"",""]
["","",null,null,"",null,"","","",null,"",null,null,null,null,null,null,null,null,null,null,"",null,null,null,null,null,null,null,null,null,null,null,null,null,null,null,null,null,null,null,null,null,null,null,null,null,null,null,null,null,null,"",""]
["","",null,null,"",null,"","","",null,"",null,null,null,null,null,null,null,null,null,null,"",null,null,null,null,null,null,null,null,null,null,null,null,null,null,null,null,null,null,null,null,null,null,null,null,null,null,null,null,null,null,"",""]
["","",null,null,"",null,"","","",null,"",null,null,null,null,null,null,null,null,null,null,"",null,null,null,null,null,null,null,null,null,null,null,null,null,null,null,null,null,null,null,null,null,null,null,null,null,null,null,null,null,null,"",""]
["","",null,null,"",null,"","","",null,"",null,null,null,null,null,null,null,null,null,null,"",null,null,null,null,null,null,null,null,null,null,null,null,null,null,null,null,null,null,null,null,null,null,null,null,null,null,null,null,null,null,"",""]
["","",null,null,"",null,"","","",null,"",null,null,null,null,null,null,null,null,null,null,"",null,null,null,null,null,null,null,null,null,null,null,null,null,null,null,null,null,null,null,null,null,null,null,null,null,null,null,null,null,null,"",""]
["","",null,null,"",null,"","","",null,"",null,null,null,null,null,null,null,null,null,null,"",null,null,null,null,null,null,null,null,null,null,null,null,null,null,null,null,null,null,null,null,null,null,null,null,null,null,null,null,null,null,"",""]
["","",null,null,"",null,"","","",null,"",null,null,null,null,null,null,null,null,null,null,"",null,null,null,null,null,null,null,null,null,null,null,null,null,null,null,null,null,null,null,null,null,null,null,null,null,null,null,null,null,null,"",""]
["","",null,null,"",null,"","","",null,"",null,null,null,null,null,null,null,null,null,null,"",null,null,null,null,null,null,null,null,null,null,null,null,null,null,null,null,null,null,null,null,null,null,null,null,null,null,null,null,null,null,"",""]
["","",null,null,"",null,"","","",null,"",null,null,null,null,null,null,null,null,null,null,"",null,null,null,null,null,null,null,null,null,null,null,null,null,null,null,null,null,null,null,null,null,null,null,null,null,null,null,null,null,null,"",""]
["","",null,null,"",null,"","","",null,"",null,null,null,null,null,null,null,null,null,null,"",null,null,null,null,null,null,null,null,null,null,null,null,null,null,null,null,null,null,null,null,null,null,null,null,null,null,null,null,null,null,"",""]
["","",null,null,"",null,"","","",null,"",null,null,null,null,null,null,null,null,null,null,"",null,null,null,null,null,null,null,null,null,null,null,null,null,null,null,null,null,null,null,null,null,null,null,null,null,null,null,null,null,null,"",""]
["","",null,null,"",null,"","","",null,"",null,null,null,null,null,null,null,null,null,null,"",null,null,null,null,null,null,null,null,null,null,null,null,null,null,null,null,null,null,null,null,null,null,null,null,null,null,null,null,null,null,"",""]
["","",null,null,"",null,"","","",null,"",null,null,null,null,null,null,null,null,null,null,"",null,null,null,null,null,null,null,null,null,null,null,null,null,null,null,null,null,null,null,null,null,null,null,null,null,null,null,null,null,null,"",""]
["","",null,null,"",null,"","","",null,"",null,null,null,null,null,null,null,null,null,null,"",null,null,null,null,null,null,null,null,null,null,null,null,null,null,null,null,null,null,null,null,null,null,null,null,null,null,null,null,null,null,"",""]
["","",null,null,"",null,"","","",null,"",null,null,null,null,null,null,null,null,null,null,"",null,null,null,null,null,null,null,null,null,null,null,null,null,null,null,null,null,null,null,null,null,null,null,null,null,null,null,null,null,null,"",""]
["","",null,null,"",null,"","","",null,"",null,null,null,null,null,null,null,null,null,null,"",null,null,null,null,null,null,null,null,null,null,null,null,null,null,null,null,null,null,null,null,null,null,null,null,null,null,null,null,null,null,"",""]
["","",null,null,"",null,"","","",null,"",null,null,null,null,null,null,null,null,null,null,"",null,null,null,null,null,null,null,null,null,null,null,null,null,null,null,null,null,null,null,null,null,null,null,null,null,null,null,null,null,null,"",""]
["","",null,null,"",null,"","","",null,"",null,null,null,null,null,null,null,null,null,null,"",null,null,null,null,null,null,null,null,null,null,null,null,null,null,null,null,null,null,null,null,null,null,null,null,null,null,null,null,null,null,"",""]
["","",null,null,"",null,"","","",null,"",null,null,null,null,null,null,null,null,null,null,"",null,null,null,null,null,null,null,null,null,null,null,null,null,null,null,null,null,null,null,null,null,null,null,null,null,null,null,null,null,null,"",""]
["","",null,null,"",null,"","","",null,"",null,null,null,null,null,null,null,null,null,null,"",null,null,null,null,null,null,null,null,null,null,null,null,null,null,null,null,null,null,null,null,null,null,null,null,null,null,null,null,null,null,"",""]
["","",null,null,"",null,"","","",null,"",null,null,null,null,null,null,null,null,null,null,"",null,null,null,null,null,null,null,null,null,null,null,null,null,null,null,null,null,null,null,null,null,null,null,null,null,null,null,null,null,null,"",""]
["","",null,null,"",null,"","","",null,"",null,null,null,null,null,null,null,null,null,null,"",null,null,null,null,null,null,null,null,null,null,null,null,null,null,null,null,null,null,null,null,null,null,null,null,null,null,null,null,null,null,"",""]
["","",null,null,"",null,"","","",null,"",null,null,null,null,null,null,null,null,null,null,"",null,null,null,null,null,null,null,null,null,null,null,null,null,null,null,null,null,null,null,null,null,null,null,null,null,null,null,null,null,null,"",""]
["","",null,null,"",null,"","","",null,"",null,null,null,null,null,null,null,null,null,null,"",null,null,null,null,null,null,null,null,null,null,null,null,null,null,null,null,null,null,null,null,null,null,null,null,null,null,null,null,null,null,"",""]
["","",null,null,"",null,"","","",null,"",null,null,null,null,null,null,null,null,null,null,"",null,null,null,null,null,null,null,null,null,null,null,null,null,null,null,null,null,null,null,null,null,null,null,null,null,null,null,null,null,null,"",""]
["","",null,null,"",null,"","","",null,"",null,null,null,null,null,null,null,null,null,null,"",null,null,null,null,null,null,null,null,null,null,null,null,null,null,null,null,null,null,null,null,null,null,null,null,null,null,null,null,null,null,"",""]
["","",null,null,"",null,"","","",null,"",null,null,null,null,null,null,null,null,null,null,"",null,null,null,null,null,null,null,null,null,null,null,null,null,null,null,null,null,null,null,null,null,null,null,null,null,null,null,null,null,null,"",""]
["","",null,null,"",null,"","","",null,"",null,null,null,null,null,null,null,null,null,null,"",null,null,null,null,null,null,null,null,null,null,null,null,null,null,null,null,null,null,null,null,null,null,null,null,null,null,null,null,null,null,"",""]
["","",null,null,"",null,"","","",null,"",null,null,null,null,null,null,null,null,null,null,"",null,null,null,null,null,null,null,null,null,null,null,null,null,null,null,null,null,null,null,null,null,null,null,null,null,null,null,null,null,null,"",""]
["","",null,null,"",null,"","","",null,"",null,null,null,null,null,null,null,null,null,null,"",null,null,null,null,null,null,null,null,null,null,null,null,null,null,null,null,null,null,null,null,null,null,null,null,null,null,null,null,null,null,"",""]
["","",null,null,"",null,"","","",null,"",null,null,null,null,null,null,null,null,null,null,"",null,null,null,null,null,null,null,null,null,null,null,null,null,null,null,null,null,null,null,null,null,null,null,null,null,null,null,null,null,null,"",""]
["","",null,null,"",null,"","","",null,"",null,null,null,null,null,null,null,null,null,null,"",null,null,null,null,null,null,null,null,null,null,null,null,null,null,null,null,null,null,null,null,null,null,null,null,null,null,null,null,null,null,"",""]
["","",null,null,"",null,"","","",null,"",null,null,null,null,null,null,null,null,null,null,"",null,null,null,null,null,null,null,null,null,null,null,null,null,null,null,null,null,null,null,null,null,null,null,null,null,null,null,null,null,null,"",""]
["","",null,null,"",null,"","","",null,"",null,null,null,null,null,null,null,null,null,null,"",null,null,null,null,null,null,null,null,null,null,null,null,null,null,null,null,null,null,null,null,null,null,null,null,null,null,null,null,null,null,"",""]
["","",null,null,"",null,"","","",null,"",null,null,null,null,null,null,null,null,null,null,"",null,null,null,null,null,null,null,null,null,null,null,null,null,null,null,null,null,null,null,null,null,null,null,null,null,null,null,null,null,null,"",""]
["","",null,null,"",null,"","","",null,"",null,null,null,null,null,null,null,null,null,null,"",null,null,null,null,null,null,null,null,null,null,null,null,null,null,null,null,null,null,null,null,null,null,null,null,null,null,null,null,null,null,"",""]
["","",null,null,"",null,"","","",null,"",null,null,null,null,null,null,null,null,null,null,"",null,null,null,null,null,null,null,null,null,null,null,null,null,null,null,null,null,null,null,null,null,null,null,null,null,null,null,null,null,null,"",""]
["","",null,null,"",null,"","","",null,"",null,null,null,null,null,null,null,null,null,null,"",null,null,null,null,null,null,null,null,null,null,null,null,null,null,null,null,null,null,null,null,null,null,null,null,null,null,null,null,null,null,"",""]
["","",null,null,"",null,"","","",null,"",null,null,null,null,null,null,null,null,null,null,"",null,null,null,null,null,null,null,null,null,null,null,null,null,null,null,null,null,null,null,null,null,null,null,null,null,null,null,null,null,null,"",""]
["","",null,null,"",null,"","","",null,"",null,null,null,null,null,null,null,null,null,null,"",null,null,null,null,null,null,null,null,null,null,null,null,null,null,null,null,null,null,null,null,null,null,null,null,null,null,null,null,null,null,"",""]
["","",null,null,"",null,"","","",null,"",null,null,null,null,null,null,null,null,null,null,"",null,null,null,null,null,null,null,null,null,null,null,null,null,null,null,null,null,null,null,null,null,null,null,null,null,null,null,null,null,null,"",""]
[{"$f":"IF(BA451=\"\",\"\",YEAR(BB451))","v":""},{"$f":"IF(A451=\"\",\"\",TEXT(BA451,\"d/mm\")&\"-\"&TEXT(BB451,\"d/mm\"))","v":""},null,null,"",null,"","","",null,"",null,null,null,null,null,null,null,null,null,null,"",null,null,null,null,null,null,null,null,null,null,null,null,null,null,null,null,null,null,null,null,null,null,null,null,null,null,null,null,null,null,"",""]
["","",null,null,"",null,"","","",null,"",null,null,null,null,null,null,null,null,null,null,"",null,null,null,null,null,null,null,null,null,null,null,null,null,null,null,null,null,null,null,null,null,null,null,null,null,null,null,null,null,null,"",""]
["","",null,null,"",null,"","","",null,"",null,null,null,null,null,null,null,null,null,null,"",null,null,null,null,null,null,null,null,null,null,null,null,null,null,null,null,null,null,null,null,null,null,null,null,null,null,null,null,null,null,"",""]
["","",null,null,"",null,"","","",null,"",null,null,null,null,null,null,null,null,null,null,"",null,null,null,null,null,null,null,null,null,null,null,null,null,null,null,null,null,null,null,null,null,null,null,null,null,null,null,null,null,null,"",""]
["","",null,null,"",null,"","","",null,"",null,null,null,null,null,null,null,null,null,null,"",null,null,null,null,null,null,null,null,null,null,null,null,null,null,null,null,null,null,null,null,null,null,null,null,null,null,null,null,null,null,"",""]
["","",null,null,"",null,"","","",null,"",null,null,null,null,null,null,null,null,null,null,"",null,null,null,null,null,null,null,null,null,null,null,null,null,null,null,null,null,null,null,null,null,null,null,null,null,null,null,null,null,null,"",""]
["","",null,null,"",null,"","","",null,"",null,null,null,null,null,null,null,null,null,null,"",null,null,null,null,null,null,null,null,null,null,null,null,null,null,null,null,null,null,null,null,null,null,null,null,null,null,null,null,null,null,"",""]
["","",null,null,"",null,"","","",null,"",null,null,null,null,null,null,null,null,null,null,"",null,null,null,null,null,null,null,null,null,null,null,null,null,null,null,null,null,null,null,null,null,null,null,null,null,null,null,null,null,null,"",""]
["","",null,null,"",null,"","","",null,"",null,null,null,null,null,null,null,null,null,null,"",null,null,null,null,null,null,null,null,null,null,null,null,null,null,null,null,null,null,null,null,null,null,null,null,null,null,null,null,null,null,"",""]
["","",null,null,"",null,"","","",null,"",null,null,null,null,null,null,null,null,null,null,"",null,null,null,null,null,null,null,null,null,null,null,null,null,null,null,null,null,null,null,null,null,null,null,null,null,null,null,null,null,null,"",""]
["","",null,null,"",null,"","","",null,"",null,null,null,null,null,null,null,null,null,null,"",null,null,null,null,null,null,null,null,null,null,null,null,null,null,null,null,null,null,null,null,null,null,null,null,null,null,null,null,null,null,"",""]
["","",null,null,"",null,"","","",null,"",null,null,null,null,null,null,null,null,null,null,"",null,null,null,null,null,null,null,null,null,null,null,null,null,null,null,null,null,null,null,null,null,null,null,null,null,null,null,null,null,null,"",""]
["","",null,null,"",null,"","","",null,"",null,null,null,null,null,null,null,null,null,null,"",null,null,null,null,null,null,null,null,null,null,null,null,null,null,null,null,null,null,null,null,null,null,null,null,null,null,null,null,null,null,"",""]
["","",null,null,"",null,"","","",null,"",null,null,null,null,null,null,null,null,null,null,"",null,null,null,null,null,null,null,null,null,null,null,null,null,null,null,null,null,null,null,null,null,null,null,null,null,null,null,null,null,null,"",""]
["","",null,null,"",null,"","","",null,"",null,null,null,null,null,null,null,null,null,null,"",null,null,null,null,null,null,null,null,null,null,null,null,null,null,null,null,null,null,null,null,null,null,null,null,null,null,null,null,null,null,"",""]
["","",null,null,"",null,"","","",null,"",null,null,null,null,null,null,null,null,null,null,"",null,null,null,null,null,null,null,null,null,null,null,null,null,null,null,null,null,null,null,null,null,null,null,null,null,null,null,null,null,null,"",""]
["","",null,null,"",null,"","","",null,"",null,null,null,null,null,null,null,null,null,null,"",null,null,null,null,null,null,null,null,null,null,null,null,null,null,null,null,null,null,null,null,null,null,null,null,null,null,null,null,null,null,"",""]
["","",null,null,"",null,"","","",null,"",null,null,null,null,null,null,null,null,null,null,"",null,null,null,null,null,null,null,null,null,null,null,null,null,null,null,null,null,null,null,null,null,null,null,null,null,null,null,null,null,null,"",""]
["","",null,null,"",null,"","","",null,"",null,null,null,null,null,null,null,null,null,null,"",null,null,null,null,null,null,null,null,null,null,null,null,null,null,null,null,null,null,null,null,null,null,null,null,null,null,null,null,null,null,"",""]
["","",null,null,"",null,"","",{"$f":"IF(G470=\"\",\"\",MAX(MIN($K$13*$B$13,H470+G470),0))","v":""},null,{"$f":"IF(OR(A470=\"\",G470=\"\"),\"\",J470/$H$15)","v":""},null,null,null,null,null,null,null,null,null,null,"",null,null,null,null,null,null,null,null,null,null,null,null,null,null,null,null,null,null,null,null,null,null,null,null,null,null,null,null,null,null,"",{"$f":"IF(BA470=\"\",\"\",BA470+$X$1-1)","v":""}]
["","",null,null,{"$f":"IF(OR(A471=\"\", C471=\"\",D471=\"\",E470=\"\"),\"\",C471*D471)","v":""},null,{"$f":"IF(OR(A471=\"\", C471=\"\",D471=\"\",F471=\"\",G470=\"\"),\"\",J471+F471-E471)","v":""},{"$f":"IF(G471=\"\",\"\",MAX(I470,0))","v":""},"",null,"",null,null,null,null,null,null,null,null,null,null,{"$f":"IF(OR(A471=\"\",J471=\"\"),\"\",IF(AND(F471=0,J471=0),0,MAX(I470+G471-$N$13,0)))","v":""},null,null,null,null,null,null,null,null,null,null,null,null,null,null,null,null,null,null,null,null,null,null,null,null,null,null,null,null,null,null,{"$f":"IF(BB470<$H$17,BB470+1,\"\")","v":""},""]
["","",null,null,"",null,"","","",null,"",null,null,null,null,null,null,null,null,null,null,"",null,null,null,null,null,null,null,null,null,null,null,null,null,null,null,null,null,null,null,null,null,null,null,null,null,null,null,null,null,null,"",""]
["","",null,null,"",null,"","","",null,"",null,null,null,null,null,null,null,null,null,null,"",null,null,null,null,null,null,null,null,null,null,null,null,null,null,null,null,null,null,null,null,null,null,null,null,null,null,null,null,null,null,"",""]
["","",null,null,"",null,"","","",null,"",null,null,null,null,null,null,null,null,null,null,"",null,null,null,null,null,null,null,null,null,null,null,null,null,null,null,null,null,null,null,null,null,null,null,null,null,null,null,null,null,null,"",""]
["","",null,null,"",null,"","","",null,"",null,null,null,null,null,null,null,null,null,null,"",null,null,null,null,null,null,null,null,null,null,null,null,null,null,null,null,null,null,null,null,null,null,null,null,null,null,null,null,null,null,"",""]
["","",null,null,"",null,"","","",null,"",null,null,null,null,null,null,null,null,null,null,"",null,null,null,null,null,null,null,null,null,null,null,null,null,null,null,null,null,null,null,null,null,null,null,null,null,null,null,null,null,null,"",""]
["","",null,null,"",null,"","","",null,"",null,null,null,null,null,null,null,null,null,null,"",null,null,null,null,null,null,null,null,null,null,null,null,null,null,null,null,null,null,null,null,null,null,null,null,null,null,null,null,null,null,"",""]
["","",null,null,"",null,"","","",null,"",null,null,null,null,null,null,null,null,null,null,"",null,null,null,null,null,null,null,null,null,null,null,null,null,null,null,null,null,null,null,null,null,null,null,null,null,null,null,null,null,null,"",""]
["","",null,null,"",null,"","","",null,"",null,null,null,null,null,null,null,null,null,null,"",null,null,null,null,null,null,null,null,null,null,null,null,null,null,null,null,null,null,null,null,null,null,null,null,null,null,null,null,null,null,"",""]
["","",null,null,"",null,"","","",null,"",null,null,null,null,null,null,null,null,null,null,"",null,null,null,null,null,null,null,null,null,null,null,null,null,null,null,null,null,null,null,null,null,null,null,null,null,null,null,null,null,null,"",""]
["","",null,null,"",null,"","","",null,"",null,null,null,null,null,null,null,null,null,null,"",null,null,null,null,null,null,null,null,null,null,null,null,null,null,null,null,null,null,null,null,null,null,null,null,null,null,null,null,null,null,"",""]
["","",null,null,"",null,"","","",null,"",null,null,null,null,null,null,null,null,null,null,"",null,null,null,null,null,null,null,null,null,null,null,null,null,null,null,null,null,null,null,null,null,null,null,null,null,null,null,null,null,null,"",""]
["","",null,null,"",null,"","","",null,"",null,null,null,null,null,null,null,null,null,null,"",null,null,null,null,null,null,null,null,null,null,null,null,null,null,null,null,null,null,null,null,null,null,null,null,null,null,null,null,null,null,"",""]
["","",null,null,"",null,"","","",null,"",null,null,null,null,null,null,null,null,null,null,"",null,null,null,null,null,null,null,null,null,null,null,null,null,null,null,null,null,null,null,null,null,null,null,null,null,null,null,null,null,null,"",""]
["","",null,null,"",null,"","","",null,"",null,null,null,null,null,null,null,null,null,null,"",null,null,null,null,null,null,null,null,null,null,null,null,null,null,null,null,null,null,null,null,null,null,null,null,null,null,null,null,null,null,"",""]
["","",null,null,"",null,"","","",null,"",null,null,null,null,null,null,null,null,null,null,"",null,null,null,null,null,null,null,null,null,null,null,null,null,null,null,null,null,null,null,null,null,null,null,null,null,null,null,null,null,null,"",""]
["","",null,null,"",null,"","","",null,"",null,null,null,null,null,null,null,null,null,null,"",null,null,null,null,null,null,null,null,null,null,null,null,null,null,null,null,null,null,null,null,null,null,null,null,null,null,null,null,null,null,"",""]
["","",null,null,"",null,"","","",null,"",null,null,null,null,null,null,null,null,null,null,"",null,null,null,null,null,null,null,null,null,null,null,null,null,null,null,null,null,null,null,null,null,null,null,null,null,null,null,null,null,null,"",""]
["","",null,null,"",null,"","","",null,"",null,null,null,null,null,null,null,null,null,null,"",null,null,null,null,null,null,null,null,null,null,null,null,null,null,null,null,null,null,null,null,null,null,null,null,null,null,null,null,null,null,"",""]
["","",null,null,"",null,"","","",null,"",null,null,null,null,null,null,null,null,null,null,"",null,null,null,null,null,null,null,null,null,null,null,null,null,null,null,null,null,null,null,null,null,null,null,null,null,null,null,null,null,null,"",""]
["","",null,null,"",null,"","","",null,"",null,null,null,null,null,null,null,null,null,null,"",null,null,null,null,null,null,null,null,null,null,null,null,null,null,null,null,null,null,null,null,null,null,null,null,null,null,null,null,null,null,"",""]
["","",null,null,"",null,"","","",null,"",null,null,null,null,null,null,null,null,null,null,"",null,null,null,null,null,null,null,null,null,null,null,null,null,null,null,null,null,null,null,null,null,null,null,null,null,null,null,null,null,null,"",""]
["","",null,null,"",null,"","","",null,"",null,null,null,null,null,null,null,null,null,null,"",null,null,null,null,null,null,null,null,null,null,null,null,null,null,null,null,null,null,null,null,null,null,null,null,null,null,null,null,null,null,"",""]
["","",null,null,"",null,"","","",null,"",null,null,null,null,null,null,null,null,null,null,"",null,null,null,null,null,null,null,null,null,null,null,null,null,null,null,null,null,null,null,null,null,null,null,null,null,null,null,null,null,null,"",""]
["","",null,null,"",null,"","","",null,"",null,null,null,null,null,null,null,null,null,null,"",null,null,null,null,null,null,null,null,null,null,null,null,null,null,null,null,null,null,null,null,null,null,null,null,null,null,null,null,null,null,"",""]
["","",null,null,"",null,"","","",null,"",null,null,null,null,null,null,null,null,null,null,"",null,null,null,null,null,null,null,null,null,null,null,null,null,null,null,null,null,null,null,null,null,null,null,null,null,null,null,null,null,null,"",""]
["","",null,null,"",null,"","","",null,"",null,null,null,null,null,null,null,null,null,null,"",null,null,null,null,null,null,null,null,null,null,null,null,null,null,null,null,null,null,null,null,null,null,null,null,null,null,null,null,null,null,"",""]
["","",null,null,"",null,"","","",null,"",null,null,null,null,null,null,null,null,null,null,"",null,null,null,null,null,null,null,null,null,null,null,null,null,null,null,null,null,null,null,null,null,null,null,null,null,null,null,null,null,null,"",""]
["","",null,null,"",null,"","","",null,"",null,null,null,null,null,null,null,null,null,null,"",null,null,null,null,null,null,null,null,null,null,null,null,null,null,null,null,null,null,null,null,null,null,null,null,null,null,null,null,null,null,"",""]
["","",null,null,"",null,"","","",null,"",null,null,null,null,null,null,null,null,null,null,"",null,null,null,null,null,null,null,null,null,null,null,null,null,null,null,null,null,null,null,null,null,null,null,null,null,null,null,null,null,null,"",""]
["","",null,null,"",null,"","","",null,"",null,null,null,null,null,null,null,null,null,null,"",null,null,null,null,null,null,null,null,null,null,null,null,null,null,null,null,null,null,null,null,null,null,null,null,null,null,null,null,null,null,"",""]
["","",null,null,"",null,"","","",null,"",null,null,null,null,null,null,null,null,null,null,"",null,null,null,null,null,null,null,null,null,null,null,null,null,null,null,null,null,null,null,null,null,null,null,null,null,null,null,null,null,null,"",""]
["","",null,null,"",null,"","","",null,"",null,null,null,null,null,null,null,null,null,null,"",null,null,null,null,null,null,null,null,null,null,null,null,null,null,null,null,null,null,null,null,null,null,null,null,null,null,null,null,null,null,"",""]
["","",null,null,"",null,"","","",null,"",null,null,null,null,null,null,null,null,null,null,"",null,null,null,null,null,null,null,null,null,null,null,null,null,null,null,null,null,null,null,null,null,null,null,null,null,null,null,null,null,null,"",""]
["","",null,null,"",null,"","","",null,"",null,null,null,null,null,null,null,null,null,null,"",null,null,null,null,null,null,null,null,null,null,null,null,null,null,null,null,null,null,null,null,null,null,null,null,null,null,null,null,null,null,"",""]
["","",null,null,"",null,"","","",null,"",null,null,null,null,null,null,null,null,null,null,"",null,null,null,null,null,null,null,null,null,null,null,null,null,null,null,null,null,null,null,null,null,null,null,null,null,null,null,null,null,null,"",""]
["","",null,null,"",null,"","","",null,"",null,null,null,null,null,null,null,null,null,null,"",null,null,null,null,null,null,null,null,null,null,null,null,null,null,null,null,null,null,null,null,null,null,null,null,null,null,null,null,null,null,"",""]
["","",null,null,"",null,"","","",null,"",null,null,null,null,null,null,null,null,null,null,"",null,null,null,null,null,null,null,null,null,null,null,null,null,null,null,null,null,null,null,null,null,null,null,null,null,null,null,null,null,null,"",""]
["","",null,null,"",null,"","","",null,"",null,null,null,null,null,null,null,null,null,null,"",null,null,null,null,null,null,null,null,null,null,null,null,null,null,null,null,null,null,null,null,null,null,null,null,null,null,null,null,null,null,"",""]
["","",null,null,"",null,"","","",null,"",null,null,null,null,null,null,null,null,null,null,"",null,null,null,null,null,null,null,null,null,null,null,null,null,null,null,null,null,null,null,null,null,null,null,null,null,null,null,null,null,null,"",""]
["","",null,null,"",null,"","","",null,"",null,null,null,null,null,null,null,null,null,null,"",null,null,null,null,null,null,null,null,null,null,null,null,null,null,null,null,null,null,null,null,null,null,null,null,null,null,null,null,null,null,"",""]
["","",null,null,"",null,"","","","","",null,null,null,null,null,null,null,null,null,null,"",null,null,null,null,null,null,null,null,null,null,null,null,null,null,null,null,null,null,null,null,null,null,null,null,null,null,null,null,null,null,"",""]
["","",null,null,"",null,"","","","","",null,null,null,null,null,null,null,null,null,null,"",null,null,null,null,null,null,null,null,null,null,null,null,null,null,null,null,null,null,null,null,null,null,null,null,null,null,null,null,null,null,"",""]
["","",null,null,"",null,"","","","","",null,null,null,null,null,null,null,null,null,null,"",null,null,null,null,null,null,null,null,null,null,null,null,null,null,null,null,null,null,null,null,null,null,null,null,null,null,null,null,null,null,"",""]
["","",null,null,"",null,"","","","","",null,null,null,null,null,null,null,null,null,null,"",null,null,null,null,null,null,null,null,null,null,null,null,null,null,null,null,null,null,null,null,null,null,null,null,null,null,null,null,null,null,"",""]
["","",null,null,"",null,"","","","","",null,null,null,null,null,null,null,null,null,null,"",null,null,null,null,null,null,null,null,null,null,null,null,null,null,null,null,null,null,null,null,null,null,null,null,null,null,null,null,null,null,"",""]
["","",null,null,"",null,"","","","","",null,null,null,null,null,null,null,null,null,null,"",null,null,null,null,null,null,null,null,null,null,null,null,null,null,null,null,null,null,null,null,null,null,null,null,null,null,null,null,null,null,"",""]
["","",null,null,"",null,"","","","","",null,null,null,null,null,null,null,null,null,null,"",null,null,null,null,null,null,null,null,null,null,null,null,null,null,null,null,null,null,null,null,null,null,null,null,null,null,null,null,null,null,"",""]
["","",null,null,"",null,"","","","","",null,null,null,null,null,null,null,null,null,null,"",null,null,null,null,null,null,null,null,null,null,null,null,null,null,null,null,null,null,null,null,null,null,null,null,null,null,null,null,null,null,"",""]
["","",null,null,"",null,"","","","","",null,null,null,null,null,null,null,null,null,null,"",null,null,null,null,null,null,null,null,null,null,null,null,null,null,null,null,null,null,null,null,null,null,null,null,null,null,null,null,null,null,"",""]
["","",null,null,"",null,"","","","","",null,null,null,null,null,null,null,null,null,null,"",null,null,null,null,null,null,null,null,null,null,null,null,null,null,null,null,null,null,null,null,null,null,null,null,null,null,null,null,null,null,"",""]
["","",null,null,"",null,"","","","","",null,null,null,null,null,null,null,null,null,null,"",null,null,null,null,null,null,null,null,null,null,null,null,null,null,null,null,null,null,null,null,null,null,null,null,null,null,null,null,null,null,"",""]
["","",null,null,"",null,"","","","","",null,null,null,null,null,null,null,null,null,null,"",null,null,null,null,null,null,null,null,null,null,null,null,null,null,null,null,null,null,null,null,null,null,null,null,null,null,null,null,null,null,"",""]
["","",null,null,"",null,"","","","","",null,null,null,null,null,null,null,null,null,null,"",null,null,null,null,null,null,null,null,null,null,null,null,null,null,null,null,null,null,null,null,null,null,null,null,null,null,null,null,null,null,"",""]
["","",null,null,"",null,"","","",{"$f":"IF(A664=\"\",\"\",IF(I663<=AVERAGE(E662:E664)/2,$K$13*$B$13-I663,0))","v":""},"",null,null,null,null,null,null,null,null,null,null,"",null,null,null,null,null,null,null,null,null,null,null,null,null,null,null,null,null,null,null,null,null,null,null,null,null,null,null,null,null,null,"",""]
["","",null,null,"",null,"","","","","",null,null,null,null,null,null,null,null,null,null,"",null,null,null,null,null,null,null,null,null,null,null,null,null,null,null,null,null,null,null,null,null,null,null,null,null,null,null,null,null,null,"",""]
["","",null,null,"",null,"","","","","",null,null,null,null,null,null,null,null,null,null,"",null,null,null,null,null,null,null,null,null,null,null,null,null,null,null,null,null,null,null,null,null,null,null,null,null,null,null,null,null,null,"",""]
["","",null,null,"",null,"","","","","",null,null,null,null,null,null,null,null,null,null,"",null,null,null,null,null,null,null,null,null,null,null,null,null,null,null,null,null,null,null,null,null,null,null,null,null,null,null,null,null,null,"",""]
["","",null,null,"",null,"","","","","",null,null,null,null,null,null,null,null,null,null,"",null,null,null,null,null,null,null,null,null,null,null,null,null,null,null,null,null,null,null,null,null,null,null,null,null,null,null,null,null,null,"",""]
["","",null,null,"",null,"","","","","",null,null,null,null,null,null,null,null,null,null,"",null,null,null,null,null,null,null,null,null,null,null,null,null,null,null,null,null,null,null,null,null,null,null,null,null,null,null,null,null,null,"",""]
["","",null,null,"",null,"","","","","",null,null,null,null,null,null,null,null,null,null,"",null,null,null,null,null,null,null,null,null,null,null,null,null,null,null,null,null,null,null,null,null,null,null,null,null,null,null,null,null,null,"",""]
["","",null,null,"",null,"","","","","",null,null,null,null,null,null,null,null,null,null,"",null,null,null,null,null,null,null,null,null,null,null,null,null,null,null,null,null,null,null,null,null,null,null,null,null,null,null,null,null,null,"",""]
["","",null,null,"",null,"","","","","",null,null,null,null,null,null,null,null,null,null,"",null,null,null,null,null,null,null,null,null,null,null,null,null,null,null,null,null,null,null,null,null,null,null,null,null,null,null,null,null,null,"",""]
["","",null,null,"",null,"","","",{"$f":"IF(A728=\"\",\"\",IF(I727<=AVERAGE(E726:E728)/2,$K$13*$B$13-I727,0))","v":""},"",null,null,null,null,null,null,null,null,null,null,"",null,null,null,null,null,null,null,null,null,null,null,null,null,null,null,null,null,null,null,null,null,null,null,null,null,null,null,null,null,null,"",""]
["","",null,null,"",null,"","","","","",null,null,null,null,null,null,null,null,null,null,"",null,null,null,null,null,null,null,null,null,null,null,null,null,null,null,null,null,null,null,null,null,null,null,null,null,null,null,null,null,null,"",""]
["","",null,null,"",null,"","","","","",null,null,null,null,null,null,null,null,null,null,"",null,null,null,null,null,null,null,null,null,null,null,null,null,null,null,null,null,null,null,null,null,null,null,null,null,null,null,null,null,null,"",""]
["","",null,null,"",null,"","","","","",null,null,null,null,null,null,null,null,null,null,"",null,null,null,null,null,null,null,null,null,null,null,null,null,null,null,null,null,null,null,null,null,null,null,null,null,null,null,null,null,null,"",""]
["","",null,null,"",null,"","","","","",null,null,null,null,null,null,null,null,null,null,"",null,null,null,null,null,null,null,null,null,null,null,null,null,null,null,null,null,null,null,null,null,null,null,null,null,null,null,null,null,null,"",""]
["","",null,null,"",null,"","","","","",null,null,null,null,null,null,null,null,null,null,"",null,null,null,null,null,null,null,null,null,null,null,null,null,null,null,null,null,null,null,null,null,null,null,null,null,null,null,null,null,null,"",""]
["","",null,null,"",null,"","","","","",null,null,null,null,null,null,null,null,null,null,"",null,null,null,null,null,null,null,null,null,null,null,null,null,null,null,null,null,null,null,null,null,null,null,null,null,null,null,null,null,null,"",""]
["","",null,null,"",null,"","","","","",null,null,null,null,null,null,null,null,null,null,"",null,null,null,null,null,null,null,null,null,null,null,null,null,null,null,null,null,null,null,null,null,null,null,null,null,null,null,null,null,null,"",""]
["","",null,null,"",null,"","","","","",null,null,null,null,null,null,null,null,null,null,"",null,null,null,null,null,null,null,null,null,null,null,null,null,null,null,null,null,null,null,null,null,null,null,null,null,null,null,null,null,null,"",""]
["","",null,null,"",null,"","","","","",null,null,null,null,null,null,null,null,null,null,"",null,null,null,null,null,null,null,null,null,null,null,null,null,null,null,null,null,null,null,null,null,null,null,null,null,null,null,null,null,null,"",""]
["","",null,null,"",null,"","","","","",null,null,null,null,null,null,null,null,null,null,"",null,null,null,null,null,null,null,null,null,null,null,null,null,null,null,null,null,null,null,null,null,null,null,null,null,null,null,null,null,null,"",""]
["","",null,null,"",null,"","","","","",null,null,null,null,null,null,null,null,null,null,"",null,null,null,null,null,null,null,null,null,null,null,null,null,null,null,null,null,null,null,null,null,null,null,null,null,null,null,null,null,null,"",""]
["","",null,null,"",null,"","","","","",null,null,null,null,null,null,null,null,null,null,"",null,null,null,null,null,null,null,null,null,null,null,null,null,null,null,null,null,null,null,null,null,null,null,null,null,null,null,null,null,null,"",""]
["","",null,null,"",null,"","","","","",null,null,null,null,null,null,null,null,null,null,"",null,null,null,null,null,null,null,null,null,null,null,null,null,null,null,null,null,null,null,null,null,null,null,null,null,null,null,null,null,null,"",""]
["","",null,null,"",null,"","","","","",null,null,null,null,null,null,null,null,null,null,"",null,null,null,null,null,null,null,null,null,null,null,null,null,null,null,null,null,null,null,null,null,null,null,null,null,null,null,null,null,null,"",""]
["","",null,null,"",null,"","","","","",null,null,null,null,null,null,null,null,null,null,"",null,null,null,null,null,null,null,null,null,null,null,null,null,null,null,null,null,null,null,null,null,null,null,null,null,null,null,null,null,null,"",""]
["","",null,null,"",null,"","","","","",null,null,null,null,null,null,null,null,null,null,"",null,null,null,null,null,null,null,null,null,null,null,null,null,null,null,null,null,null,null,null,null,null,null,null,null,null,null,null,null,null,"",""]
["","",null,null,"",null,"","","","","",null,null,null,null,null,null,null,null,null,null,"",null,null,null,null,null,null,null,null,null,null,null,null,null,null,null,null,null,null,null,null,null,null,null,null,null,null,null,null,null,null,"",""]
["","",null,null,"",null,"","","","","",null,null,null,null,null,null,null,null,null,null,"",null,null,null,null,null,null,null,null,null,null,null,null,null,null,null,null,null,null,null,null,null,null,null,null,null,null,null,null,null,null,"",""]
["","",null,null,"",null,"","","","","",null,null,null,null,null,null,null,null,null,null,"",null,null,null,null,null,null,null,null,null,null,null,null,null,null,null,null,null,null,null,null,null,null,null,null,null,null,null,null,null,null,"",""]
["","",null,null,"",null,"","","","","",null,null,null,null,null,null,null,null,null,null,"",null,null,null,null,null,null,null,null,null,null,null,null,null,null,null,null,null,null,null,null,null,null,null,null,null,null,null,null,null,null,"",""]
["","",null,null,"",null,"","","","","",null,null,null,null,null,null,null,null,null,null,"",null,null,null,null,null,null,null,null,null,null,null,null,null,null,null,null,null,null,null,null,null,null,null,null,null,null,null,null,null,null,"",""]
["","",null,null,"",null,"","","","","",null,null,null,null,null,null,null,null,null,null,"",null,null,null,null,null,null,null,null,null,null,null,null,null,null,null,null,null,null,null,null,null,null,null,null,null,null,null,null,null,null,"",""]
["","",null,null,"",null,"","","","","",null,null,null,null,null,null,null,null,null,null,"",null,null,null,null,null,null,null,null,null,null,null,null,null,null,null,null,null,null,null,null,null,null,null,null,null,null,null,null,null,null,"",""]
["","",null,null,"",null,"","","","","",null,null,null,null,null,null,null,null,null,null,"",null,null,null,null,null,null,null,null,null,null,null,null,null,null,null,null,null,null,null,null,null,null,null,null,null,null,null,null,null,null,"",""]
["","",null,null,"",null,"","","","","",null,null,null,null,null,null,null,null,null,null,"",null,null,null,null,null,null,null,null,null,null,null,null,null,null,null,null,null,null,null,null,null,null,null,null,null,null,null,null,null,null,"",""]
["","",null,null,"",null,"","","","","",null,null,null,null,null,null,null,null,null,null,"",null,null,null,null,null,null,null,null,null,null,null,null,null,null,null,null,null,null,null,null,null,null,null,null,null,null,null,null,null,null,"",""]
["","",null,null,"",null,"","","","","",null,null,null,null,null,null,null,null,null,null,"",null,null,null,null,null,null,null,null,null,null,null,null,null,null,null,null,null,null,null,null,null,null,null,null,null,null,null,null,null,null,"",""]
["","",null,null,"",null,"","","","","",null,null,null,null,null,null,null,null,null,null,"",null,null,null,null,null,null,null,null,null,null,null,null,null,null,null,null,null,null,null,null,null,null,null,null,null,null,null,null,null,null,"",""]
["","",null,null,"",null,"","","",{"$f":"IF(A920=\"\",\"\",IF(I919<=AVERAGE(E918:E920)/2,$K$13*$B$13-I919,0))","v":""},"",null,null,null,null,null,null,null,null,null,null,"",null,null,null,null,null,null,null,null,null,null,null,null,null,null,null,null,null,null,null,null,null,null,null,null,null,null,null,null,null,null,"",""]
["","",null,null,"",null,"","","","","",null,null,null,null,null,null,null,null,null,null,"",null,null,null,null,null,null,null,null,null,null,null,null,null,null,null,null,null,null,null,null,null,null,null,null,null,null,null,null,null,null,"",""]
["","",null,null,"",null,"","","","","",null,null,null,null,null,null,null,null,null,null,"",null,null,null,null,null,null,null,null,null,null,null,null,null,null,null,null,null,null,null,null,null,null,null,null,null,null,null,null,null,null,"",""]
["","",null,null,"",null,"","","","","",null,null,null,null,null,null,null,null,null,null,"",null,null,null,null,null,null,null,null,null,null,null,null,null,null,null,null,null,null,null,null,null,null,null,null,null,null,null,null,null,null,"",""]
["","",null,null,"",null,"","","","","",null,null,null,null,null,null,null,null,null,null,"",null,null,null,null,null,null,null,null,null,null,null,null,null,null,null,null,null,null,null,null,null,null,null,null,null,null,null,null,null,null,"",""]
["","",null,null,"",null,"","","","","",null,null,null,null,null,null,null,null,null,null,"",null,null,null,null,null,null,null,null,null,null,null,null,null,null,null,null,null,null,null,null,null,null,null,null,null,null,null,null,null,null,"",""]
["","",null,null,"",null,"","","","","",null,null,null,null,null,null,null,null,null,null,"",null,null,null,null,null,null,null,null,null,null,null,null,null,null,null,null,null,null,null,null,null,null,null,null,null,null,null,null,null,null,"",""]
["","",null,null,"",null,"","","","","",null,null,null,null,null,null,null,null,null,null,"",null,null,null,null,null,null,null,null,null,null,null,null,null,null,null,null,null,null,null,null,null,null,null,null,null,null,null,null,null,null,"",""]
["","",null,null,"",null,"","","","","",null,null,null,null,null,null,null,null,null,null,"",null,null,null,null,null,null,null,null,null,null,null,null,null,null,null,null,null,null,null,null,null,null,null,null,null,null,null,null,null,null,"",""]
["","",null,null,"",null,"","","","","",null,null,null,null,null,null,null,null,null,null,"",null,null,null,null,null,null,null,null,null,null,null,null,null,null,null,null,null,null,null,null,null,null,null,null,null,null,null,null,null,null,"",""]
["","",null,null,"",null,"","","","","",null,null,null,null,null,null,null,null,null,null,"",null,null,null,null,null,null,null,null,null,null,null,null,null,null,null,null,null,null,null,null,null,null,null,null,null,null,null,null,null,null,"",""]
["","",null,null,"",null,"","","","","",null,null,null,null,null,null,null,null,null,null,"",null,null,null,null,null,null,null,null,null,null,null,null,null,null,null,null,null,null,null,null,null,null,null,null,null,null,null,null,null,null,"",""]
["","",null,null,"",null,"","","","","",null,null,null,null,null,null,null,null,null,null,"",null,null,null,null,null,null,null,null,null,null,null,null,null,null,null,null,null,null,null,null,null,null,null,null,null,null,null,null,null,null,"",""]
["","",null,null,"",null,"","","","","",null,null,null,null,null,null,null,null,null,null,"",null,null,null,null,null,null,null,null,null,null,null,null,null,null,null,null,null,null,null,null,null,null,null,null,null,null,null,null,null,null,"",""]
["","",null,null,"",null,"","","","","",null,null,null,null,null,null,null,null,null,null,"",null,null,null,null,null,null,null,null,null,null,null,null,null,null,null,null,null,null,null,null,null,null,null,null,null,null,null,null,null,null,"",""]
["","",null,null,"",null,"","","","","",null,null,null,null,null,null,null,null,null,null,"",null,null,null,null,null,null,null,null,null,null,null,null,null,null,null,null,null,null,null,null,null,null,null,null,null,null,null,null,null,null,"",""]
["","",null,null,"",null,"","","","","",null,null,null,null,null,null,null,null,null,null,"",null,null,null,null,null,null,null,null,null,null,null,null,null,null,null,null,null,null,null,null,null,null,null,null,null,null,null,null,null,null,"",""]
["","",null,null,"",null,"","","","","",null,null,null,null,null,null,null,null,null,null,"",null,null,null,null,null,null,null,null,null,null,null,null,null,null,null,null,null,null,null,null,null,null,null,null,null,null,null,null,null,null,"",""]
["","",null,null,"",null,"","",{"$f":"IF(G1046=\"\",\"\",MAX(MIN($K$13*$B$13,H1046+G1046),0))","v":""},"",{"$f":"IF(OR(A1046=\"\",G1046=\"\"),\"\",J1046/$H$15)","v":""},null,null,null,null,null,null,null,null,null,null,"",null,null,null,null,null,null,null,null,null,null,null,null,null,null,null,null,null,null,null,null,null,null,null,null,null,null,null,null,null,null,"",{"$f":"IF(BA1046=\"\",\"\",BA1046+$X$1-1)","v":""}]
["","",null,null,"",null,"","","","","",null,null,null,null,null,null,null,null,null,null,"",null,null,null,null,null,null,null,null,null,null,null,null,null,null,null,null,null,null,null,null,null,null,null,null,null,null,null,null,null,null,"",""]
["","",null,null,"",null,"","","","","",null,null,null,null,null,null,null,null,null,null,"",null,null,null,null,null,null,null,null,null,null,null,null,null,null,null,null,null,null,null,null,null,null,null,null,null,null,null,null,null,null,"",""]
["","",null,null,"",null,"","","","","",null,null,null,null,null,null,null,null,null,null,"",null,null,null,null,null,null,null,null,null,null,null,null,null,null,null,null,null,null,null,null,null,null,null,null,null,null,null,null,null,null,"",""]
["","",null,null,"",null,"","","","","",null,null,null,null,null,null,null,null,null,null,"",null,null,null,null,null,null,null,null,null,null,null,null,null,null,null,null,null,null,null,null,null,null,null,null,null,null,null,null,null,null,"",""]
["","",null,null,"",null,"","","","","",null,null,null,null,null,null,null,null,null,null,"",null,null,null,null,null,null,null,null,null,null,null,null,null,null,null,null,null,null,null,null,null,null,null,null,null,null,null,null,null,null,"",""]
["","",null,null,"",null,"","","","","",null,null,null,null,null,null,null,null,null,null,"",null,null,null,null,null,null,null,null,null,null,null,null,null,null,null,null,null,null,null,null,null,null,null,null,null,null,null,null,null,null,"",""]
[{"$f":"IF(BA1091=\"\",\"\",YEAR(BB1091))","v":""},{"$f":"IF(A1091=\"\",\"\",TEXT(BA1091,\"d/mm\")&\"-\"&TEXT(BB1091,\"d/mm\"))","v":""},null,null,"",null,"","","","","",null,null,null,null,null,null,null,null,null,null,"",null,null,null,null,null,null,null,null,null,null,null,null,null,null,null,null,null,null,null,null,null,null,null,null,null,null,null,null,null,null,"",""]
["","",null,null,"",null,"","","","","",null,null,null,null,null,null,null,null,null,null,"",null,null,null,null,null,null,null,null,null,null,null,null,null,null,null,null,null,null,null,null,null,null,null,null,null,null,null,null,null,null,"",""]
["","",null,null,"",null,"","","","","",null,null,null,null,null,null,null,null,null,null,"",null,null,null,null,null,null,null,null,null,null,null,null,null,null,null,null,null,null,null,null,null,null,null,null,null,null,null,null,null,null,"",""]
["","",null,null,{"$f":"IF(OR(A1111=\"\", C1111=\"\",D1111=\"\",E1110=\"\"),\"\",C1111*D1111)","v":""},null,{"$f":"IF(OR(A1111=\"\", C1111=\"\",D1111=\"\",F1111=\"\",G1110=\"\"),\"\",J1111+F1111-E1111)","v":""},{"$f":"IF(G1111=\"\",\"\",MAX(I1110,0))","v":""},"","","",null,null,null,null,null,null,null,null,null,null,{"$f":"IF(OR(A1111=\"\",J1111=\"\"),\"\",IF(AND(F1111=0,J1111=0),0,MAX(I1110+G1111-$N$13,0)))","v":""},null,null,null,null,null,null,null,null,null,null,null,null,null,null,null,null,null,null,null,null,null,null,null,null,null,null,null,null,null,null,{"$f":"IF(BB1110<$H$17,BB1110+1,\"\")","v":""},""]
["","",null,null,"",null,"","","","","",null,null,null,null,null,null,null,null,null,null,"",null,null,null,null,null,null,null,null,null,null,null,null,null,null,null,null,null,null,null,null,null,null,null,null,null,null,null,null,null,null,"",""]
["","",null,null,"",null,"","","","","",null,null,null,null,null,null,null,null,null,null,"",null,null,null,null,null,null,null,null,null,null,null,null,null,null,null,null,null,null,null,null,null,null,null,null,null,null,null,null,null,null,"",""]
["","",null,null,"",null,"","","","","",null,null,null,null,null,null,null,null,null,null,"",null,null,null,null,null,null,null,null,null,null,null,null,null,null,null,null,null,null,null,null,null,null,null,null,null,null,null,null,null,null,"",""]
["","",null,null,"",null,"","","","","",null,null,null,null,null,null,null,null,null,null,"",null,null,null,null,null,null,null,null,null,null,null,null,null,null,null,null,null,null,null,null,null,null,null,null,null,null,null,null,null,null,"",""]
["","",null,null,"",null,"","","","","",null,null,null,null,null,null,null,null,null,null,"",null,null,null,null,null,null,null,null,null,null,null,null,null,null,null,null,null,null,null,null,null,null,null,null,null,null,null,null,null,null,"",""]
["","",null,null,"",null,"","","","","",null,null,null,null,null,null,null,null,null,null,"",null,null,null,null,null,null,null,null,null,null,null,null,null,null,null,null,null,null,null,null,null,null,null,null,null,null,null,null,null,null,"",""]
["","",null,null,"",null,"","","","","",null,null,null,null,null,null,null,null,null,null,"",null,null,null,null,null,null,null,null,null,null,null,null,null,null,null,null,null,null,null,null,null,null,null,null,null,null,null,null,null,null,"",""]
["","",null,null,"",null,"","","","","",null,null,null,null,null,null,null,null,null,null,"",null,null,null,null,null,null,null,null,null,null,null,null,null,null,null,null,null,null,null,null,null,null,null,null,null,null,null,null,null,null,"",""]
["","",null,null,"",null,"","","","","",null,null,null,null,null,null,null,null,null,null,"",null,null,null,null,null,null,null,null,null,null,null,null,null,null,null,null,null,null,null,null,null,null,null,null,null,null,null,null,null,null,"",""]
["","",null,null,"",null,"","","","","",null,null,null,null,null,null,null,null,null,null,"",null,null,null,null,null,null,null,null,null,null,null,null,null,null,null,null,null,null,null,null,null,null,null,null,null,null,null,null,null,null,"",""]
["","",null,null,"",null,"","","","","",null,null,null,null,null,null,null,null,null,null,"",null,null,null,null,null,null,null,null,null,null,null,null,null,null,null,null,null,null,null,null,null,null,null,null,null,null,null,null,null,null,"",""]
["","",null,null,"",null,"","","","","",null,null,null,null,null,null,null,null,null,null,"",null,null,null,null,null,null,null,null,null,null,null,null,null,null,null,null,null,null,null,null,null,null,null,null,null,null,null,null,null,null,"",""]
["","",null,null,"",null,"","","","","",null,null,null,null,null,null,null,null,null,null,"",null,null,null,null,null,null,null,null,null,null,null,null,null,null,null,null,null,null,null,null,null,null,null,null,null,null,null,null,null,null,"",""]
["","",null,null,"",null,"","","","","",null,null,null,null,null,null,null,null,null,null,"",null,null,null,null,null,null,null,null,null,null,null,null,null,null,null,null,null,null,null,null,null,null,null,null,null,null,null,null,null,null,"",""]
["","",null,null,"",null,"","","","","",null,null,null,null,null,null,null,null,null,null,"",null,null,null,null,null,null,null,null,null,null,null,null,null,null,null,null,null,null,null,null,null,null,null,null,null,null,null,null,null,null,"",""]
["","",null,null,"",null,"","","","","",null,null,null,null,null,null,null,null,null,null,"",null,null,null,null,null,null,null,null,null,null,null,null,null,null,null,null,null,null,null,null,null,null,null,null,null,null,null,null,null,null,"",""]
["","",null,null,"",null,"","","","","",null,null,null,null,null,null,null,null,null,null,"",null,null,null,null,null,null,null,null,null,null,null,null,null,null,null,null,null,null,null,null,null,null,null,null,null,null,null,null,null,null,"",""]
["","",null,null,"",null,"","","","","",null,null,null,null,null,null,null,null,null,null,"",null,null,null,null,null,null,null,null,null,null,null,null,null,null,null,null,null,null,null,null,null,null,null,null,null,null,null,null,null,null,"",""]
["","",null,null,"",null,"","","","","",null,null,null,null,null,null,null,null,null,null,"",null,null,null,null,null,null,null,null,null,null,null,null,null,null,null,null,null,null,null,null,null,null,null,null,null,null,null,null,null,null,"",""]
["","",null,null,"",null,"","","","","",null,null,null,null,null,null,null,null,null,null,"",null,null,null,null,null,null,null,null,null,null,null,null,null,null,null,null,null,null,null,null,null,null,null,null,null,null,null,null,null,null,"",""]
["","",null,null,"",null,"","","","","",null,null,null,null,null,null,null,null,null,null,"",null,null,null,null,null,null,null,null,null,null,null,null,null,null,null,null,null,null,null,null,null,null,null,null,null,null,null,null,null,null,"",""]
["","",null,null,"",null,"","","","","",null,null,null,null,null,null,null,null,null,null,"",null,null,null,null,null,null,null,null,null,null,null,null,null,null,null,null,null,null,null,null,null,null,null,null,null,null,null,null,null,null,"",""]
["","",null,null,"",null,"","","","","",null,null,null,null,null,null,null,null,null,null,"",null,null,null,null,null,null,null,null,null,null,null,null,null,null,null,null,null,null,null,null,null,null,null,null,null,null,null,null,null,null,"",""]
["","",null,null,"",null,"","","","","",null,null,null,null,null,null,null,null,null,null,"",null,null,null,null,null,null,null,null,null,null,null,null,null,null,null,null,null,null,null,null,null,null,null,null,null,null,null,null,null,null,"",""]
["","",null,null,"",null,"","","","","",null,null,null,null,null,null,null,null,null,null,"",null,null,null,null,null,null,null,null,null,null,null,null,null,null,null,null,null,null,null,null,null,null,null,null,null,null,null,null,null,null,"",""]
["","",null,null,"",null,"","","","","",null,null,null,null,null,null,null,null,null,null,"",null,null,null,null,null,null,null,null,null,null,null,null,null,null,null,null,null,null,null,null,null,null,null,null,null,null,null,null,null,null,"",""]
["","",null,null,"",null,"","","","","",null,null,null,null,null,null,null,null,null,null,"",null,null,null,null,null,null,null,null,null,null,null,null,null,null,null,null,null,null,null,null,null,null,null,null,null,null,null,null,null,null,"",""]
["","",null,null,"",null,"","",{"$f":"IF(G1302=\"\",\"\",MAX(MIN($K$13*$B$13,H1302+G1302),0))","v":""},"",{"$f":"IF(OR(A1302=\"\",G1302=\"\"),\"\",J1302/$H$15)","v":""},null,null,null,null,null,null,null,null,null,null,"",null,null,null,null,null,null,null,null,null,null,null,null,null,null,null,null,null,null,null,null,null,null,null,null,null,null,null,null,null,null,"",{"$f":"IF(BA1302=\"\",\"\",BA1302+$X$1-1)","v":""}]
["","",null,null,"",null,"","","","","",null,null,null,null,null,null,null,null,null,null,"",null,null,null,null,null,null,null,null,null,null,null,null,null,null,null,null,null,null,null,null,null,null,null,null,null,null,null,null,null,null,"",""]
["","",null,null,"",null,"","","","","",null,null,null,null,null,null,null,null,null,null,"",null,null,null,null,null,null,null,null,null,null,null,null,null,null,null,null,null,null,null,null,null,null,null,null,null,null,null,null,null,null,"",""]
["","",null,null,"",null,"","","","","",null,null,null,null,null,null,null,null,null,null,"",null,null,null,null,null,null,null,null,null,null,null,null,null,null,null,null,null,null,null,null,null,null,null,null,null,null,null,null,null,null,"",""]
["","",null,null,"",null,"","","","","",null,null,null,null,null,null,null,null,null,null,"",null,null,null,null,null,null,null,null,null,null,null,null,null,null,null,null,null,null,null,null,null,null,null,null,null,null,null,null,null,null,"",""]
["","",null,null,"",null,"","","","","",null,null,null,null,null,null,null,null,null,null,"",null,null,null,null,null,null,null,null,null,null,null,null,null,null,null,null,null,null,null,null,null,null,null,null,null,null,null,null,null,null,"",""]
["","",null,null,"",null,"","","","","",null,null,null,null,null,null,null,null,null,null,"",null,null,null,null,null,null,null,null,null,null,null,null,null,null,null,null,null,null,null,null,null,null,null,null,null,null,null,null,null,null,"",""]
["","",null,null,"",null,"","","","","",null,null,null,null,null,null,null,null,null,null,"",null,null,null,null,null,null,null,null,null,null,null,null,null,null,null,null,null,null,null,null,null,null,null,null,null,null,null,null,null,null,"",""]
["","",null,null,"",null,"","","","","",null,null,null,null,null,null,null,null,null,null,"",null,null,null,null,null,null,null,null,null,null,null,null,null,null,null,null,null,null,null,null,null,null,null,null,null,null,null,null,null,null,"",""]
["","",null,null,"",null,"","","","","",null,null,null,null,null,null,null,null,null,null,"",null,null,null,null,null,null,null,null,null,null,null,null,null,null,null,null,null,null,null,null,null,null,null,null,null,null,null,null,null,null,"",""]
["","",null,null,"",null,"","","","","",null,null,null,null,null,null,null,null,null,null,"",null,null,null,null,null,null,null,null,null,null,null,null,null,null,null,null,null,null,null,null,null,null,null,null,null,null,null,null,null,null,"",""]
["","",null,null,"",null,"","","","","",null,null,null,null,null,null,null,null,null,null,"",null,null,null,null,null,null,null,null,null,null,null,null,null,null,null,null,null,null,null,null,null,null,null,null,null,null,null,null,null,null,"",""]
["","",null,null,"",null,"","","","","",null,null,null,null,null,null,null,null,null,null,"",null,null,null,null,null,null,null,null,null,null,null,null,null,null,null,null,null,null,null,null,null,null,null,null,null,null,null,null,null,null,"",""]
["","",null,null,"",null,"","","","","",null,null,null,null,null,null,null,null,null,null,"",null,null,null,null,null,null,null,null,null,null,null,null,null,null,null,null,null,null,null,null,null,null,null,null,null,null,null,null,null,null,"",""]
["","",null,null,"",null,"","","","","",null,null,null,null,null,null,null,null,null,null,"",null,null,null,null,null,null,null,null,null,null,null,null,null,null,null,null,null,null,null,null,null,null,null,null,null,null,null,null,null,null,"",""]
["","",null,null,"",null,"","","","","",null,null,null,null,null,null,null,null,null,null,"",null,null,null,null,null,null,null,null,null,null,null,null,null,null,null,null,null,null,null,null,null,null,null,null,null,null,null,null,null,null,"",""]
["","",null,null,"",null,"","","","","",null,null,null,null,null,null,null,null,null,null,"",null,null,null,null,null,null,null,null,null,null,null,null,null,null,null,null,null,null,null,null,null,null,null,null,null,null,null,null,null,null,"",""]
["","",null,null,"",null,"","","","","",null,null,null,null,null,null,null,null,null,null,"",null,null,null,null,null,null,null,null,null,null,null,null,null,null,null,null,null,null,null,null,null,null,null,null,null,null,null,null,null,null,"",""]
["","",null,null,"",null,"","","","","",null,null,null,null,null,null,null,null,null,null,"",null,null,null,null,null,null,null,null,null,null,null,null,null,null,null,null,null,null,null,null,null,null,null,null,null,null,null,null,null,null,"",""]
["","",null,null,"",null,"","","","","",null,null,null,null,null,null,null,null,null,null,"",null,null,null,null,null,null,null,null,null,null,null,null,null,null,null,null,null,null,null,null,null,null,null,null,null,null,null,null,null,null,"",""]
["","",null,null,"",null,"","","","","",null,null,null,null,null,null,null,null,null,null,"",null,null,null,null,null,null,null,null,null,null,null,null,null,null,null,null,null,null,null,null,null,null,null,null,null,null,null,null,null,null,"",""]
["","",null,null,"",null,"","","","","",null,null,null,null,null,null,null,null,null,null,"",null,null,null,null,null,null,null,null,null,null,null,null,null,null,null,null,null,null,null,null,null,null,null,null,null,null,null,null,null,null,"",""]
["","",null,null,"",null,"","","","","",null,null,null,null,null,null,null,null,null,null,"",null,null,null,null,null,null,null,null,null,null,null,null,null,null,null,null,null,null,null,null,null,null,null,null,null,null,null,null,null,null,"",""]
["","",null,null,"",null,"","","","","",null,null,null,null,null,null,null,null,null,null,"",null,null,null,null,null,null,null,null,null,null,null,null,null,null,null,null,null,null,null,null,null,null,null,null,null,null,null,null,null,null,"",""]
["","",null,null,"",null,"","","","","",null,null,null,null,null,null,null,null,null,null,"",null,null,null,null,null,null,null,null,null,null,null,null,null,null,null,null,null,null,null,null,null,null,null,null,null,null,null,null,null,null,"",""]
["","",null,null,"",null,"","","","","",null,null,null,null,null,null,null,null,null,null,"",null,null,null,null,null,null,null,null,null,null,null,null,null,null,null,null,null,null,null,null,null,null,null,null,null,null,null,null,null,null,"",""]
["","",null,null,"",null,"","","","","",null,null,null,null,null,null,null,null,null,null,"",null,null,null,null,null,null,null,null,null,null,null,null,null,null,null,null,null,null,null,null,null,null,null,null,null,null,null,null,null,null,"",""]
["","",null,null,"",null,"","","","","",null,null,null,null,null,null,null,null,null,null,"",null,null,null,null,null,null,null,null,null,null,null,null,null,null,null,null,null,null,null,null,null,null,null,null,null,null,null,null,null,null,"",""]
["","",null,null,"",null,"","","","","",null,null,null,null,null,null,null,null,null,null,"",null,null,null,null,null,null,null,null,null,null,null,null,null,null,null,null,null,null,null,null,null,null,null,null,null,null,null,null,null,null,"",""]
["","",null,null,"",null,"","",{"$f":"IF(G1494=\"\",\"\",MAX(MIN($K$13*$B$13,H1494+G1494),0))","v":""},"",{"$f":"IF(OR(A1494=\"\",G1494=\"\"),\"\",J1494/$H$15)","v":""},null,null,null,null,null,null,null,null,null,null,"",null,null,null,null,null,null,null,null,null,null,null,null,null,null,null,null,null,null,null,null,null,null,null,null,null,null,null,null,null,null,"",{"$f":"IF(BA1494=\"\",\"\",BA1494+$X$1-1)","v":""}]
["","",null,null,"",null,"","","","","",null,null,null,null,null,null,null,null,null,null,"",null,null,null,null,null,null,null,null,null,null,null,null,null,null,null,null,null,null,null,null,null,null,null,null,null,null,null,null,null,null,"",""]
["","",null,null,"",null,"","","","","",null,null,null,null,null,null,null,null,null,null,"",null,null,null,null,null,null,null,null,null,null,null,null,null,null,null,null,null,null,null,null,null,null,null,null,null,null,null,null,null,null,"",""]
["","",null,null,"",null,"","","","","",null,null,null,null,null,null,null,null,null,null,"",null,null,null,null,null,null,null,null,null,null,null,null,null,null,null,null,null,null,null,null,null,null,null,null,null,null,null,null,null,null,"",""]
["","",null,null,"",null,"","","","","",null,null,null,null,null,null,null,null,null,null,"",null,null,null,null,null,null,null,null,null,null,null,null,null,null,null,null,null,null,null,null,null,null,null,null,null,null,null,null,null,null,"",""]
["","",null,null,"",null,"","","","","",null,null,null,null,null,null,null,null,null,null,"",null,null,null,null,null,null,null,null,null,null,null,null,null,null,null,null,null,null,null,null,null,null,null,null,null,null,null,null,null,null,"",""]
["","",null,null,"",null,"","","","","",null,null,null,null,null,null,null,null,null,null,"",null,null,null,null,null,null,null,null,null,null,null,null,null,null,null,null,null,null,null,null,null,null,null,null,null,null,null,null,null,null,"",""]
["","",null,null,"",null,"","","","","",null,null,null,null,null,null,null,null,null,null,"",null,null,null,null,null,null,null,null,null,null,null,null,null,null,null,null,null,null,null,null,null,null,null,null,null,null,null,null,null,null,"",""]
["","",null,null,"",null,"","","","","",null,null,null,null,null,null,null,null,null,null,"",null,null,null,null,null,null,null,null,null,null,null,null,null,null,null,null,null,null,null,null,null,null,null,null,null,null,null,null,null,null,"",""]
["","",null,null,"",null,"","","","","",null,null,null,null,null,null,null,null,null,null,"",null,null,null,null,null,null,null,null,null,null,null,null,null,null,null,null,null,null,null,null,null,null,null,null,null,null,null,null,null,null,"",""]
["","",null,null,"",null,"","","","","",null,null,null,null,null,null,null,null,null,null,"",null,null,null,null,null,null,null,null,null,null,null,null,null,null,null,null,null,null,null,null,null,null,null,null,null,null,null,null,null,null,"",""]
["","",null,null,"",null,"","","","","",null,null,null,null,null,null,null,null,null,null,"",null,null,null,null,null,null,null,null,null,null,null,null,null,null,null,null,null,null,null,null,null,null,null,null,null,null,null,null,null,null,"",""]
["","",null,null,"",null,"","","","","",null,null,null,null,null,null,null,null,null,null,"",null,null,null,null,null,null,null,null,null,null,null,null,null,null,null,null,null,null,null,null,null,null,null,null,null,null,null,null,null,null,"",""]
["","",null,null,"",null,"","","","","",null,null,null,null,null,null,null,null,null,null,"",null,null,null,null,null,null,null,null,null,null,null,null,null,null,null,null,null,null,null,null,null,null,null,null,null,null,null,null,null,null,"",""]
["","",null,null,"",null,"","","","","",null,null,null,null,null,null,null,null,null,null,"",null,null,null,null,null,null,null,null,null,null,null,null,null,null,null,null,null,null,null,null,null,null,null,null,null,null,null,null,null,null,"",""]
["","",null,null,"",null,"","","","","",null,null,null,null,null,null,null,null,null,null,"",null,null,null,null,null,null,null,null,null,null,null,null,null,null,null,null,null,null,null,null,null,null,null,null,null,null,null,null,null,null,"",""]
["","",null,null,"",null,"","","","","",null,null,null,null,null,null,null,null,null,null,"",null,null,null,null,null,null,null,null,null,null,null,null,null,null,null,null,null,null,null,null,null,null,null,null,null,null,null,null,null,null,"",""]
["","",null,null,"",null,"","","","","",null,null,null,null,null,null,null,null,null,null,"",null,null,null,null,null,null,null,null,null,null,null,null,null,null,null,null,null,null,null,null,null,null,null,null,null,null,null,null,null,null,"",""]
["","",null,null,"",null,"","","","","",null,null,null,null,null,null,null,null,null,null,"",null,null,null,null,null,null,null,null,null,null,null,null,null,null,null,null,null,null,null,null,null,null,null,null,null,null,null,null,null,null,"",""]
["","",null,null,{"$f":"IF(OR(A1623=\"\", C1623=\"\",D1623=\"\",E1622=\"\"),\"\",C1623*D1623)","v":""},null,{"$f":"IF(OR(A1623=\"\", C1623=\"\",D1623=\"\",F1623=\"\",G1622=\"\"),\"\",J1623+F1623-E1623)","v":""},{"$f":"IF(G1623=\"\",\"\",MAX(I1622,0))","v":""},"","","",null,null,null,null,null,null,null,null,null,null,{"$f":"IF(OR(A1623=\"\",J1623=\"\"),\"\",IF(AND(F1623=0,J1623=0),0,MAX(I1622+G1623-$N$13,0)))","v":""},null,null,null,null,null,null,null,null,null,null,null,null,null,null,null,null,null,null,null,null,null,null,null,null,null,null,null,null,null,null,{"$f":"IF(BB1622<$H$17,BB1622+1,\"\")","v":""},""]
["","",null,null,"",null,"","","","","",null,null,null,null,null,null,null,null,null,null,"",null,null,null,null,null,null,null,null,null,null,null,null,null,null,null,null,null,null,null,null,null,null,null,null,null,null,null,null,null,null,"",""]
["","",null,null,"",null,"","","","","",null,null,null,null,null,null,null,null,null,null,"",null,null,null,null,null,null,null,null,null,null,null,null,null,null,null,null,null,null,null,null,null,null,null,null,null,null,null,null,null,null,"",""]
["","",null,null,"",null,"","","","","",null,null,null,null,null,null,null,null,null,null,"",null,null,null,null,null,null,null,null,null,null,null,null,null,null,null,null,null,null,null,null,null,null,null,null,null,null,null,null,null,null,"",""]
["","",null,null,"",null,"","","","","",null,null,null,null,null,null,null,null,null,null,"",null,null,null,null,null,null,null,null,null,null,null,null,null,null,null,null,null,null,null,null,null,null,null,null,null,null,null,null,null,null,"",""]
["","",null,null,"",null,"","","","","",null,null,null,null,null,null,null,null,null,null,"",null,null,null,null,null,null,null,null,null,null,null,null,null,null,null,null,null,null,null,null,null,null,null,null,null,null,null,null,null,null,"",""]
["","",null,null,"",null,"","","","","",null,null,null,null,null,null,null,null,null,null,"",null,null,null,null,null,null,null,null,null,null,null,null,null,null,null,null,null,null,null,null,null,null,null,null,null,null,null,null,null,null,"",""]
["","",null,null,"",null,"","","","","",null,null,null,null,null,null,null,null,null,null,"",null,null,null,null,null,null,null,null,null,null,null,null,null,null,null,null,null,null,null,null,null,null,null,null,null,null,null,null,null,null,"",""]
["","",null,null,"",null,"","","","","",null,null,null,null,null,null,null,null,null,null,"",null,null,null,null,null,null,null,null,null,null,null,null,null,null,null,null,null,null,null,null,null,null,null,null,null,null,null,null,null,null,"",""]
["","",null,null,"",null,"","","",{"$f":"IF(A1688=\"\",\"\",IF(I1687<=AVERAGE(E1686:E1688)/2,$K$13*$B$13-I1687,0))","v":""},"",null,null,null,null,null,null,null,null,null,null,"",null,null,null,null,null,null,null,null,null,null,null,null,null,null,null,null,null,null,null,null,null,null,null,null,null,null,null,null,null,null,"",""]
["","",null,null,"",null,"","","","","",null,null,null,null,null,null,null,null,null,null,"",null,null,null,null,null,null,null,null,null,null,null,null,null,null,null,null,null,null,null,null,null,null,null,null,null,null,null,null,null,null,"",""]
["","",null,null,"",null,"","","","","",null,null,null,null,null,null,null,null,null,null,"",null,null,null,null,null,null,null,null,null,null,null,null,null,null,null,null,null,null,null,null,null,null,null,null,null,null,null,null,null,null,"",""]
["","",null,null,"",null,"","","","","",null,null,null,null,null,null,null,null,null,null,"",null,null,null,null,null,null,null,null,null,null,null,null,null,null,null,null,null,null,null,null,null,null,null,null,null,null,null,null,null,null,"",""]
["","",null,null,"",null,"","","","","",null,null,null,null,null,null,null,null,null,null,"",null,null,null,null,null,null,null,null,null,null,null,null,null,null,null,null,null,null,null,null,null,null,null,null,null,null,null,null,null,null,"",""]
["","",null,null,"",null,"","","","","",null,null,null,null,null,null,null,null,null,null,"",null,null,null,null,null,null,null,null,null,null,null,null,null,null,null,null,null,null,null,null,null,null,null,null,null,null,null,null,null,null,"",""]
["","",null,null,"",null,"","","","","",null,null,null,null,null,null,null,null,null,null,"",null,null,null,null,null,null,null,null,null,null,null,null,null,null,null,null,null,null,null,null,null,null,null,null,null,null,null,null,null,null,"",""]
[{"$f":"IF(BA1731=\"\",\"\",YEAR(BB1731))","v":""},{"$f":"IF(A1731=\"\",\"\",TEXT(BA1731,\"d/mm\")&\"-\"&TEXT(BB1731,\"d/mm\"))","v":""},null,null,"",null,"","","","","",null,null,null,null,null,null,null,null,null,null,"",null,null,null,null,null,null,null,null,null,null,null,null,null,null,null,null,null,null,null,null,null,null,null,null,null,null,null,null,null,null,"",""]
["","",null,null,"",null,"","","","","",null,null,null,null,null,null,null,null,null,null,"",null,null,null,null,null,null,null,null,null,null,null,null,null,null,null,null,null,null,null,null,null,null,null,null,null,null,null,null,null,null,"",""]
["","",null,null,"",null,"","","","","",null,null,null,null,null,null,null,null,null,null,"",null,null,null,null,null,null,null,null,null,null,null,null,null,null,null,null,null,null,null,null,null,null,null,null,null,null,null,null,null,null,"",""]
["","",null,null,"",null,"","","","","",null,null,null,null,null,null,null,null,null,null,"",null,null,null,null,null,null,null,null,null,null,null,null,null,null,null,null,null,null,null,null,null,null,null,null,null,null,null,null,null,null,"",""]
["","",null,null,"",null,"","","","","",null,null,null,null,null,null,null,null,null,null,"",null,null,null,null,null,null,null,null,null,null,null,null,null,null,null,null,null,null,null,null,null,null,null,null,null,null,null,null,null,null,"",""]
["","",null,null,"",null,"","","","","",null,null,null,null,null,null,null,null,null,null,"",null,null,null,null,null,null,null,null,null,null,null,null,null,null,null,null,null,null,null,null,null,null,null,null,null,null,null,null,null,null,"",""]
["","",null,null,"",null,"","","","","",null,null,null,null,null,null,null,null,null,null,"",null,null,null,null,null,null,null,null,null,null,null,null,null,null,null,null,null,null,null,null,null,null,null,null,null,null,null,null,null,null,"",""]
["","",null,null,"",null,"","","","","",null,null,null,null,null,null,null,null,null,null,"",null,null,null,null,null,null,null,null,null,null,null,null,null,null,null,null,null,null,null,null,null,null,null,null,null,null,null,null,null,null,"",""]
["","",null,null,"",null,"","","","","",null,null,null,null,null,null,null,null,null,null,"",null,null,null,null,null,null,null,null,null,null,null,null,null,null,null,null,null,null,null,null,null,null,null,null,null,null,null,null,null,null,"",""]
[{"$f":"IF(BA1795=\"\",\"\",YEAR(BB1795))","v":""},{"$f":"IF(A1795=\"\",\"\",TEXT(BA1795,\"d/mm\")&\"-\"&TEXT(BB1795,\"d/mm\"))","v":""},null,null,"",null,"","","","","",null,null,null,null,null,null,null,null,null,null,"",null,null,null,null,null,null,null,null,null,null,null,null,null,null,null,null,null,null,null,null,null,null,null,null,null,null,null,null,null,null,"",""]
["","",null,null,"",null,"","","","","",null,null,null,null,null,null,null,null,null,null,"",null,null,null,null,null,null,null,null,null,null,null,null,null,null,null,null,null,null,null,null,null,null,null,null,null,null,null,null,null,null,"",""]
["","",null,null,"",null,"","","","","",null,null,null,null,null,null,null,null,null,null,"",null,null,null,null,null,null,null,null,null,null,null,null,null,null,null,null,null,null,null,null,null,null,null,null,null,null,null,null,null,null,"",""]
["","",null,null,"",null,"","","","","",null,null,null,null,null,null,null,null,null,null,"",null,null,null,null,null,null,null,null,null,null,null,null,null,null,null,null,null,null,null,null,null,null,null,null,null,null,null,null,null,null,"",""]
["","",null,null,"",null,"","","","","",null,null,null,null,null,null,null,null,null,null,"",null,null,null,null,null,null,null,null,null,null,null,null,null,null,null,null,null,null,null,null,null,null,null,null,null,null,null,null,null,null,"",""]
["","",null,null,"",null,"","","","","",null,null,null,null,null,null,null,null,null,null,"",null,null,null,null,null,null,null,null,null,null,null,null,null,null,null,null,null,null,null,null,null,null,null,null,null,null,null,null,null,null,"",""]
["","",null,null,"",null,"","","","","",null,null,null,null,null,null,null,null,null,null,"",null,null,null,null,null,null,null,null,null,null,null,null,null,null,null,null,null,null,null,null,null,null,null,null,null,null,null,null,null,null,"",""]
["","",null,null,"",null,"","","","","",null,null,null,null,null,null,null,null,null,null,"",null,null,null,null,null,null,null,null,null,null,null,null,null,null,null,null,null,null,null,null,null,null,null,null,null,null,null,null,null,null,"",""]
["","",null,null,"",null,"","","","","",null,null,null,null,null,null,null,null,null,null,"",null,null,null,null,null,null,null,null,null,null,null,null,null,null,null,null,null,null,null,null,null,null,null,null,null,null,null,null,null,null,"",""]
["","",null,null,"",null,"","","","","",null,null,null,null,null,null,null,null,null,null,"",null,null,null,null,null,null,null,null,null,null,null,null,null,null,null,null,null,null,null,null,null,null,null,null,null,null,null,null,null,null,"",""]
["","",null,null,"",null,"","","","","",null,null,null,null,null,null,null,null,null,null,"",null,null,null,null,null,null,null,null,null,null,null,null,null,null,null,null,null,null,null,null,null,null,null,null,null,null,null,null,null,null,"",""]
["","",null,null,"",null,"","","","","",null,null,null,null,null,null,null,null,null,null,"",null,null,null,null,null,null,null,null,null,null,null,null,null,null,null,null,null,null,null,null,null,null,null,null,null,null,null,null,null,null,"",""]
["","",null,null,"",null,"","","","","",null,null,null,null,null,null,null,null,null,null,"",null,null,null,null,null,null,null,null,null,null,null,null,null,null,null,null,null,null,null,null,null,null,null,null,null,null,null,null,null,null,"",""]
["","",null,null,"",null,"","","",{"$f":"IF(A1880=\"\",\"\",IF(I1879<=AVERAGE(E1878:E1880)/2,$K$13*$B$13-I1879,0))","v":""},"",null,null,null,null,null,null,null,null,null,null,"",null,null,null,null,null,null,null,null,null,null,null,null,null,null,null,null,null,null,null,null,null,null,null,null,null,null,null,null,null,null,"",""]
["","",null,null,"",null,"","","","","",null,null,null,null,null,null,null,null,null,null,"",null,null,null,null,null,null,null,null,null,null,null,null,null,null,null,null,null,null,null,null,null,null,null,null,null,null,null,null,null,null,"",""]
["","",null,null,"",null,"","","","","",null,null,null,null,null,null,null,null,null,null,"",null,null,null,null,null,null,null,null,null,null,null,null,null,null,null,null,null,null,null,null,null,null,null,null,null,null,null,null,null,null,"",""]
["","",null,null,"",null,"","","","","",null,null,null,null,null,null,null,null,null,null,"",null,null,null,null,null,null,null,null,null,null,null,null,null,null,null,null,null,null,null,null,null,null,null,null,null,null,null,null,null,null,"",""]
["","",null,null,"",null,"","","","","",null,null,null,null,null,null,null,null,null,null,"",null,null,null,null,null,null,null,null,null,null,null,null,null,null,null,null,null,null,null,null,null,null,null,null,null,null,null,null,null,null,"",""]
["","",null,null,"",null,"","","","","",null,null,null,null,null,null,null,null,null,null,"",null,null,null,null,null,null,null,null,null,null,null,null,null,null,null,null,null,null,null,null,null,null,null,null,null,null,null,null,null,null,"",""]
["","",null,null,"",null,"","","","","",null,null,null,null,null,null,null,null,null,null,"",null,null,null,null,null,null,null,null,null,null,null,null,null,null,null,null,null,null,null,null,null,null,null,null,null,null,null,null,null,null,"",""]
["","",null,null,"",null,"","","","","",null,null,null,null,null,null,null,null,null,null,"",null,null,null,null,null,null,null,null,null,null,null,null,null,null,null,null,null,null,null,null,null,null,null,null,null,null,null,null,null,null,"",""]
["","",null,null,"",null,"","","","","",null,null,null,null,null,null,null,null,null,null,"",null,null,null,null,null,null,null,null,null,null,null,null,null,null,null,null,null,null,null,null,null,null,null,null,null,null,null,null,null,null,"",""]
["","",null,null,"",null,"","","","","",null,null,null,null,null,null,null,null,null,null,"",null,null,null,null,null,null,null,null,null,null,null,null,null,null,null,null,null,null,null,null,null,null,null,null,null,null,null,null,null,null,"",""]
["","",null,null,"",null,"","","","","",null,null,null,null,null,null,null,null,null,null,"",null,null,null,null,null,null,null,null,null,null,null,null,null,null,null,null,null,null,null,null,null,null,null,null,null,null,null,null,null,null,"",""]
["","",null,null,"",null,"","","","","",null,null,null,null,null,null,null,null,null,null,"",null,null,null,null,null,null,null,null,null,null,null,null,null,null,null,null,null,null,null,null,null,null,null,null,null,null,null,null,null,null,"",""]
["","",null,null,"",null,"","","","","",null,null,null,null,null,null,null,null,null,null,"",null,null,null,null,null,null,null,null,null,null,null,null,null,null,null,null,null,null,null,null,null,null,null,null,null,null,null,null,null,null,"",""]
["","",null,null,"",null,"","","","","",null,null,null,null,null,null,null,null,null,null,"",null,null,null,null,null,null,null,null,null,null,null,null,null,null,null,null,null,null,null,null,null,null,null,null,null,null,null,null,null,null,"",""]
["","",null,null,"",null,"","","","","",null,null,null,null,null,null,null,null,null,null,"",null,null,null,null,null,null,null,null,null,null,null,null,null,null,null,null,null,null,null,null,null,null,null,null,null,null,null,null,null,null,"",""]
["","",null,null,"",null,"","","","","",null,null,null,null,null,null,null,null,null,null,"",null,null,null,null,null,null,null,null,null,null,null,null,null,null,null,null,null,null,null,null,null,null,null,null,null,null,null,null,null,null,"",""]
["","",null,null,"",null,"","","","","",null,null,null,null,null,null,null,null,null,null,"",null,null,null,null,null,null,null,null,null,null,null,null,null,null,null,null,null,null,null,null,null,null,null,null,null,null,null,null,null,null,"",""]
["","",null,null,"",null,"","","","","",null,null,null,null,null,null,null,null,null,null,"",null,null,null,null,null,null,null,null,null,null,null,null,null,null,null,null,null,null,null,null,null,null,null,null,null,null,null,null,null,null,"",""]
["","",null,null,"",null,"","",{"$f":"IF(G2006=\"\",\"\",MAX(MIN($K$13*$B$13,H2006+G2006),0))","v":""},"",{"$f":"IF(OR(A2006=\"\",G2006=\"\"),\"\",J2006/$H$15)","v":""},null,null,null,null,null,null,null,null,null,null,"",null,null,null,null,null,null,null,null,null,null,null,null,null,null,null,null,null,null,null,null,null,null,null,null,null,null,null,null,null,null,"",{"$f":"IF(BA2006=\"\",\"\",BA2006+$X$1-1)","v":""}]
["","",null,null,"",null,"","","","","",null,null,null,null,null,null,null,null,null,null,"",null,null,null,null,null,null,null,null,null,null,null,null,null,null,null,null,null,null,null,null,null,null,null,null,null,null,null,null,null,null,"",""]
["","",null,null,"",null,"","","","","",null,null,null,null,null,null,null,null,null,null,"",null,null,null,null,null,null,null,null,null,null,null,null,null,null,null,null,null,null,null,null,null,null,null,null,null,null,null,null,null,null,"",""]
["","",null,null,"",null,"","","","","",null,null,null,null,null,null,null,null,null,null,"",null,null,null,null,null,null,null,null,null,null,null,null,null,null,null,null,null,null,null,null,null,null,null,null,null,null,null,null,null,null,"",""]
["","",null,null,"",null,"","","","","",null,null,null,null,null,null,null,null,null,null,"",null,null,null,null,null,null,null,null,null,null,null,null,null,null,null,null,null,null,null,null,null,null,null,null,null,null,null,null,null,null,"",""]
["","",null,null,"",null,"","","","","",null,null,null,null,null,null,null,null,null,null,"",null,null,null,null,null,null,null,null,null,null,null,null,null,null,null,null,null,null,null,null,null,null,null,null,null,null,null,null,null,null,"",""]
["","",null,null,"",null,"","","","","",null,null,null,null,null,null,null,null,null,null,"",null,null,null,null,null,null,null,null,null,null,null,null,null,null,null,null,null,null,null,null,null,null,null,null,null,null,null,null,null,null,"",""]
[{"$f":"IF(BA2051=\"\",\"\",YEAR(BB2051))","v":""},{"$f":"IF(A2051=\"\",\"\",TEXT(BA2051,\"d/mm\")&\"-\"&TEXT(BB2051,\"d/mm\"))","v":""},null,null,"",null,"","","","","",null,null,null,null,null,null,null,null,null,null,"",null,null,null,null,null,null,null,null,null,null,null,null,null,null,null,null,null,null,null,null,null,null,null,null,null,null,null,null,null,null,"",""]
["","",null,null,"",null,"","","","","",null,null,null,null,null,null,null,null,null,null,"",null,null,null,null,null,null,null,null,null,null,null,null,null,null,null,null,null,null,null,null,null,null,null,null,null,null,null,null,null,null,"",""]
["","",null,null,"",null,"","","","","",null,null,null,null,null,null,null,null,null,null,"",null,null,null,null,null,null,null,null,null,null,null,null,null,null,null,null,null,null,null,null,null,null,null,null,null,null,null,null,null,null,"",""]
["","",null,null,{"$f":"IF(OR(A2071=\"\", C2071=\"\",D2071=\"\",E2070=\"\"),\"\",C2071*D2071)","v":""},null,{"$f":"IF(OR(A2071=\"\", C2071=\"\",D2071=\"\",F2071=\"\",G2070=\"\"),\"\",J2071+F2071-E2071)","v":""},{"$f":"IF(G2071=\"\",\"\",MAX(I2070,0))","v":""},"","","",null,null,null,null,null,null,null,null,null,null,{"$f":"IF(OR(A2071=\"\",J2071=\"\"),\"\",IF(AND(F2071=0,J2071=0),0,MAX(I2070+G2071-$N$13,0)))","v":""},null,null,null,null,null,null,null,null,null,null,null,null,null,null,null,null,null,null,null,null,null,null,null,null,null,null,null,null,null,null,{"$f":"IF(BB2070<$H$17,BB2070+1,\"\")","v":""},""]
["","",null,null,"",null,"","","","","",null,null,null,null,null,null,null,null,null,null,"",null,null,null,null,null,null,null,null,null,null,null,null,null,null,null,null,null,null,null,null,null,null,null,null,null,null,null,null,null,null,"",""]
["","",null,null,"",null,"","","","","",null,null,null,null,null,null,null,null,null,null,"",null,null,null,null,null,null,null,null,null,null,null,null,null,null,null,null,null,null,null,null,null,null,null,null,null,null,null,null,null,null,"",""]
["","",null,null,"",null,"","","","","",null,null,null,null,null,null,null,null,null,null,"",null,null,null,null,null,null,null,null,null,null,null,null,null,null,null,null,null,null,null,null,null,null,null,null,null,null,null,null,null,null,"",""]
["","",null,null,"",null,"","","","","",null,null,null,null,null,null,null,null,null,null,"",null,null,null,null,null,null,null,null,null,null,null,null,null,null,null,null,null,null,null,null,null,null,null,null,null,null,null,null,null,null,"",""]
["","",null,null,"",null,"","","","","",null,null,null,null,null,null,null,null,null,null,"",null,null,null,null,null,null,null,null,null,null,null,null,null,null,null,null,null,null,null,null,null,null,null,null,null,null,null,null,null,null,"",""]
["","",null,null,"",null,"","","","","",null,null,null,null,null,null,null,null,null,null,"",null,null,null,null,null,null,null,null,null,null,null,null,null,null,null,null,null,null,null,null,null,null,null,null,null,null,null,null,null,null,"",""]
["","",null,null,"",null,"","","","","",null,null,null,null,null,null,null,null,null,null,"",null,null,null,null,null,null,null,null,null,null,null,null,null,null,null,null,null,null,null,null,null,null,null,null,null,null,null,null,null,null,"",""]
["","",null,null,"",null,"","","","","",null,null,null,null,null,null,null,null,null,null,"",null,null,null,null,null,null,null,null,null,null,null,null,null,null,null,null,null,null,null,null,null,null,null,null,null,null,null,null,null,null,"",""]
["","",null,null,"",null,"","","","","",null,null,null,null,null,null,null,null,null,null,"",null,null,null,null,null,null,null,null,null,null,null,null,null,null,null,null,null,null,null,null,null,null,null,null,null,null,null,null,null,null,"",""]
["","",null,null,"",null,"","","","","",null,null,null,null,null,null,null,null,null,null,"",null,null,null,null,null,null,null,null,null,null,null,null,null,null,null,null,null,null,null,null,null,null,null,null,null,null,null,null,null,null,"",""]
["","",null,null,"",null,"","","","","",null,null,null,null,null,null,null,null,null,null,"",null,null,null,null,null,null,null,null,null,null,null,null,null,null,null,null,null,null,null,null,null,null,null,null,null,null,null,null,null,null,"",""]
["","",null,null,"",null,"","","","","",null,null,null,null,null,null,null,null,null,null,"",null,null,null,null,null,null,null,null,null,null,null,null,null,null,null,null,null,null,null,null,null,null,null,null,null,null,null,null,null,null,"",""]
["","",null,null,"",null,"","","","","",null,null,null,null,null,null,null,null,null,null,"",null,null,null,null,null,null,null,null,null,null,null,null,null,null,null,null,null,null,null,null,null,null,null,null,null,null,null,null,null,null,"",""]
["","",null,null,"",null,"","","","","",null,null,null,null,null,null,null,null,null,null,"",null,null,null,null,null,null,null,null,null,null,null,null,null,null,null,null,null,null,null,null,null,null,null,null,null,null,null,null,null,null,"",""]
["","",null,null,"",null,"","","","","",null,null,null,null,null,null,null,null,null,null,"",null,null,null,null,null,null,null,null,null,null,null,null,null,null,null,null,null,null,null,null,null,null,null,null,null,null,null,null,null,null,"",""]
["","",null,null,"",null,"","","","","",null,null,null,null,null,null,null,null,null,null,"",null,null,null,null,null,null,null,null,null,null,null,null,null,null,null,null,null,null,null,null,null,null,null,null,null,null,null,null,null,null,"",""]
["","",null,null,"",null,"","","","","",null,null,null,null,null,null,null,null,null,null,"",null,null,null,null,null,null,null,null,null,null,null,null,null,null,null,null,null,null,null,null,null,null,null,null,null,null,null,null,null,null,"",""]
["","",null,null,"",null,"","","","","",null,null,null,null,null,null,null,null,null,null,"",null,null,null,null,null,null,null,null,null,null,null,null,null,null,null,null,null,null,null,null,null,null,null,null,null,null,null,null,null,null,"",""]
["","",null,null,"",null,"","",{"$f":"IF(G2198=\"\",\"\",MAX(MIN($K$13*$B$13,H2198+G2198),0))","v":""},"",{"$f":"IF(OR(A2198=\"\",G2198=\"\"),\"\",J2198/$H$15)","v":""},null,null,null,null,null,null,null,null,null,null,"",null,null,null,null,null,null,null,null,null,null,null,null,null,null,null,null,null,null,null,null,null,null,null,null,null,null,null,null,null,null,"",{"$f":"IF(BA2198=\"\",\"\",BA2198+$X$1-1)","v":""}]
["","",null,null,"",null,"","","","","",null,null,null,null,null,null,null,null,null,null,"",null,null,null,null,null,null,null,null,null,null,null,null,null,null,null,null,null,null,null,null,null,null,null,null,null,null,null,null,null,null,"",""]
["","",null,null,"",null,"","","","","",null,null,null,null,null,null,null,null,null,null,"",null,null,null,null,null,null,null,null,null,null,null,null,null,null,null,null,null,null,null,null,null,null,null,null,null,null,null,null,null,null,"",""]
["","",null,null,"",null,"","","","","",null,null,null,null,null,null,null,null,null,null,"",null,null,null,null,null,null,null,null,null,null,null,null,null,null,null,null,null,null,null,null,null,null,null,null,null,null,null,null,null,null,"",""]
["","",null,null,"",null,"","","","","",null,null,null,null,null,null,null,null,null,null,"",null,null,null,null,null,null,null,null,null,null,null,null,null,null,null,null,null,null,null,null,null,null,null,null,null,null,null,null,null,null,"",""]
["","",null,null,"",null,"","","","","",null,null,null,null,null,null,null,null,null,null,"",null,null,null,null,null,null,null,null,null,null,null,null,null,null,null,null,null,null,null,null,null,null,null,null,null,null,null,null,null,null,"",""]
["","",null,null,"",null,"","","","","",null,null,null,null,null,null,null,null,null,null,"",null,null,null,null,null,null,null,null,null,null,null,null,null,null,null,null,null,null,null,null,null,null,null,null,null,null,null,null,null,null,"",""]
[{"$f":"IF(BA2243=\"\",\"\",YEAR(BB2243))","v":""},{"$f":"IF(A2243=\"\",\"\",TEXT(BA2243,\"d/mm\")&\"-\"&TEXT(BB2243,\"d/mm\"))","v":""},null,null,"",null,"","","","","",null,null,null,null,null,null,null,null,null,null,"",null,null,null,null,null,null,null,null,null,null,null,null,null,null,null,null,null,null,null,null,null,null,null,null,null,null,null,null,null,null,"",""]
["","",null,null,"",null,"","","","","",null,null,null,null,null,null,null,null,null,null,"",null,null,null,null,null,null,null,null,null,null,null,null,null,null,null,null,null,null,null,null,null,null,null,null,null,null,null,null,null,null,"",""]
["","",null,null,"",null,"","","","","",null,null,null,null,null,null,null,null,null,null,"",null,null,null,null,null,null,null,null,null,null,null,null,null,null,null,null,null,null,null,null,null,null,null,null,null,null,null,null,null,null,"",""]
["","",null,null,{"$f":"IF(OR(A2263=\"\", C2263=\"\",D2263=\"\",E2262=\"\"),\"\",C2263*D2263)","v":""},null,{"$f":"IF(OR(A2263=\"\", C2263=\"\",D2263=\"\",F2263=\"\",G2262=\"\"),\"\",J2263+F2263-E2263)","v":""},{"$f":"IF(G2263=\"\",\"\",MAX(I2262,0))","v":""},"","","",null,null,null,null,null,null,null,null,null,null,{"$f":"IF(OR(A2263=\"\",J2263=\"\"),\"\",IF(AND(F2263=0,J2263=0),0,MAX(I2262+G2263-$N$13,0)))","v":""},null,null,null,null,null,null,null,null,null,null,null,null,null,null,null,null,null,null,null,null,null,null,null,null,null,null,null,null,null,null,{"$f":"IF(BB2262<$H$17,BB2262+1,\"\")","v":""},""]
["","",null,null,"",null,"","","","","",null,null,null,null,null,null,null,null,null,null,"",null,null,null,null,null,null,null,null,null,null,null,null,null,null,null,null,null,null,null,null,null,null,null,null,null,null,null,null,null,null,"",""]
["","",null,null,"",null,"","","","","",null,null,null,null,null,null,null,null,null,null,"",null,null,null,null,null,null,null,null,null,null,null,null,null,null,null,null,null,null,null,null,null,null,null,null,null,null,null,null,null,null,"",""]
["","",null,null,"",null,"","","","","",null,null,null,null,null,null,null,null,null,null,"",null,null,null,null,null,null,null,null,null,null,null,null,null,null,null,null,null,null,null,null,null,null,null,null,null,null,null,null,null,null,"",""]
["","",null,null,"",null,"","","","","",null,null,null,null,null,null,null,null,null,null,"",null,null,null,null,null,null,null,null,null,null,null,null,null,null,null,null,null,null,null,null,null,null,null,null,null,null,null,null,null,null,"",""]
["","",null,null,"",null,"","","","","",null,null,null,null,null,null,null,null,null,null,"",null,null,null,null,null,null,null,null,null,null,null,null,null,null,null,null,null,null,null,null,null,null,null,null,null,null,null,null,null,null,"",""]
["","",null,null,"",null,"","","","","",null,null,null,null,null,null,null,null,null,null,"",null,null,null,null,null,null,null,null,null,null,null,null,null,null,null,null,null,null,null,null,null,null,null,null,null,null,null,null,null,null,"",""]
["","",null,null,"",null,"","","","","",null,null,null,null,null,null,null,null,null,null,"",null,null,null,null,null,null,null,null,null,null,null,null,null,null,null,null,null,null,null,null,null,null,null,null,null,null,null,null,null,null,"",""]
["","",null,null,"",null,"","","","","",null,null,null,null,null,null,null,null,null,null,"",null,null,null,null,null,null,null,null,null,null,null,null,null,null,null,null,null,null,null,null,null,null,null,null,null,null,null,null,null,null,"",""]
["","",null,null,"",null,"","","",{"$f":"IF(A2328=\"\",\"\",IF(I2327<=AVERAGE(E2326:E2328)/2,$K$13*$B$13-I2327,0))","v":""},"",null,null,null,null,null,null,null,null,null,null,"",null,null,null,null,null,null,null,null,null,null,null,null,null,null,null,null,null,null,null,null,null,null,null,null,null,null,null,null,null,null,"",""]
["","",null,null,"",null,"","","","","",null,null,null,null,null,null,null,null,null,null,"",null,null,null,null,null,null,null,null,null,null,null,null,null,null,null,null,null,null,null,null,null,null,null,null,null,null,null,null,null,null,"",""]
["","",null,null,"",null,"","","","","",null,null,null,null,null,null,null,null,null,null,"",null,null,null,null,null,null,null,null,null,null,null,null,null,null,null,null,null,null,null,null,null,null,null,null,null,null,null,null,null,null,"",""]
["","",null,null,"",null,"","","","","",null,null,null,null,null,null,null,null,null,null,"",null,null,null,null,null,null,null,null,null,null,null,null,null,null,null,null,null,null,null,null,null,null,null,null,null,null,null,null,null,null,"",""]
["","",null,null,"",null,"","","","","",null,null,null,null,null,null,null,null,null,null,"",null,null,null,null,null,null,null,null,null,null,null,null,null,null,null,null,null,null,null,null,null,null,null,null,null,null,null,null,null,null,"",""]
["","",null,null,"",null,"","","","","",null,null,null,null,null,null,null,null,null,null,"",null,null,null,null,null,null,null,null,null,null,null,null,null,null,null,null,null,null,null,null,null,null,null,null,null,null,null,null,null,null,"",""]
["","",null,null,"",null,"","","","","",null,null,null,null,null,null,null,null,null,null,"",null,null,null,null,null,null,null,null,null,null,null,null,null,null,null,null,null,null,null,null,null,null,null,null,null,null,null,null,null,null,"",""]
["","",null,null,"",null,"","","","","",null,null,null,null,null,null,null,null,null,null,"",null,null,null,null,null,null,null,null,null,null,null,null,null,null,null,null,null,null,null,null,null,null,null,null,null,null,null,null,null,null,"",""]
["","",null,null,"",null,"","","","","",null,null,null,null,null,null,null,null,null,null,"",null,null,null,null,null,null,null,null,null,null,null,null,null,null,null,null,null,null,null,null,null,null,null,null,null,null,null,null,null,null,"",""]
["","",null,null,"",null,"","","","","",null,null,null,null,null,null,null,null,null,null,"",null,null,null,null,null,null,null,null,null,null,null,null,null,null,null,null,null,null,null,null,null,null,null,null,null,null,null,null,null,null,"",""]
["","",null,null,"",null,"","","","","",null,null,null,null,null,null,null,null,null,null,"",null,null,null,null,null,null,null,null,null,null,null,null,null,null,null,null,null,null,null,null,null,null,null,null,null,null,null,null,null,null,"",""]
["","",null,null,"",null,"","","","","",null,null,null,null,null,null,null,null,null,null,"",null,null,null,null,null,null,null,null,null,null,null,null,null,null,null,null,null,null,null,null,null,null,null,null,null,null,null,null,null,null,"",""]
["","",null,null,"",null,"","","","","",null,null,null,null,null,null,null,null,null,null,"",null,null,null,null,null,null,null,null,null,null,null,null,null,null,null,null,null,null,null,null,null,null,null,null,null,null,null,null,null,null,"",""]
["","",null,null,"",null,"","","","","",null,null,null,null,null,null,null,null,null,null,"",null,null,null,null,null,null,null,null,null,null,null,null,null,null,null,null,null,null,null,null,null,null,null,null,null,null,null,null,null,null,"",""]
["","",null,null,"",null,"","","","","",null,null,null,null,null,null,null,null,null,null,"",null,null,null,null,null,null,null,null,null,null,null,null,null,null,null,null,null,null,null,null,null,null,null,null,null,null,null,null,null,null,"",""]
["","",null,null,"",null,"","","","","",null,null,null,null,null,null,null,null,null,null,"",null,null,null,null,null,null,null,null,null,null,null,null,null,null,null,null,null,null,null,null,null,null,null,null,null,null,null,null,null,null,"",""]
["","",null,null,"",null,"","","","","",null,null,null,null,null,null,null,null,null,null,"",null,null,null,null,null,null,null,null,null,null,null,null,null,null,null,null,null,null,null,null,null,null,null,null,null,null,null,null,null,null,"",""]
["","",null,null,"",null,"","","","","",null,null,null,null,null,null,null,null,null,null,"",null,null,null,null,null,null,null,null,null,null,null,null,null,null,null,null,null,null,null,null,null,null,null,null,null,null,null,null,null,null,"",""]
["","",null,null,"",null,"","","","","",null,null,null,null,null,null,null,null,null,null,"",null,null,null,null,null,null,null,null,null,null,null,null,null,null,null,null,null,null,null,null,null,null,null,null,null,null,null,null,null,null,"",""]
["","",null,null,"",null,"","",{"$f":"IF(G2454=\"\",\"\",MAX(MIN($K$13*$B$13,H2454+G2454),0))","v":""},"",{"$f":"IF(OR(A2454=\"\",G2454=\"\"),\"\",J2454/$H$15)","v":""},null,null,null,null,null,null,null,null,null,null,"",null,null,null,null,null,null,null,null,null,null,null,null,null,null,null,null,null,null,null,null,null,null,null,null,null,null,null,null,null,null,"",{"$f":"IF(BA2454=\"\",\"\",BA2454+$X$1-1)","v":""}]
["","",null,null,"",null,"","","","","",null,null,null,null,null,null,null,null,null,null,"",null,null,null,null,null,null,null,null,null,null,null,null,null,null,null,null,null,null,null,null,null,null,null,null,null,null,null,null,null,null,"",""]
["","",null,null,"",null,"","","","","",null,null,null,null,null,null,null,null,null,null,"",null,null,null,null,null,null,null,null,null,null,null,null,null,null,null,null,null,null,null,null,null,null,null,null,null,null,null,null,null,null,"",""]
["","",null,null,"",null,"","","","","",null,null,null,null,null,null,null,null,null,null,"",null,null,null,null,null,null,null,null,null,null,null,null,null,null,null,null,null,null,null,null,null,null,null,null,null,null,null,null,null,null,"",""]
["","",null,null,"",null,"","","","","",null,null,null,null,null,null,null,null,null,null,"",null,null,null,null,null,null,null,null,null,null,null,null,null,null,null,null,null,null,null,null,null,null,null,null,null,null,null,null,null,null,"",""]
["","",null,null,"",null,"","","","","",null,null,null,null,null,null,null,null,null,null,"",null,null,null,null,null,null,null,null,null,null,null,null,null,null,null,null,null,null,null,null,null,null,null,null,null,null,null,null,null,null,"",""]
["","",null,null,"",null,"","","","","",null,null,null,null,null,null,null,null,null,null,"",null,null,null,null,null,null,null,null,null,null,null,null,null,null,null,null,null,null,null,null,null,null,null,null,null,null,null,null,null,null,"",""]
["","",null,null,"",null,"","","","","",null,null,null,null,null,null,null,null,null,null,"",null,null,null,null,null,null,null,null,null,null,null,null,null,null,null,null,null,null,null,null,null,null,null,null,null,null,null,null,null,null,"",""]
["","",null,null,"",null,"","","","","",null,null,null,null,null,null,null,null,null,null,"",null,null,null,null,null,null,null,null,null,null,null,null,null,null,null,null,null,null,null,null,null,null,null,null,null,null,null,null,null,null,"",""]
["","",null,null,"",null,"","","","","",null,null,null,null,null,null,null,null,null,null,"",null,null,null,null,null,null,null,null,null,null,null,null,null,null,null,null,null,null,null,null,null,null,null,null,null,null,null,null,null,null,"",""]
["","",null,null,"",null,"","","",{"$f":"IF(A2520=\"\",\"\",IF(I2519<=AVERAGE(E2518:E2520)/2,$K$13*$B$13-I2519,0))","v":""},"",null,null,null,null,null,null,null,null,null,null,"",null,null,null,null,null,null,null,null,null,null,null,null,null,null,null,null,null,null,null,null,null,null,null,null,null,null,null,null,null,null,"",""]
["","",null,null,"",null,"","","","","",null,null,null,null,null,null,null,null,null,null,"",null,null,null,null,null,null,null,null,null,null,null,null,null,null,null,null,null,null,null,null,null,null,null,null,null,null,null,null,null,null,"",""]
["","",null,null,"",null,"","","","","",null,null,null,null,null,null,null,null,null,null,"",null,null,null,null,null,null,null,null,null,null,null,null,null,null,null,null,null,null,null,null,null,null,null,null,null,null,null,null,null,null,"",""]
["","",null,null,"",null,"","","","","",null,null,null,null,null,null,null,null,null,null,"",null,null,null,null,null,null,null,null,null,null,null,null,null,null,null,null,null,null,null,null,null,null,null,null,null,null,null,null,null,null,"",""]
["","",null,null,"",null,"","","","","",null,null,null,null,null,null,null,null,null,null,"",null,null,null,null,null,null,null,null,null,null,null,null,null,null,null,null,null,null,null,null,null,null,null,null,null,null,null,null,null,null,"",""]
["","",null,null,"",null,"","","","","",null,null,null,null,null,null,null,null,null,null,"",null,null,null,null,null,null,null,null,null,null,null,null,null,null,null,null,null,null,null,null,null,null,null,null,null,null,null,null,null,null,"",""]
["","",null,null,"",null,"","","","","",null,null,null,null,null,null,null,null,null,null,"",null,null,null,null,null,null,null,null,null,null,null,null,null,null,null,null,null,null,null,null,null,null,null,null,null,null,null,null,null,null,"",""]
["","",null,null,"",null,"","","","","",null,null,null,null,null,null,null,null,null,null,"",null,null,null,null,null,null,null,null,null,null,null,null,null,null,null,null,null,null,null,null,null,null,null,null,null,null,null,null,null,null,"",""]
["","",null,null,"",null,"","","","","",null,null,null,null,null,null,null,null,null,null,"",null,null,null,null,null,null,null,null,null,null,null,null,null,null,null,null,null,null,null,null,null,null,null,null,null,null,null,null,null,null,"",""]
["","",null,null,"",null,"","",{"$f":"IF(G2582=\"\",\"\",MAX(MIN($K$13*$B$13,H2582+G2582),0))","v":""},"",{"$f":"IF(OR(A2582=\"\",G2582=\"\"),\"\",J2582/$H$15)","v":""},null,null,null,null,null,null,null,null,null,null,"",null,null,null,null,null,null,null,null,null,null,null,null,null,null,null,null,null,null,null,null,null,null,null,null,null,null,null,null,null,null,"",{"$f":"IF(BA2582=\"\",\"\",BA2582+$X$1-1)","v":""}]
["","",null,null,"",null,"","","","","",null,null,null,null,null,null,null,null,null,null,"",null,null,null,null,null,null,null,null,null,null,null,null,null,null,null,null,null,null,null,null,null,null,null,null,null,null,null,null,null,null,"",""]
["","",null,null,"",null,"","","","","",null,null,null,null,null,null,null,null,null,null,"",null,null,null,null,null,null,null,null,null,null,null,null,null,null,null,null,null,null,null,null,null,null,null,null,null,null,null,null,null,null,"",""]
["","",null,null,"",null,"","","","","",null,null,null,null,null,null,null,null,null,null,"",null,null,null,null,null,null,null,null,null,null,null,null,null,null,null,null,null,null,null,null,null,null,null,null,null,null,null,null,null,null,"",""]
["","",null,null,"",null,"","","","","",null,null,null,null,null,null,null,null,null,null,"",null,null,null,null,null,null,null,null,null,null,null,null,null,null,null,null,null,null,null,null,null,null,null,null,null,null,null,null,null,null,"",""]
["","",null,null,"",null,"","","","","",null,null,null,null,null,null,null,null,null,null,"",null,null,null,null,null,null,null,null,null,null,null,null,null,null,null,null,null,null,null,null,null,null,null,null,null,null,null,null,null,null,"",""]
["","",null,null,"",null,"","","","","",null,null,null,null,null,null,null,null,null,null,"",null,null,null,null,null,null,null,null,null,null,null,null,null,null,null,null,null,null,null,null,null,null,null,null,null,null,null,null,null,null,"",""]
["","",null,null,"",null,"","","","","",null,null,null,null,null,null,null,null,null,null,"",null,null,null,null,null,null,null,null,null,null,null,null,null,null,null,null,null,null,null,null,null,null,null,null,null,null,null,null,null,null,"",""]
["","",null,null,"",null,"","","","","",null,null,null,null,null,null,null,null,null,null,"",null,null,null,null,null,null,null,null,null,null,null,null,null,null,null,null,null,null,null,null,null,null,null,null,null,null,null,null,null,null,"",""]
["","",null,null,"",null,"","","","","",null,null,null,null,null,null,null,null,null,null,"",null,null,null,null,null,null,null,null,null,null,null,null,null,null,null,null,null,null,null,null,null,null,null,null,null,null,null,null,null,null,"",""]
["","",null,null,"",null,"","","","","",null,null,null,null,null,null,null,null,null,null,"",null,null,null,null,null,null,null,null,null,null,null,null,null,null,null,null,null,null,null,null,null,null,null,null,null,null,null,null,null,null,"",""]
["","",null,null,"",null,"","","","","",null,null,null,null,null,null,null,null,null,null,"",null,null,null,null,null,null,null,null,null,null,null,null,null,null,null,null,null,null,null,null,null,null,null,null,null,null,null,null,null,null,"",""]
["","",null,null,"",null,"","","","","",null,null,null,null,null,null,null,null,null,null,"",null,null,null,null,null,null,null,null,null,null,null,null,null,null,null,null,null,null,null,null,null,null,null,null,null,null,null,null,null,null,"",""]
["","",null,null,"",null,"","","","","",null,null,null,null,null,null,null,null,null,null,"",null,null,null,null,null,null,null,null,null,null,null,null,null,null,null,null,null,null,null,null,null,null,null,null,null,null,null,null,null,null,"",""]
["","",null,null,"",null,"","","","","",null,null,null,null,null,null,null,null,null,null,"",null,null,null,null,null,null,null,null,null,null,null,null,null,null,null,null,null,null,null,null,null,null,null,null,null,null,null,null,null,null,"",""]
["","",null,null,"",null,"","","","","",null,null,null,null,null,null,null,null,null,null,"",null,null,null,null,null,null,null,null,null,null,null,null,null,null,null,null,null,null,null,null,null,null,null,null,null,null,null,null,null,null,"",""]
["","",null,null,"",null,"","","","","",null,null,null,null,null,null,null,null,null,null,"",null,null,null,null,null,null,null,null,null,null,null,null,null,null,null,null,null,null,null,null,null,null,null,null,null,null,null,null,null,null,"",""]
["","",null,null,"",null,"","","","","",null,null,null,null,null,null,null,null,null,null,"",null,null,null,null,null,null,null,null,null,null,null,null,null,null,null,null,null,null,null,null,null,null,null,null,null,null,null,null,null,null,"",""]
["","",null,null,"",null,"","","","","",null,null,null,null,null,null,null,null,null,null,"",null,null,null,null,null,null,null,null,null,null,null,null,null,null,null,null,null,null,null,null,null,null,null,null,null,null,null,null,null,null,"",""]
["","",null,null,"",null,"","","","","",null,null,null,null,null,null,null,null,null,null,"",null,null,null,null,null,null,null,null,null,null,null,null,null,null,null,null,null,null,null,null,null,null,null,null,null,null,null,null,null,null,"",""]
["","",null,null,"",null,"","","","","",null,null,null,null,null,null,null,null,null,null,"",null,null,null,null,null,null,null,null,null,null,null,null,null,null,null,null,null,null,null,null,null,null,null,null,null,null,null,null,null,null,"",""]
["","",null,null,"",null,"","","","","",null,null,null,null,null,null,null,null,null,null,"",null,null,null,null,null,null,null,null,null,null,null,null,null,null,null,null,null,null,null,null,null,null,null,null,null,null,null,null,null,null,"",""]
["","",null,null,"",null,"","","","","",null,null,null,null,null,null,null,null,null,null,"",null,null,null,null,null,null,null,null,null,null,null,null,null,null,null,null,null,null,null,null,null,null,null,null,null,null,null,null,null,null,"",""]
["","",null,null,"",null,"","","","","",null,null,null,null,null,null,null,null,null,null,"",null,null,null,null,null,null,null,null,null,null,null,null,null,null,null,null,null,null,null,null,null,null,null,null,null,null,null,null,null,null,"",""]
["","",null,null,"",null,"","","","","",null,null,null,null,null,null,null,null,null,null,"",null,null,null,null,null,null,null,null,null,null,null,null,null,null,null,null,null,null,null,null,null,null,null,null,null,null,null,null,null,null,"",""]
["","",null,null,"",null,"","","","","",null,null,null,null,null,null,null,null,null,null,"",null,null,null,null,null,null,null,null,null,null,null,null,null,null,null,null,null,null,null,null,null,null,null,null,null,null,null,null,null,null,"",""]
["","",null,null,"",null,"","","","","",null,null,null,null,null,null,null,null,null,null,"",null,null,null,null,null,null,null,null,null,null,null,null,null,null,null,null,null,null,null,null,null,null,null,null,null,null,null,null,null,null,"",""]
["","",null,null,"",null,"","","","","",null,null,null,null,null,null,null,null,null,null,"",null,null,null,null,null,null,null,null,null,null,null,null,null,null,null,null,null,null,null,null,null,null,null,null,null,null,null,null,null,null,"",""]
["","",null,null,"",null,"","","","","",null,null,null,null,null,null,null,null,null,null,"",null,null,null,null,null,null,null,null,null,null,null,null,null,null,null,null,null,null,null,null,null,null,null,null,null,null,null,null,null,null,"",""]
["","",null,null,"",null,"","","","","",null,null,null,null,null,null,null,null,null,null,"",null,null,null,null,null,null,null,null,null,null,null,null,null,null,null,null,null,null,null,null,null,null,null,null,null,null,null,null,null,null,"",""]
["","",null,null,"",null,"","","","","",null,null,null,null,null,null,null,null,null,null,"",null,null,null,null,null,null,null,null,null,null,null,null,null,null,null,null,null,null,null,null,null,null,null,null,null,null,null,null,null,null,"",""]
["","",null,null,"",null,"","","","","",null,null,null,null,null,null,null,null,null,null,"",null,null,null,null,null,null,null,null,null,null,null,null,null,null,null,null,null,null,null,null,null,null,null,null,null,null,null,null,null,null,"",""]
["","",null,null,"",null,"","","","","",null,null,null,null,null,null,null,null,null,null,"",null,null,null,null,null,null,null,null,null,null,null,null,null,null,null,null,null,null,null,null,null,null,null,null,null,null,null,null,null,null,"",""]
["","",null,null,"",null,"","","","","",null,null,null,null,null,null,null,null,null,null,"",null,null,null,null,null,null,null,null,null,null,null,null,null,null,null,null,null,null,null,null,null,null,null,null,null,null,null,null,null,null,"",""]
["","",null,null,"",null,"","","","","",null,null,null,null,null,null,null,null,null,null,"",null,null,null,null,null,null,null,null,null,null,null,null,null,null,null,null,null,null,null,null,null,null,null,null,null,null,null,null,null,null,"",""]
["","",null,null,"",null,"","","","","",null,null,null,null,null,null,null,null,null,null,"",null,null,null,null,null,null,null,null,null,null,null,null,null,null,null,null,null,null,null,null,null,null,null,null,null,null,null,null,null,null,"",""]
["","",null,null,"",null,"","","","","",null,null,null,null,null,null,null,null,null,null,"",null,null,null,null,null,null,null,null,null,null,null,null,null,null,null,null,null,null,null,null,null,null,null,null,null,null,null,null,null,null,"",""]
["","",null,null,"",null,"","","","","",null,null,null,null,null,null,null,null,null,null,"",null,null,null,null,null,null,null,null,null,null,null,null,null,null,null,null,null,null,null,null,null,null,null,null,null,null,null,null,null,null,"",""]
["","",null,null,"",null,"","","","","",null,null,null,null,null,null,null,null,null,null,"",null,null,null,null,null,null,null,null,null,null,null,null,null,null,null,null,null,null,null,null,null,null,null,null,null,null,null,null,null,null,"",""]
["","",null,null,"",null,"","","","","",null,null,null,null,null,null,null,null,null,null,"",null,null,null,null,null,null,null,null,null,null,null,null,null,null,null,null,null,null,null,null,null,null,null,null,null,null,null,null,null,null,"",""]
["","",null,null,"",null,"","","","","",null,null,null,null,null,null,null,null,null,null,"",null,null,null,null,null,null,null,null,null,null,null,null,null,null,null,null,null,null,null,null,null,null,null,null,null,null,null,null,null,null,"",""]
["","",null,null,"",null,"","","","","",null,null,null,null,null,null,null,null,null,null,"",null,null,null,null,null,null,null,null,null,null,null,null,null,null,null,null,null,null,null,null,null,null,null,null,null,null,null,null,null,null,"",""]
["","",null,null,"",null,"","","","","",null,null,null,null,null,null,null,null,null,null,"",null,null,null,null,null,null,null,null,null,null,null,null,null,null,null,null,null,null,null,null,null,null,null,null,null,null,null,null,null,null,"",""]
["","",null,null,"",null,"","","","","",null,null,null,null,null,null,null,null,null,null,"",null,null,null,null,null,null,null,null,null,null,null,null,null,null,null,null,null,null,null,null,null,null,null,null,null,null,null,null,null,null,"",""]
["","",null,null,"",null,"","","","","",null,null,null,null,null,null,null,null,null,null,"",null,null,null,null,null,null,null,null,null,null,null,null,null,null,null,null,null,null,null,null,null,null,null,null,null,null,null,null,null,null,"",""]
["","",null,null,"",null,"","","","","",null,null,null,null,null,null,null,null,null,null,"",null,null,null,null,null,null,null,null,null,null,null,null,null,null,null,null,null,null,null,null,null,null,null,null,null,null,null,null,null,null,"",""]
["","",null,null,"",null,"","","","","",null,null,null,null,null,null,null,null,null,null,"",null,null,null,null,null,null,null,null,null,null,null,null,null,null,null,null,null,null,null,null,null,null,null,null,null,null,null,null,null,null,"",""]
["","",null,null,"",null,"","","","","",null,null,null,null,null,null,null,null,null,null,"",null,null,null,null,null,null,null,null,null,null,null,null,null,null,null,null,null,null,null,null,null,null,null,null,null,null,null,null,null,null,"",""]
["","",null,null,"",null,"","","","","",null,null,null,null,null,null,null,null,null,null,"",null,null,null,null,null,null,null,null,null,null,null,null,null,null,null,null,null,null,null,null,null,null,null,null,null,null,null,null,null,null,"",""]
["","",null,null,"",null,"","","","","",null,null,null,null,null,null,null,null,null,null,"",null,null,null,null,null,null,null,null,null,null,null,null,null,null,null,null,null,null,null,null,null,null,null,null,null,null,null,null,null,null,"",""]
["","",null,null,"",null,"","","","","",null,null,null,null,null,null,null,null,null,null,"",null,null,null,null,null,null,null,null,null,null,null,null,null,null,null,null,null,null,null,null,null,null,null,null,null,null,null,null,null,null,"",""]
["","",null,null,"",null,"","","","","",null,null,null,null,null,null,null,null,null,null,"",null,null,null,null,null,null,null,null,null,null,null,null,null,null,null,null,null,null,null,null,null,null,null,null,null,null,null,null,null,null,"",""]
["","",null,null,"",null,"","","","","",null,null,null,null,null,null,null,null,null,null,"",null,null,null,null,null,null,null,null,null,null,null,null,null,null,null,null,null,null,null,null,null,null,null,null,null,null,null,null,null,null,"",""]
["","",null,null,"",null,"","","","","",null,null,null,null,null,null,null,null,null,null,"",null,null,null,null,null,null,null,null,null,null,null,null,null,null,null,null,null,null,null,null,null,null,null,null,null,null,null,null,null,null,"",""]
["","",null,null,"",null,"","","","","",null,null,null,null,null,null,null,null,null,null,"",null,null,null,null,null,null,null,null,null,null,null,null,null,null,null,null,null,null,null,null,null,null,null,null,null,null,null,null,null,null,"",""]
["","",null,null,"",null,"","","","","",null,null,null,null,null,null,null,null,null,null,"",null,null,null,null,null,null,null,null,null,null,null,null,null,null,null,null,null,null,null,null,null,null,null,null,null,null,null,null,null,null,"",""]
["","",null,null,"",null,"","","","","",null,null,null,null,null,null,null,null,null,null,"",null,null,null,null,null,null,null,null,null,null,null,null,null,null,null,null,null,null,null,null,null,null,null,null,null,null,null,null,null,null,"",""]
["","",null,null,"",null,"","","",{"$f":"IF(A2968=\"\",\"\",IF(I2967<=AVERAGE(E2966:E2968)/2,$K$13*$B$13-I2967,0))","v":""},"",null,null,null,null,null,null,null,null,null,null,"",null,null,null,null,null,null,null,null,null,null,null,null,null,null,null,null,null,null,null,null,null,null,null,null,null,null,null,null,null,null,"",""]
["","",null,null,"",null,"","","","","",null,null,null,null,null,null,null,null,null,null,"",null,null,null,null,null,null,null,null,null,null,null,null,null,null,null,null,null,null,null,null,null,null,null,null,null,null,null,null,null,null,"",""]
["","",null,null,"",null,"","","","","",null,null,null,null,null,null,null,null,null,null,"",null,null,null,null,null,null,null,null,null,null,null,null,null,null,null,null,null,null,null,null,null,null,null,null,null,null,null,null,null,null,"",""]
["","",null,null,"",null,"","","","","",null,null,null,null,null,null,null,null,null,null,"",null,null,null,null,null,null,null,null,null,null,null,null,null,null,null,null,null,null,null,null,null,null,null,null,null,null,null,null,null,null,"",""]
["","",null,null,"",null,"","","","","",null,null,null,null,null,null,null,null,null,null,"",null,null,null,null,null,null,null,null,null,null,null,null,null,null,null,null,null,null,null,null,null,null,null,null,null,null,null,null,null,null,"",""]
["","",null,null,"",null,"","","","","",null,null,null,null,null,null,null,null,null,null,"",null,null,null,null,null,null,null,null,null,null,null,null,null,null,null,null,null,null,null,null,null,null,null,null,null,null,null,null,null,null,"",""]
[{"$f":"IF(BA3011=\"\",\"\",YEAR(BB3011))","v":""},{"$f":"IF(A3011=\"\",\"\",TEXT(BA3011,\"d/mm\")&\"-\"&TEXT(BB3011,\"d/mm\"))","v":""},null,null,"",null,"","","","","",null,null,null,null,null,null,null,null,null,null,"",null,null,null,null,null,null,null,null,null,null,null,null,null,null,null,null,null,null,null,null,null,null,null,null,null,null,null,null,null,null,"",""]
["","",null,null,"",null,"","","","","",null,null,null,null,null,null,null,null,null,null,"",null,null,null,null,null,null,null,null,null,null,null,null,null,null,null,null,null,null,null,null,null,null,null,null,null,null,null,null,null,null,"",""]
["","",null,null,"",null,"","","","","",null,null,null,null,null,null,null,null,null,null,"",null,null,null,null,null,null,null,null,null,null,null,null,null,null,null,null,null,null,null,null,null,null,null,null,null,null,null,null,null,null,"",""]
["","",null,null,{"$f":"IF(OR(A3031=\"\", C3031=\"\",D3031=\"\",E3030=\"\"),\"\",C3031*D3031)","v":""},null,{"$f":"IF(OR(A3031=\"\", C3031=\"\",D3031=\"\",F3031=\"\",G3030=\"\"),\"\",J3031+F3031-E3031)","v":""},{"$f":"IF(G3031=\"\",\"\",MAX(I3030,0))","v":""},"","","",null,null,null,null,null,null,null,null,null,null,{"$f":"IF(OR(A3031=\"\",J3031=\"\"),\"\",IF(AND(F3031=0,J3031=0),0,MAX(I3030+G3031-$N$13,0)))","v":""},null,null,null,null,null,null,null,null,null,null,null,null,null,null,null,null,null,null,null,null,null,null,null,null,null,null,null,null,null,null,{"$f":"IF(BB3030<$H$17,BB3030+1,\"\")","v":""},""]
["","",null,null,"",null,"","","","","",null,null,null,null,null,null,null,null,null,null,"",null,null,null,null,null,null,null,null,null,null,null,null,null,null,null,null,null,null,null,null,null,null,null,null,null,null,null,null,null,null,"",""]
["","",null,null,"",null,"","","","","",null,null,null,null,null,null,null,null,null,null,"",null,null,null,null,null,null,null,null,null,null,null,null,null,null,null,null,null,null,null,null,null,null,null,null,null,null,null,null,null,null,"",""]
["","",null,null,"",null,"","","","","",null,null,null,null,null,null,null,null,null,null,"",null,null,null,null,null,null,null,null,null,null,null,null,null,null,null,null,null,null,null,null,null,null,null,null,null,null,null,null,null,null,"",""]
["","",null,null,"",null,"","","","","",null,null,null,null,null,null,null,null,null,null,"",null,null,null,null,null,null,null,null,null,null,null,null,null,null,null,null,null,null,null,null,null,null,null,null,null,null,null,null,null,null,"",""]
["","",null,null,"",null,"","","","","",null,null,null,null,null,null,null,null,null,null,"",null,null,null,null,null,null,null,null,null,null,null,null,null,null,null,null,null,null,null,null,null,null,null,null,null,null,null,null,null,null,"",""]
["","",null,null,"",null,"","","","","",null,null,null,null,null,null,null,null,null,null,"",null,null,null,null,null,null,null,null,null,null,null,null,null,null,null,null,null,null,null,null,null,null,null,null,null,null,null,null,null,null,"",""]
["","",null,null,"",null,"","","","","",null,null,null,null,null,null,null,null,null,null,"",null,null,null,null,null,null,null,null,null,null,null,null,null,null,null,null,null,null,null,null,null,null,null,null,null,null,null,null,null,null,"",""]
["","",null,null,"",null,"","","","","",null,null,null,null,null,null,null,null,null,null,"",null,null,null,null,null,null,null,null,null,null,null,null,null,null,null,null,null,null,null,null,null,null,null,null,null,null,null,null,null,null,"",""]
["","",null,null,"",null,"","","","","",null,null,null,null,null,null,null,null,null,null,"",null,null,null,null,null,null,null,null,null,null,null,null,null,null,null,null,null,null,null,null,null,null,null,null,null,null,null,null,null,null,"",""]
["","",null,null,"",null,"","","","","",null,null,null,null,null,null,null,null,null,null,"",null,null,null,null,null,null,null,null,null,null,null,null,null,null,null,null,null,null,null,null,null,null,null,null,null,null,null,null,null,null,"",""]
["","",null,null,"",null,"","","","","",null,null,null,null,null,null,null,null,null,null,"",null,null,null,null,null,null,null,null,null,null,null,null,null,null,null,null,null,null,null,null,null,null,null,null,null,null,null,null,null,null,"",""]
["","",null,null,"",null,"","","","","",null,null,null,null,null,null,null,null,null,null,"",null,null,null,null,null,null,null,null,null,null,null,null,null,null,null,null,null,null,null,null,null,null,null,null,null,null,null,null,null,null,"",""]
["","",null,null,"",null,"","","","","",null,null,null,null,null,null,null,null,null,null,"",null,null,null,null,null,null,null,null,null,null,null,null,null,null,null,null,null,null,null,null,null,null,null,null,null,null,null,null,null,null,"",""]
["","",null,null,"",null,"","","","","",null,null,null,null,null,null,null,null,null,null,"",null,null,null,null,null,null,null,null,null,null,null,null,null,null,null,null,null,null,null,null,null,null,null,null,null,null,null,null,null,null,"",""]
["","",null,null,"",null,"","","","","",null,null,null,null,null,null,null,null,null,null,"",null,null,null,null,null,null,null,null,null,null,null,null,null,null,null,null,null,null,null,null,null,null,null,null,null,null,null,null,null,null,"",""]
["","",null,null,"",null,"","","","","",null,null,null,null,null,null,null,null,null,null,"",null,null,null,null,null,null,null,null,null,null,null,null,null,null,null,null,null,null,null,null,null,null,null,null,null,null,null,null,null,null,"",""]
["","",null,null,"",null,"","","","","",null,null,null,null,null,null,null,null,null,null,"",null,null,null,null,null,null,null,null,null,null,null,null,null,null,null,null,null,null,null,null,null,null,null,null,null,null,null,null,null,null,"",""]
["","",null,null,"",null,"","","","","",null,null,null,null,null,null,null,null,null,null,"",null,null,null,null,null,null,null,null,null,null,null,null,null,null,null,null,null,null,null,null,null,null,null,null,null,null,null,null,null,null,"",""]
["","",null,null,"",null,"","","","","",null,null,null,null,null,null,null,null,null,null,"",null,null,null,null,null,null,null,null,null,null,null,null,null,null,null,null,null,null,null,null,null,null,null,null,null,null,null,null,null,null,"",""]
["","",null,null,"",null,"","","","","",null,null,null,null,null,null,null,null,null,null,"",null,null,null,null,null,null,null,null,null,null,null,null,null,null,null,null,null,null,null,null,null,null,null,null,null,null,null,null,null,null,"",""]
["","",null,null,"",null,"","","","","",null,null,null,null,null,null,null,null,null,null,"",null,null,null,null,null,null,null,null,null,null,null,null,null,null,null,null,null,null,null,null,null,null,null,null,null,null,null,null,null,null,"",""]
["","",null,null,"",null,"","","","","",null,null,null,null,null,null,null,null,null,null,"",null,null,null,null,null,null,null,null,null,null,null,null,null,null,null,null,null,null,null,null,null,null,null,null,null,null,null,null,null,null,"",""]
["","",null,null,"",null,"","","","","",null,null,null,null,null,null,null,null,null,null,"",null,null,null,null,null,null,null,null,null,null,null,null,null,null,null,null,null,null,null,null,null,null,null,null,null,null,null,null,null,null,"",""]
["","",null,null,"",null,"","","","","",null,null,null,null,null,null,null,null,null,null,"",null,null,null,null,null,null,null,null,null,null,null,null,null,null,null,null,null,null,null,null,null,null,null,null,null,null,null,null,null,null,"",""]
["","",null,null,"",null,"","","","","",null,null,null,null,null,null,null,null,null,null,"",null,null,null,null,null,null,null,null,null,null,null,null,null,null,null,null,null,null,null,null,null,null,null,null,null,null,null,null,null,null,"",""]
[{"$f":"IF(BA3203=\"\",\"\",YEAR(BB3203))","v":""},{"$f":"IF(A3203=\"\",\"\",TEXT(BA3203,\"d/mm\")&\"-\"&TEXT(BB3203,\"d/mm\"))","v":""},null,null,"",null,"","","","","",null,null,null,null,null,null,null,null,null,null,"",null,null,null,null,null,null,null,null,null,null,null,null,null,null,null,null,null,null,null,null,null,null,null,null,null,null,null,null,null,null,"",""]
["","",null,null,"",null,"","","","","",null,null,null,null,null,null,null,null,null,null,"",null,null,null,null,null,null,null,null,null,null,null,null,null,null,null,null,null,null,null,null,null,null,null,null,null,null,null,null,null,null,"",""]
["","",null,null,"",null,"","","","","",null,null,null,null,null,null,null,null,null,null,"",null,null,null,null,null,null,null,null,null,null,null,null,null,null,null,null,null,null,null,null,null,null,null,null,null,null,null,null,null,null,"",""]
["","",null,null,{"$f":"IF(OR(A3223=\"\", C3223=\"\",D3223=\"\",E3222=\"\"),\"\",C3223*D3223)","v":""},null,{"$f":"IF(OR(A3223=\"\", C3223=\"\",D3223=\"\",F3223=\"\",G3222=\"\"),\"\",J3223+F3223-E3223)","v":""},{"$f":"IF(G3223=\"\",\"\",MAX(I3222,0))","v":""},"","","",null,null,null,null,null,null,null,null,null,null,{"$f":"IF(OR(A3223=\"\",J3223=\"\"),\"\",IF(AND(F3223=0,J3223=0),0,MAX(I3222+G3223-$N$13,0)))","v":""},null,null,null,null,null,null,null,null,null,null,null,null,null,null,null,null,null,null,null,null,null,null,null,null,null,null,null,null,null,null,{"$f":"IF(BB3222<$H$17,BB3222+1,\"\")","v":""},""]
["","",null,null,"",null,"","","","","",null,null,null,null,null,null,null,null,null,null,"",null,null,null,null,null,null,null,null,null,null,null,null,null,null,null,null,null,null,null,null,null,null,null,null,null,null,null,null,null,null,"",""]
["","",null,null,"",null,"","","","","",null,null,null,null,null,null,null,null,null,null,"",null,null,null,null,null,null,null,null,null,null,null,null,null,null,null,null,null,null,null,null,null,null,null,null,null,null,null,null,null,null,"",""]
["","",null,null,"",null,"","","","","",null,null,null,null,null,null,null,null,null,null,"",null,null,null,null,null,null,null,null,null,null,null,null,null,null,null,null,null,null,null,null,null,null,null,null,null,null,null,null,null,null,"",""]
["","",null,null,"",null,"","","","","",null,null,null,null,null,null,null,null,null,null,"",null,null,null,null,null,null,null,null,null,null,null,null,null,null,null,null,null,null,null,null,null,null,null,null,null,null,null,null,null,null,"",""]
["","",null,null,"",null,"","","","","",null,null,null,null,null,null,null,null,null,null,"",null,null,null,null,null,null,null,null,null,null,null,null,null,null,null,null,null,null,null,null,null,null,null,null,null,null,null,null,null,null,"",""]
["","",null,null,"",null,"","","","","",null,null,null,null,null,null,null,null,null,null,"",null,null,null,null,null,null,null,null,null,null,null,null,null,null,null,null,null,null,null,null,null,null,null,null,null,null,null,null,null,null,"",""]
["","",null,null,"",null,"","","","","",null,null,null,null,null,null,null,null,null,null,"",null,null,null,null,null,null,null,null,null,null,null,null,null,null,null,null,null,null,null,null,null,null,null,null,null,null,null,null,null,null,"",""]
["","",null,null,"",null,"","","","","",null,null,null,null,null,null,null,null,null,null,"",null,null,null,null,null,null,null,null,null,null,null,null,null,null,null,null,null,null,null,null,null,null,null,null,null,null,null,null,null,null,"",""]
["","",null,null,"",null,"","","",{"$f":"IF(A3288=\"\",\"\",IF(I3287<=AVERAGE(E3286:E3288)/2,$K$13*$B$13-I3287,0))","v":""},"",null,null,null,null,null,null,null,null,null,null,"",null,null,null,null,null,null,null,null,null,null,null,null,null,null,null,null,null,null,null,null,null,null,null,null,null,null,null,null,null,null,"",""]
["","",null,null,"",null,"","","","","",null,null,null,null,null,null,null,null,null,null,"",null,null,null,null,null,null,null,null,null,null,null,null,null,null,null,null,null,null,null,null,null,null,null,null,null,null,null,null,null,null,"",""]
["","",null,null,"",null,"","","","","",null,null,null,null,null,null,null,null,null,null,"",null,null,null,null,null,null,null,null,null,null,null,null,null,null,null,null,null,null,null,null,null,null,null,null,null,null,null,null,null,null,"",""]
["","",null,null,"",null,"","","","","",null,null,null,null,null,null,null,null,null,null,"",null,null,null,null,null,null,null,null,null,null,null,null,null,null,null,null,null,null,null,null,null,null,null,null,null,null,null,null,null,null,"",""]
["","",null,null,"",null,"","","","","",null,null,null,null,null,null,null,null,null,null,"",null,null,null,null,null,null,null,null,null,null,null,null,null,null,null,null,null,null,null,null,null,null,null,null,null,null,null,null,null,null,"",""]
["","",null,null,"",null,"","","","","",null,null,null,null,null,null,null,null,null,null,"",null,null,null,null,null,null,null,null,null,null,null,null,null,null,null,null,null,null,null,null,null,null,null,null,null,null,null,null,null,null,"",""]
["","",null,null,"",null,"","","","","",null,null,null,null,null,null,null,null,null,null,"",null,null,null,null,null,null,null,null,null,null,null,null,null,null,null,null,null,null,null,null,null,null,null,null,null,null,null,null,null,null,"",""]
["","",null,null,"",null,"","","","","",null,null,null,null,null,null,null,null,null,null,"",null,null,null,null,null,null,null,null,null,null,null,null,null,null,null,null,null,null,null,null,null,null,null,null,null,null,null,null,null,null,"",""]
["","",null,null,"",null,"","","","","",null,null,null,null,null,null,null,null,null,null,"",null,null,null,null,null,null,null,null,null,null,null,null,null,null,null,null,null,null,null,null,null,null,null,null,null,null,null,null,null,null,"",""]
["","",null,null,"",null,"","","","","",null,null,null,null,null,null,null,null,null,null,"",null,null,null,null,null,null,null,null,null,null,null,null,null,null,null,null,null,null,null,null,null,null,null,null,null,null,null,null,null,null,"",""]
["","",null,null,"",null,"","","","","",null,null,null,null,null,null,null,null,null,null,"",null,null,null,null,null,null,null,null,null,null,null,null,null,null,null,null,null,null,null,null,null,null,null,null,null,null,null,null,null,null,"",""]
["","",null,null,"",null,"","","","","",null,null,null,null,null,null,null,null,null,null,"",null,null,null,null,null,null,null,null,null,null,null,null,null,null,null,null,null,null,null,null,null,null,null,null,null,null,null,null,null,null,"",""]
["","",null,null,"",null,"","","","","",null,null,null,null,null,null,null,null,null,null,"",null,null,null,null,null,null,null,null,null,null,null,null,null,null,null,null,null,null,null,null,null,null,null,null,null,null,null,null,null,null,"",""]
["","",null,null,"",null,"","","","","",null,null,null,null,null,null,null,null,null,null,"",null,null,null,null,null,null,null,null,null,null,null,null,null,null,null,null,null,null,null,null,null,null,null,null,null,null,null,null,null,null,"",""]
["","",null,null,"",null,"","","","","",null,null,null,null,null,null,null,null,null,null,"",null,null,null,null,null,null,null,null,null,null,null,null,null,null,null,null,null,null,null,null,null,null,null,null,null,null,null,null,null,null,"",""]
["","",null,null,"",null,"","","","","",null,null,null,null,null,null,null,null,null,null,"",null,null,null,null,null,null,null,null,null,null,null,null,null,null,null,null,null,null,null,null,null,null,null,null,null,null,null,null,null,null,"",""]
["","",null,null,"",null,"","","","","",null,null,null,null,null,null,null,null,null,null,"",null,null,null,null,null,null,null,null,null,null,null,null,null,null,null,null,null,null,null,null,null,null,null,null,null,null,null,null,null,null,"",""]
["","",null,null,"",null,"","","","","",null,null,null,null,null,null,null,null,null,null,"",null,null,null,null,null,null,null,null,null,null,null,null,null,null,null,null,null,null,null,null,null,null,null,null,null,null,null,null,null,null,"",""]
["","",null,null,"",null,"","","","","",null,null,null,null,null,null,null,null,null,null,"",null,null,null,null,null,null,null,null,null,null,null,null,null,null,null,null,null,null,null,null,null,null,null,null,null,null,null,null,null,null,"",""]
["","",null,null,"",null,"","",{"$f":"IF(G3414=\"\",\"\",MAX(MIN($K$13*$B$13,H3414+G3414),0))","v":""},"",{"$f":"IF(OR(A3414=\"\",G3414=\"\"),\"\",J3414/$H$15)","v":""},null,null,null,null,null,null,null,null,null,null,"",null,null,null,null,null,null,null,null,null,null,null,null,null,null,null,null,null,null,null,null,null,null,null,null,null,null,null,null,null,null,"",{"$f":"IF(BA3414=\"\",\"\",BA3414+$X$1-1)","v":""}]
["","",null,null,"",null,"","","","","",null,null,null,null,null,null,null,null,null,null,"",null,null,null,null,null,null,null,null,null,null,null,null,null,null,null,null,null,null,null,null,null,null,null,null,null,null,null,null,null,null,"",""]
["","",null,null,"",null,"","","","","",null,null,null,null,null,null,null,null,null,null,"",null,null,null,null,null,null,null,null,null,null,null,null,null,null,null,null,null,null,null,null,null,null,null,null,null,null,null,null,null,null,"",""]
["","",null,null,"",null,"","","","","",null,null,null,null,null,null,null,null,null,null,"",null,null,null,null,null,null,null,null,null,null,null,null,null,null,null,null,null,null,null,null,null,null,null,null,null,null,null,null,null,null,"",""]
["","",null,null,"",null,"","","","","",null,null,null,null,null,null,null,null,null,null,"",null,null,null,null,null,null,null,null,null,null,null,null,null,null,null,null,null,null,null,null,null,null,null,null,null,null,null,null,null,null,"",""]
["","",null,null,"",null,"","","","","",null,null,null,null,null,null,null,null,null,null,"",null,null,null,null,null,null,null,null,null,null,null,null,null,null,null,null,null,null,null,null,null,null,null,null,null,null,null,null,null,null,"",""]
["","",null,null,"",null,"","","","","",null,null,null,null,null,null,null,null,null,null,"",null,null,null,null,null,null,null,null,null,null,null,null,null,null,null,null,null,null,null,null,null,null,null,null,null,null,null,null,null,null,"",""]
["","",null,null,"",null,"","","","","",null,null,null,null,null,null,null,null,null,null,"",null,null,null,null,null,null,null,null,null,null,null,null,null,null,null,null,null,null,null,null,null,null,null,null,null,null,null,null,null,null,"",""]
["","",null,null,"",null,"","","","","",null,null,null,null,null,null,null,null,null,null,"",null,null,null,null,null,null,null,null,null,null,null,null,null,null,null,null,null,null,null,null,null,null,null,null,null,null,null,null,null,null,"",""]
["","",null,null,"",null,"","","","","",null,null,null,null,null,null,null,null,null,null,"",null,null,null,null,null,null,null,null,null,null,null,null,null,null,null,null,null,null,null,null,null,null,null,null,null,null,null,null,null,null,"",""]
["","",null,null,"",null,"","","",{"$f":"IF(A3480=\"\",\"\",IF(I3479<=AVERAGE(E3478:E3480)/2,$K$13*$B$13-I3479,0))","v":""},"",null,null,null,null,null,null,null,null,null,null,"",null,null,null,null,null,null,null,null,null,null,null,null,null,null,null,null,null,null,null,null,null,null,null,null,null,null,null,null,null,null,"",""]
["","",null,null,"",null,"","","","","",null,null,null,null,null,null,null,null,null,null,"",null,null,null,null,null,null,null,null,null,null,null,null,null,null,null,null,null,null,null,null,null,null,null,null,null,null,null,null,null,null,"",""]
["","",null,null,"",null,"","","","","",null,null,null,null,null,null,null,null,null,null,"",null,null,null,null,null,null,null,null,null,null,null,null,null,null,null,null,null,null,null,null,null,null,null,null,null,null,null,null,null,null,"",""]
["","",null,null,"",null,"","","","","",null,null,null,null,null,null,null,null,null,null,"",null,null,null,null,null,null,null,null,null,null,null,null,null,null,null,null,null,null,null,null,null,null,null,null,null,null,null,null,null,null,"",""]
["","",null,null,"",null,"","","","","",null,null,null,null,null,null,null,null,null,null,"",null,null,null,null,null,null,null,null,null,null,null,null,null,null,null,null,null,null,null,null,null,null,null,null,null,null,null,null,null,null,"",""]
["","",null,null,"",null,"","","","","",null,null,null,null,null,null,null,null,null,null,"",null,null,null,null,null,null,null,null,null,null,null,null,null,null,null,null,null,null,null,null,null,null,null,null,null,null,null,null,null,null,"",""]
["","",null,null,"",null,"","","","","",null,null,null,null,null,null,null,null,null,null,"",null,null,null,null,null,null,null,null,null,null,null,null,null,null,null,null,null,null,null,null,null,null,null,null,null,null,null,null,null,null,"",""]
["","",null,null,"",null,"","","","","",null,null,null,null,null,null,null,null,null,null,"",null,null,null,null,null,null,null,null,null,null,null,null,null,null,null,null,null,null,null,null,null,null,null,null,null,null,null,null,null,null,"",""]
["","",null,null,"",null,"","","","","",null,null,null,null,null,null,null,null,null,null,"",null,null,null,null,null,null,null,null,null,null,null,null,null,null,null,null,null,null,null,null,null,null,null,null,null,null,null,null,null,null,"",""]
["","",null,null,"",null,"","","","","",null,null,null,null,null,null,null,null,null,null,"",null,null,null,null,null,null,null,null,null,null,null,null,null,null,null,null,null,null,null,null,null,null,null,null,null,null,null,null,null,null,"",""]
["","",null,null,"",null,"","","","","",null,null,null,null,null,null,null,null,null,null,"",null,null,null,null,null,null,null,null,null,null,null,null,null,null,null,null,null,null,null,null,null,null,null,null,null,null,null,null,null,null,"",""]
["","",null,null,"",null,"","","","","",null,null,null,null,null,null,null,null,null,null,"",null,null,null,null,null,null,null,null,null,null,null,null,null,null,null,null,null,null,null,null,null,null,null,null,null,null,null,null,null,null,"",""]
["","",null,null,"",null,"","","","","",null,null,null,null,null,null,null,null,null,null,"",null,null,null,null,null,null,null,null,null,null,null,null,null,null,null,null,null,null,null,null,null,null,null,null,null,null,null,null,null,null,"",""]
["","",null,null,"",null,"","","","","",null,null,null,null,null,null,null,null,null,null,"",null,null,null,null,null,null,null,null,null,null,null,null,null,null,null,null,null,null,null,null,null,null,null,null,null,null,null,null,null,null,"",""]
["","",null,null,"",null,"","","","","",null,null,null,null,null,null,null,null,null,null,"",null,null,null,null,null,null,null,null,null,null,null,null,null,null,null,null,null,null,null,null,null,null,null,null,null,null,null,null,null,null,"",""]
["","",null,null,"",null,"","","","","",null,null,null,null,null,null,null,null,null,null,"",null,null,null,null,null,null,null,null,null,null,null,null,null,null,null,null,null,null,null,null,null,null,null,null,null,null,null,null,null,null,"",""]
["","",null,null,"",null,"","","","","",null,null,null,null,null,null,null,null,null,null,"",null,null,null,null,null,null,null,null,null,null,null,null,null,null,null,null,null,null,null,null,null,null,null,null,null,null,null,null,null,null,"",""]
["","",null,null,"",null,"","","","","",null,null,null,null,null,null,null,null,null,null,"",null,null,null,null,null,null,null,null,null,null,null,null,null,null,null,null,null,null,null,null,null,null,null,null,null,null,null,null,null,null,"",""]
["","",null,null,"",null,"","","","","",null,null,null,null,null,null,null,null,null,null,"",null,null,null,null,null,null,null,null,null,null,null,null,null,null,null,null,null,null,null,null,null,null,null,null,null,null,null,null,null,null,"",""]
["","",null,null,"",null,"","","","","",null,null,null,null,null,null,null,null,null,null,"",null,null,null,null,null,null,null,null,null,null,null,null,null,null,null,null,null,null,null,null,null,null,null,null,null,null,null,null,null,null,"",""]
["","",null,null,"",null,"","","","","",null,null,null,null,null,null,null,null,null,null,"",null,null,null,null,null,null,null,null,null,null,null,null,null,null,null,null,null,null,null,null,null,null,null,null,null,null,null,null,null,null,"",""]
["","",null,null,"",null,"","","","","",null,null,null,null,null,null,null,null,null,null,"",null,null,null,null,null,null,null,null,null,null,null,null,null,null,null,null,null,null,null,null,null,null,null,null,null,null,null,null,null,null,"",""]
["","",null,null,"",null,"","","","","",null,null,null,null,null,null,null,null,null,null,"",null,null,null,null,null,null,null,null,null,null,null,null,null,null,null,null,null,null,null,null,null,null,null,null,null,null,null,null,null,null,"",""]
["","",null,null,"",null,"","","","","",null,null,null,null,null,null,null,null,null,null,"",null,null,null,null,null,null,null,null,null,null,null,null,null,null,null,null,null,null,null,null,null,null,null,null,null,null,null,null,null,null,"",""]
["","",null,null,"",null,"","","","","",null,null,null,null,null,null,null,null,null,null,"",null,null,null,null,null,null,null,null,null,null,null,null,null,null,null,null,null,null,null,null,null,null,null,null,null,null,null,null,null,null,"",""]
["","",null,null,"",null,"","","","","",null,null,null,null,null,null,null,null,null,null,"",null,null,null,null,null,null,null,null,null,null,null,null,null,null,null,null,null,null,null,null,null,null,null,null,null,null,null,null,null,null,"",""]
["","",null,null,"",null,"","","","","",null,null,null,null,null,null,null,null,null,null,"",null,null,null,null,null,null,null,null,null,null,null,null,null,null,null,null,null,null,null,null,null,null,null,null,null,null,null,null,null,null,"",""]
["","",null,null,"",null,"","","","","",null,null,null,null,null,null,null,null,null,null,"",null,null,null,null,null,null,null,null,null,null,null,null,null,null,null,null,null,null,null,null,null,null,null,null,null,null,null,null,null,null,"",""]
["","",null,null,{"$f":"IF(OR(A3671=\"\", C3671=\"\",D3671=\"\",E3670=\"\"),\"\",C3671*D3671)","v":""},null,{"$f":"IF(OR(A3671=\"\", C3671=\"\",D3671=\"\",F3671=\"\",G3670=\"\"),\"\",J3671+F3671-E3671)","v":""},{"$f":"IF(G3671=\"\",\"\",MAX(I3670,0))","v":""},"","","",null,null,null,null,null,null,null,null,null,null,{"$f":"IF(OR(A3671=\"\",J3671=\"\"),\"\",IF(AND(F3671=0,J3671=0),0,MAX(I3670+G3671-$N$13,0)))","v":""},null,null,null,null,null,null,null,null,null,null,null,null,null,null,null,null,null,null,null,null,null,null,null,null,null,null,null,null,null,null,{"$f":"IF(BB3670<$H$17,BB3670+1,\"\")","v":""},""]
["","",null,null,"",null,"","","","","",null,null,null,null,null,null,null,null,null,null,"",null,null,null,null,null,null,null,null,null,null,null,null,null,null,null,null,null,null,null,null,null,null,null,null,null,null,null,null,null,null,"",""]
["","",null,null,"",null,"","","","","",null,null,null,null,null,null,null,null,null,null,"",null,null,null,null,null,null,null,null,null,null,null,null,null,null,null,null,null,null,null,null,null,null,null,null,null,null,null,null,null,null,"",""]
["","",null,null,"",null,"","","","","",null,null,null,null,null,null,null,null,null,null,"",null,null,null,null,null,null,null,null,null,null,null,null,null,null,null,null,null,null,null,null,null,null,null,null,null,null,null,null,null,null,"",""]
["","",null,null,"",null,"","","","","",null,null,null,null,null,null,null,null,null,null,"",null,null,null,null,null,null,null,null,null,null,null,null,null,null,null,null,null,null,null,null,null,null,null,null,null,null,null,null,null,null,"",""]
["","",null,null,"",null,"","","","","",null,null,null,null,null,null,null,null,null,null,"",null,null,null,null,null,null,null,null,null,null,null,null,null,null,null,null,null,null,null,null,null,null,null,null,null,null,null,null,null,null,"",""]
["","",null,null,"",null,"","","","","",null,null,null,null,null,null,null,null,null,null,"",null,null,null,null,null,null,null,null,null,null,null,null,null,null,null,null,null,null,null,null,null,null,null,null,null,null,null,null,null,null,"",""]
["","",null,null,"",null,"","","","","",null,null,null,null,null,null,null,null,null,null,"",null,null,null,null,null,null,null,null,null,null,null,null,null,null,null,null,null,null,null,null,null,null,null,null,null,null,null,null,null,null,"",""]
["","",null,null,"",null,"","","","","",null,null,null,null,null,null,null,null,null,null,"",null,null,null,null,null,null,null,null,null,null,null,null,null,null,null,null,null,null,null,null,null,null,null,null,null,null,null,null,null,null,"",""]
["","",null,null,"",null,"","","","","",null,null,null,null,null,null,null,null,null,null,"",null,null,null,null,null,null,null,null,null,null,null,null,null,null,null,null,null,null,null,null,null,null,null,null,null,null,null,null,null,null,"",""]
["","",null,null,"",null,"","","",{"$f":"IF(A3736=\"\",\"\",IF(I3735<=AVERAGE(E3734:E3736)/2,$K$13*$B$13-I3735,0))","v":""},"",null,null,null,null,null,null,null,null,null,null,"",null,null,null,null,null,null,null,null,null,null,null,null,null,null,null,null,null,null,null,null,null,null,null,null,null,null,null,null,null,null,"",""]
["","",null,null,"",null,"","","","","",null,null,null,null,null,null,null,null,null,null,"",null,null,null,null,null,null,null,null,null,null,null,null,null,null,null,null,null,null,null,null,null,null,null,null,null,null,null,null,null,null,"",""]
["","",null,null,"",null,"","","","","",null,null,null,null,null,null,null,null,null,null,"",null,null,null,null,null,null,null,null,null,null,null,null,null,null,null,null,null,null,null,null,null,null,null,null,null,null,null,null,null,null,"",""]
["","",null,null,"",null,"","","","","",null,null,null,null,null,null,null,null,null,null,"",null,null,null,null,null,null,null,null,null,null,null,null,null,null,null,null,null,null,null,null,null,null,null,null,null,null,null,null,null,null,"",""]
["","",null,null,"",null,"","","","","",null,null,null,null,null,null,null,null,null,null,"",null,null,null,null,null,null,null,null,null,null,null,null,null,null,null,null,null,null,null,null,null,null,null,null,null,null,null,null,null,null,"",""]
["","",null,null,"",null,"","","","","",null,null,null,null,null,null,null,null,null,null,"",null,null,null,null,null,null,null,null,null,null,null,null,null,null,null,null,null,null,null,null,null,null,null,null,null,null,null,null,null,null,"",""]
["","",null,null,"",null,"","","","","",null,null,null,null,null,null,null,null,null,null,"",null,null,null,null,null,null,null,null,null,null,null,null,null,null,null,null,null,null,null,null,null,null,null,null,null,null,null,null,null,null,"",""]
["","",null,null,"",null,"","","","","",null,null,null,null,null,null,null,null,null,null,"",null,null,null,null,null,null,null,null,null,null,null,null,null,null,null,null,null,null,null,null,null,null,null,null,null,null,null,null,null,null,"",""]
["","",null,null,"",null,"","","","","",null,null,null,null,null,null,null,null,null,null,"",null,null,null,null,null,null,null,null,null,null,null,null,null,null,null,null,null,null,null,null,null,null,null,null,null,null,null,null,null,null,"",""]
["","",null,null,"",null,"","","","","",null,null,null,null,null,null,null,null,null,null,"",null,null,null,null,null,null,null,null,null,null,null,null,null,null,null,null,null,null,null,null,null,null,null,null,null,null,null,null,null,null,"",""]
["","",null,null,"",null,"","","","","",null,null,null,null,null,null,null,null,null,null,"",null,null,null,null,null,null,null,null,null,null,null,null,null,null,null,null,null,null,null,null,null,null,null,null,null,null,null,null,null,null,"",""]
["","",null,null,"",null,"","","","","",null,null,null,null,null,null,null,null,null,null,"",null,null,null,null,null,null,null,null,null,null,null,null,null,null,null,null,null,null,null,null,null,null,null,null,null,null,null,null,null,null,"",""]
["","",null,null,"",null,"","","","","",null,null,null,null,null,null,null,null,null,null,"",null,null,null,null,null,null,null,null,null,null,null,null,null,null,null,null,null,null,null,null,null,null,null,null,null,null,null,null,null,null,"",""]
["","",null,null,"",null,"","","","","",null,null,null,null,null,null,null,null,null,null,"",null,null,null,null,null,null,null,null,null,null,null,null,null,null,null,null,null,null,null,null,null,null,null,null,null,null,null,null,null,null,"",""]
["","",null,null,"",null,"","","","","",null,null,null,null,null,null,null,null,null,null,"",null,null,null,null,null,null,null,null,null,null,null,null,null,null,null,null,null,null,null,null,null,null,null,null,null,null,null,null,null,null,"",""]
["","",null,null,"",null,"","","","","",null,null,null,null,null,null,null,null,null,null,"",null,null,null,null,null,null,null,null,null,null,null,null,null,null,null,null,null,null,null,null,null,null,null,null,null,null,null,null,null,null,"",""]
["","",null,null,"",null,"","","","","",null,null,null,null,null,null,null,null,null,null,"",null,null,null,null,null,null,null,null,null,null,null,null,null,null,null,null,null,null,null,null,null,null,null,null,null,null,null,null,null,null,"",""]
["","",null,null,"",null,"","","","","",null,null,null,null,null,null,null,null,null,null,"",null,null,null,null,null,null,null,null,null,null,null,null,null,null,null,null,null,null,null,null,null,null,null,null,null,null,null,null,null,null,"",""]
["","",null,null,"",null,"","","","","",null,null,null,null,null,null,null,null,null,null,"",null,null,null,null,null,null,null,null,null,null,null,null,null,null,null,null,null,null,null,null,null,null,null,null,null,null,null,null,null,null,"",""]
["","",null,null,"",null,"","","","","",null,null,null,null,null,null,null,null,null,null,"",null,null,null,null,null,null,null,null,null,null,null,null,null,null,null,null,null,null,null,null,null,null,null,null,null,null,null,null,null,null,"",""]
["","",null,null,"",null,"","","","","",null,null,null,null,null,null,null,null,null,null,"",null,null,null,null,null,null,null,null,null,null,null,null,null,null,null,null,null,null,null,null,null,null,null,null,null,null,null,null,null,null,"",""]
["","",null,null,"",null,"","","","","",null,null,null,null,null,null,null,null,null,null,"",null,null,null,null,null,null,null,null,null,null,null,null,null,null,null,null,null,null,null,null,null,null,null,null,null,null,null,null,null,null,"",""]
["","",null,null,"",null,"","","","","",null,null,null,null,null,null,null,null,null,null,"",null,null,null,null,null,null,null,null,null,null,null,null,null,null,null,null,null,null,null,null,null,null,null,null,null,null,null,null,null,null,"",""]
["","",null,null,"",null,"","","","","",null,null,null,null,null,null,null,null,null,null,"",null,null,null,null,null,null,null,null,null,null,null,null,null,null,null,null,null,null,null,null,null,null,null,null,null,null,null,null,null,null,"",""]
["","",null,null,"",null,"","","","","",null,null,null,null,null,null,null,null,null,null,"",null,null,null,null,null,null,null,null,null,null,null,null,null,null,null,null,null,null,null,null,null,null,null,null,null,null,null,null,null,null,"",""]
["","",null,null,"",null,"","","","","",null,null,null,null,null,null,null,null,null,null,"",null,null,null,null,null,null,null,null,null,null,null,null,null,null,null,null,null,null,null,null,null,null,null,null,null,null,null,null,null,null,"",""]
["","",null,null,"",null,"","","","","",null,null,null,null,null,null,null,null,null,null,"",null,null,null,null,null,null,null,null,null,null,null,null,null,null,null,null,null,null,null,null,null,null,null,null,null,null,null,null,null,null,"",""]
["","",null,null,"",null,"","","","","",null,null,null,null,null,null,null,null,null,null,"",null,null,null,null,null,null,null,null,null,null,null,null,null,null,null,null,null,null,null,null,null,null,null,null,null,null,null,null,null,null,"",""]
["","",null,null,"",null,"","","","","",null,null,null,null,null,null,null,null,null,null,"",null,null,null,null,null,null,null,null,null,null,null,null,null,null,null,null,null,null,null,null,null,null,null,null,null,null,null,null,null,null,"",""]
["","",null,null,"",null,"","","","","",null,null,null,null,null,null,null,null,null,null,"",null,null,null,null,null,null,null,null,null,null,null,null,null,null,null,null,null,null,null,null,null,null,null,null,null,null,null,null,null,null,"",""]
["","",null,null,"",null,"","","","","",null,null,null,null,null,null,null,null,null,null,"",null,null,null,null,null,null,null,null,null,null,null,null,null,null,null,null,null,null,null,null,null,null,null,null,null,null,null,null,null,null,"",""]
["","",null,null,"",null,"","","","","",null,null,null,null,null,null,null,null,null,null,"",null,null,null,null,null,null,null,null,null,null,null,null,null,null,null,null,null,null,null,null,null,null,null,null,null,null,null,null,null,null,"",""]
["","",null,null,"",null,"","","","","",null,null,null,null,null,null,null,null,null,null,"",null,null,null,null,null,null,null,null,null,null,null,null,null,null,null,null,null,null,null,null,null,null,null,null,null,null,null,null,null,null,"",""]
["","",null,null,"",null,"","","","","",null,null,null,null,null,null,null,null,null,null,"",null,null,null,null,null,null,null,null,null,null,null,null,null,null,null,null,null,null,null,null,null,null,null,null,null,null,null,null,null,null,"",""]
["","",null,null,"",null,"","","","","",null,null,null,null,null,null,null,null,null,null,"",null,null,null,null,null,null,null,null,null,null,null,null,null,null,null,null,null,null,null,null,null,null,null,null,null,null,null,null,null,null,"",""]
["","",null,null,"",null,"","","","","",null,null,null,null,null,null,null,null,null,null,"",null,null,null,null,null,null,null,null,null,null,null,null,null,null,null,null,null,null,null,null,null,null,null,null,null,null,null,null,null,null,"",""]
["","",null,null,"",null,"","","","","",null,null,null,null,null,null,null,null,null,null,"",null,null,null,null,null,null,null,null,null,null,null,null,null,null,null,null,null,null,null,null,null,null,null,null,null,null,null,null,null,null,"",""]
["","",null,null,"",null,"","","","","",null,null,null,null,null,null,null,null,null,null,"",null,null,null,null,null,null,null,null,null,null,null,null,null,null,null,null,null,null,null,null,null,null,null,null,null,null,null,null,null,null,"",""]
["","",null,null,"",null,"","","","","",null,null,null,null,null,null,null,null,null,null,"",null,null,null,null,null,null,null,null,null,null,null,null,null,null,null,null,null,null,null,null,null,null,null,null,null,null,null,null,null,null,"",""]
["","",null,null,"",null,"","","","","",null,null,null,null,null,null,null,null,null,null,"",null,null,null,null,null,null,null,null,null,null,null,null,null,null,null,null,null,null,null,null,null,null,null,null,null,null,null,null,null,null,"",""]
["","",null,null,"",null,"","","","","",null,null,null,null,null,null,null,null,null,null,"",null,null,null,null,null,null,null,null,null,null,null,null,null,null,null,null,null,null,null,null,null,null,null,null,null,null,null,null,null,null,"",""]
["","",null,null,"",null,"","","","","",null,null,null,null,null,null,null,null,null,null,"",null,null,null,null,null,null,null,null,null,null,null,null,null,null,null,null,null,null,null,null,null,null,null,null,null,null,null,null,null,null,"",""]
["","",null,null,"",null,"","","","","",null,null,null,null,null,null,null,null,null,null,"",null,null,null,null,null,null,null,null,null,null,null,null,null,null,null,null,null,null,null,null,null,null,null,null,null,null,null,null,null,null,"",""]
["","",null,null,"",null,"","","","","",null,null,null,null,null,null,null,null,null,null,"",null,null,null,null,null,null,null,null,null,null,null,null,null,null,null,null,null,null,null,null,null,null,null,null,null,null,null,null,null,null,"",""]
["","",null,null,"",null,"","","","","",null,null,null,null,null,null,null,null,null,null,"",null,null,null,null,null,null,null,null,null,null,null,null,null,null,null,null,null,null,null,null,null,null,null,null,null,null,null,null,null,null,"",""]
["","",null,null,"",null,"","","","","",null,null,null,null,null,null,null,null,null,null,"",null,null,null,null,null,null,null,null,null,null,null,null,null,null,null,null,null,null,null,null,null,null,null,null,null,null,null,null,null,null,"",""]
["","",null,null,"",null,"","","","","",null,null,null,null,null,null,null,null,null,null,"",null,null,null,null,null,null,null,null,null,null,null,null,null,null,null,null,null,null,null,null,null,null,null,null,null,null,null,null,null,null,"",""]
["","",null,null,"",null,"","","","","",null,null,null,null,null,null,null,null,null,null,"",null,null,null,null,null,null,null,null,null,null,null,null,null,null,null,null,null,null,null,null,null,null,null,null,null,null,null,null,null,null,"",""]
["","",null,null,"",null,"","","","","",null,null,null,null,null,null,null,null,null,null,"",null,null,null,null,null,null,null,null,null,null,null,null,null,null,null,null,null,null,null,null,null,null,null,null,null,null,null,null,null,null,"",""]
["","",null,null,"",null,"","","","","",null,null,null,null,null,null,null,null,null,null,"",null,null,null,null,null,null,null,null,null,null,null,null,null,null,null,null,null,null,null,null,null,null,null,null,null,null,null,null,null,null,"",""]
[{"$f":"IF(BA3907=\"\",\"\",YEAR(BB3907))","v":""},{"$f":"IF(A3907=\"\",\"\",TEXT(BA3907,\"d/mm\")&\"-\"&TEXT(BB3907,\"d/mm\"))","v":""},null,null,"",null,"","","","","",null,null,null,null,null,null,null,null,null,null,"",null,null,null,null,null,null,null,null,null,null,null,null,null,null,null,null,null,null,null,null,null,null,null,null,null,null,null,null,null,null,"",""]
["","",null,null,"",null,"","","","","",null,null,null,null,null,null,null,null,null,null,"",null,null,null,null,null,null,null,null,null,null,null,null,null,null,null,null,null,null,null,null,null,null,null,null,null,null,null,null,null,null,"",""]
["","",null,null,"",null,"","","","","",null,null,null,null,null,null,null,null,null,null,"",null,null,null,null,null,null,null,null,null,null,null,null,null,null,null,null,null,null,null,null,null,null,null,null,null,null,null,null,null,null,"",""]
["","",null,null,"",null,"","","","","",null,null,null,null,null,null,null,null,null,null,"",null,null,null,null,null,null,null,null,null,null,null,null,null,null,null,null,null,null,null,null,null,null,null,null,null,null,null,null,null,null,"",""]
["","",null,null,"",null,"","","","","",null,null,null,null,null,null,null,null,null,null,"",null,null,null,null,null,null,null,null,null,null,null,null,null,null,null,null,null,null,null,null,null,null,null,null,null,null,null,null,null,null,"",""]
["","",null,null,"",null,"","","","","",null,null,null,null,null,null,null,null,null,null,"",null,null,null,null,null,null,null,null,null,null,null,null,null,null,null,null,null,null,null,null,null,null,null,null,null,null,null,null,null,null,"",""]
["","",null,null,"",null,"","","","","",null,null,null,null,null,null,null,null,null,null,"",null,null,null,null,null,null,null,null,null,null,null,null,null,null,null,null,null,null,null,null,null,null,null,null,null,null,null,null,null,null,"",""]
["","",null,null,"",null,"","","","","",null,null,null,null,null,null,null,null,null,null,"",null,null,null,null,null,null,null,null,null,null,null,null,null,null,null,null,null,null,null,null,null,null,null,null,null,null,null,null,null,null,"",""]
["","",null,null,"",null,"","","","","",null,null,null,null,null,null,null,null,null,null,"",null,null,null,null,null,null,null,null,null,null,null,null,null,null,null,null,null,null,null,null,null,null,null,null,null,null,null,null,null,null,"",""]
["","",null,null,"",null,"","","","","",null,null,null,null,null,null,null,null,null,null,"",null,null,null,null,null,null,null,null,null,null,null,null,null,null,null,null,null,null,null,null,null,null,null,null,null,null,null,null,null,null,"",""]
["","",null,null,"",null,"","","","","",null,null,null,null,null,null,null,null,null,null,"",null,null,null,null,null,null,null,null,null,null,null,null,null,null,null,null,null,null,null,null,null,null,null,null,null,null,null,null,null,null,"",""]
["","",null,null,"",null,"","","","","",null,null,null,null,null,null,null,null,null,null,"",null,null,null,null,null,null,null,null,null,null,null,null,null,null,null,null,null,null,null,null,null,null,null,null,null,null,null,null,null,null,"",""]
["","",null,null,"",null,"","","","","",null,null,null,null,null,null,null,null,null,null,"",null,null,null,null,null,null,null,null,null,null,null,null,null,null,null,null,null,null,null,null,null,null,null,null,null,null,null,null,null,null,"",""]
["","",null,null,"",null,"","","","","",null,null,null,null,null,null,null,null,null,null,"",null,null,null,null,null,null,null,null,null,null,null,null,null,null,null,null,null,null,null,null,null,null,null,null,null,null,null,null,null,null,"",""]
["","",null,null,"",null,"","","","","",null,null,null,null,null,null,null,null,null,null,"",null,null,null,null,null,null,null,null,null,null,null,null,null,null,null,null,null,null,null,null,null,null,null,null,null,null,null,null,null,null,"",""]
["","",null,null,"",null,"","","","","",null,null,null,null,null,null,null,null,null,null,"",null,null,null,null,null,null,null,null,null,null,null,null,null,null,null,null,null,null,null,null,null,null,null,null,null,null,null,null,null,null,"",""]
["","",null,null,"",null,"","","","","",null,null,null,null,null,null,null,null,null,null,"",null,null,null,null,null,null,null,null,null,null,null,null,null,null,null,null,null,null,null,null,null,null,null,null,null,null,null,null,null,null,"",""]
["","",null,null,"",null,"","","","","",null,null,null,null,null,null,null,null,null,null,"",null,null,null,null,null,null,null,null,null,null,null,null,null,null,null,null,null,null,null,null,null,null,null,null,null,null,null,null,null,null,"",""]
["","",null,null,"",null,"","","","","",null,null,null,null,null,null,null,null,null,null,"",null,null,null,null,null,null,null,null,null,null,null,null,null,null,null,null,null,null,null,null,null,null,null,null,null,null,null,null,null,null,"",""]
["","",null,null,"",null,"","",{"$f":"IF(G3926=\"\",\"\",MAX(MIN($K$13*$B$13,H3926+G3926),0))","v":""},"",{"$f":"IF(OR(A3926=\"\",G3926=\"\"),\"\",J3926/$H$15)","v":""},null,null,null,null,null,null,null,null,null,null,"",null,null,null,null,null,null,null,null,null,null,null,null,null,null,null,null,null,null,null,null,null,null,null,null,null,null,null,null,null,null,"",{"$f":"IF(BA3926=\"\",\"\",BA3926+$X$1-1)","v":""}]
["","",null,null,{"$f":"IF(OR(A3927=\"\", C3927=\"\",D3927=\"\",E3926=\"\"),\"\",C3927*D3927)","v":""},null,{"$f":"IF(OR(A3927=\"\", C3927=\"\",D3927=\"\",F3927=\"\",G3926=\"\"),\"\",J3927+F3927-E3927)","v":""},{"$f":"IF(G3927=\"\",\"\",MAX(I3926,0))","v":""},"","","",null,null,null,null,null,null,null,null,null,null,{"$f":"IF(OR(A3927=\"\",J3927=\"\"),\"\",IF(AND(F3927=0,J3927=0),0,MAX(I3926+G3927-$N$13,0)))","v":""},null,null,null,null,null,null,null,null,null,null,null,null,null,null,null,null,null,null,null,null,null,null,null,null,null,null,null,null,null,null,{"$f":"IF(BB3926<$H$17,BB3926+1,\"\")","v":""},""]
["","",null,null,"",null,"","","",{"$f":"IF(A3928=\"\",\"\",IF(I3927<=AVERAGE(E3926:E3928)/2,$K$13*$B$13-I3927,0))","v":""},"",null,null,null,null,null,null,null,null,null,null,"",null,null,null,null,null,null,null,null,null,null,null,null,null,null,null,null,null,null,null,null,null,null,null,null,null,null,null,null,null,null,"",""]
["","",null,null,"",null,"","","","","",null,null,null,null,null,null,null,null,null,null,"",null,null,null,null,null,null,null,null,null,null,null,null,null,null,null,null,null,null,null,null,null,null,null,null,null,null,null,null,null,null,"",""]
["","",null,null,"",null,"","","","","",null,null,null,null,null,null,null,null,null,null,"",null,null,null,null,null,null,null,null,null,null,null,null,null,null,null,null,null,null,null,null,null,null,null,null,null,null,null,null,null,null,"",""]
["","",null,null,"",null,"","","","","",null,null,null,null,null,null,null,null,null,null,"",null,null,null,null,null,null,null,null,null,null,null,null,null,null,null,null,null,null,null,null,null,null,null,null,null,null,null,null,null,null,"",""]
["","",null,null,"",null,"","","","","",null,null,null,null,null,null,null,null,null,null,"",null,null,null,null,null,null,null,null,null,null,null,null,null,null,null,null,null,null,null,null,null,null,null,null,null,null,null,null,null,null,"",""]
["","",null,null,"",null,"","","","","",null,null,null,null,null,null,null,null,null,null,"",null,null,null,null,null,null,null,null,null,null,null,null,null,null,null,null,null,null,null,null,null,null,null,null,null,null,null,null,null,null,"",""]
["","",null,null,"",null,"","","","","",null,null,null,null,null,null,null,null,null,null,"",null,null,null,null,null,null,null,null,null,null,null,null,null,null,null,null,null,null,null,null,null,null,null,null,null,null,null,null,null,null,"",""]
["","",null,null,"",null,"","","","","",null,null,null,null,null,null,null,null,null,null,"",null,null,null,null,null,null,null,null,null,null,null,null,null,null,null,null,null,null,null,null,null,null,null,null,null,null,null,null,null,null,"",""]
["","",null,null,"",null,"","","","","",null,null,null,null,null,null,null,null,null,null,"",null,null,null,null,null,null,null,null,null,null,null,null,null,null,null,null,null,null,null,null,null,null,null,null,null,null,null,null,null,null,"",""]
["","",null,null,"",null,"","","","","",null,null,null,null,null,null,null,null,null,null,"",null,null,null,null,null,null,null,null,null,null,null,null,null,null,null,null,null,null,null,null,null,null,null,null,null,null,null,null,null,null,"",""]
["","",null,null,"",null,"","","","","",null,null,null,null,null,null,null,null,null,null,"",null,null,null,null,null,null,null,null,null,null,null,null,null,null,null,null,null,null,null,null,null,null,null,null,null,null,null,null,null,null,"",""]
["","",null,null,"",null,"","","","","",null,null,null,null,null,null,null,null,null,null,"",null,null,null,null,null,null,null,null,null,null,null,null,null,null,null,null,null,null,null,null,null,null,null,null,null,null,null,null,null,null,"",""]
["","",null,null,"",null,"","","","","",null,null,null,null,null,null,null,null,null,null,"",null,null,null,null,null,null,null,null,null,null,null,null,null,null,null,null,null,null,null,null,null,null,null,null,null,null,null,null,null,null,"",""]
["","",null,null,"",null,"","","","","",null,null,null,null,null,null,null,null,null,null,"",null,null,null,null,null,null,null,null,null,null,null,null,null,null,null,null,null,null,null,null,null,null,null,null,null,null,null,null,null,null,"",""]
["","",null,null,"",null,"","","","","",null,null,null,null,null,null,null,null,null,null,"",null,null,null,null,null,null,null,null,null,null,null,null,null,null,null,null,null,null,null,null,null,null,null,null,null,null,null,null,null,null,"",""]
["","",null,null,"",null,"","","","","",null,null,null,null,null,null,null,null,null,null,"",null,null,null,null,null,null,null,null,null,null,null,null,null,null,null,null,null,null,null,null,null,null,null,null,null,null,null,null,null,null,"",""]
["","",null,null,"",null,"","","","","",null,null,null,null,null,null,null,null,null,null,"",null,null,null,null,null,null,null,null,null,null,null,null,null,null,null,null,null,null,null,null,null,null,null,null,null,null,null,null,null,null,"",""]
["","",null,null,"",null,"","","","","",null,null,null,null,null,null,null,null,null,null,"",null,null,null,null,null,null,null,null,null,null,null,null,null,null,null,null,null,null,null,null,null,null,null,null,null,null,null,null,null,null,"",""]
["","",null,null,"",null,"","","","","",null,null,null,null,null,null,null,null,null,null,"",null,null,null,null,null,null,null,null,null,null,null,null,null,null,null,null,null,null,null,null,null,null,null,null,null,null,null,null,null,null,"",""]
["","",null,null,"",null,"","","","","",null,null,null,null,null,null,null,null,null,null,"",null,null,null,null,null,null,null,null,null,null,null,null,null,null,null,null,null,null,null,null,null,null,null,null,null,null,null,null,null,null,"",""]
["","",null,null,"",null,"","","","","",null,null,null,null,null,null,null,null,null,null,"",null,null,null,null,null,null,null,null,null,null,null,null,null,null,null,null,null,null,null,null,null,null,null,null,null,null,null,null,null,null,"",""]
["","",null,null,"",null,"","","","","",null,null,null,null,null,null,null,null,null,null,"",null,null,null,null,null,null,null,null,null,null,null,null,null,null,null,null,null,null,null,null,null,null,null,null,null,null,null,null,null,null,"",""]
["","",null,null,"",null,"","","","","",null,null,null,null,null,null,null,null,null,null,"",null,null,null,null,null,null,null,null,null,null,null,null,null,null,null,null,null,null,null,null,null,null,null,null,null,null,null,null,null,null,"",""]
["","",null,null,"",null,"","","","","",null,null,null,null,null,null,null,null,null,null,"",null,null,null,null,null,null,null,null,null,null,null,null,null,null,null,null,null,null,null,null,null,null,null,null,null,null,null,null,null,null,"",""]
["","",null,null,"",null,"","","","","",null,null,null,null,null,null,null,null,null,null,"",null,null,null,null,null,null,null,null,null,null,null,null,null,null,null,null,null,null,null,null,null,null,null,null,null,null,null,null,null,null,"",""]
["","",null,null,"",null,"","","","","",null,null,null,null,null,null,null,null,null,null,"",null,null,null,null,null,null,null,null,null,null,null,null,null,null,null,null,null,null,null,null,null,null,null,null,null,null,null,null,null,null,"",""]
["","",null,null,"",null,"","","","","",null,null,null,null,null,null,null,null,null,null,"",null,null,null,null,null,null,null,null,null,null,null,null,null,null,null,null,null,null,null,null,null,null,null,null,null,null,null,null,null,null,"",""]
["","",null,null,"",null,"","","","","",null,null,null,null,null,null,null,null,null,null,"",null,null,null,null,null,null,null,null,null,null,null,null,null,null,null,null,null,null,null,null,null,null,null,null,null,null,null,null,null,null,"",""]
["","",null,null,"",null,"","","","","",null,null,null,null,null,null,null,null,null,null,"",null,null,null,null,null,null,null,null,null,null,null,null,null,null,null,null,null,null,null,null,null,null,null,null,null,null,null,null,null,null,"",""]
["","",null,null,"",null,"","","","","",null,null,null,null,null,null,null,null,null,null,"",null,null,null,null,null,null,null,null,null,null,null,null,null,null,null,null,null,null,null,null,null,null,null,null,null,null,null,null,null,null,"",""]
["","",null,null,"",null,"","","","","",null,null,null,null,null,null,null,null,null,null,"",null,null,null,null,null,null,null,null,null,null,null,null,null,null,null,null,null,null,null,null,null,null,null,null,null,null,null,null,null,null,"",""]
["","",null,null,"",null,"","","","","",null,null,null,null,null,null,null,null,null,null,"",null,null,null,null,null,null,null,null,null,null,null,null,null,null,null,null,null,null,null,null,null,null,null,null,null,null,null,null,null,null,"",""]
["","",null,null,"",null,"","","","","",null,null,null,null,null,null,null,null,null,null,"",null,null,null,null,null,null,null,null,null,null,null,null,null,null,null,null,null,null,null,null,null,null,null,null,null,null,null,null,null,null,"",""]
["","",null,null,"",null,"","","","","",null,null,null,null,null,null,null,null,null,null,"",null,null,null,null,null,null,null,null,null,null,null,null,null,null,null,null,null,null,null,null,null,null,null,null,null,null,null,null,null,null,"",""]
["","",null,null,"",null,"","","","","",null,null,null,null,null,null,null,null,null,null,"",null,null,null,null,null,null,null,null,null,null,null,null,null,null,null,null,null,null,null,null,null,null,null,null,null,null,null,null,null,null,"",""]
["","",null,null,"",null,"","","","","",null,null,null,null,null,null,null,null,null,null,"",null,null,null,null,null,null,null,null,null,null,null,null,null,null,null,null,null,null,null,null,null,null,null,null,null,null,null,null,null,null,"",""]
["","",null,null,"",null,"","","","","",null,null,null,null,null,null,null,null,null,null,"",null,null,null,null,null,null,null,null,null,null,null,null,null,null,null,null,null,null,null,null,null,null,null,null,null,null,null,null,null,null,"",""]
["","",null,null,"",null,"","","","","",null,null,null,null,null,null,null,null,null,null,"",null,null,null,null,null,null,null,null,null,null,null,null,null,null,null,null,null,null,null,null,null,null,null,null,null,null,null,null,null,null,"",""]
["","",null,null,"",null,"","","","","",null,null,null,null,null,null,null,null,null,null,"",null,null,null,null,null,null,null,null,null,null,null,null,null,null,null,null,null,null,null,null,null,null,null,null,null,null,null,null,null,null,"",""]
["","",null,null,"",null,"","","","","",null,null,null,null,null,null,null,null,null,null,"",null,null,null,null,null,null,null,null,null,null,null,null,null,null,null,null,null,null,null,null,null,null,null,null,null,null,null,null,null,null,"",""]
["","",null,null,"",null,"","","","","",null,null,null,null,null,null,null,null,null,null,"",null,null,null,null,null,null,null,null,null,null,null,null,null,null,null,null,null,null,null,null,null,null,null,null,null,null,null,null,null,null,"",""]
["","",null,null,"",null,"","","","","",null,null,null,null,null,null,null,null,null,null,"",null,null,null,null,null,null,null,null,null,null,null,null,null,null,null,null,null,null,null,null,null,null,null,null,null,null,null,null,null,null,"",""]
["","",null,null,"",null,"","","","","",null,null,null,null,null,null,null,null,null,null,"",null,null,null,null,null,null,null,null,null,null,null,null,null,null,null,null,null,null,null,null,null,null,null,null,null,null,null,null,null,null,"",""]
[{"$f":"IF(BA3971=\"\",\"\",YEAR(BB3971))","v":""},{"$f":"IF(A3971=\"\",\"\",TEXT(BA3971,\"d/mm\")&\"-\"&TEXT(BB3971,\"d/mm\"))","v":""},null,null,"",null,"","","","","",null,null,null,null,null,null,null,null,null,null,"",null,null,null,null,null,null,null,null,null,null,null,null,null,null,null,null,null,null,null,null,null,null,null,null,null,null,null,null,null,null,"",""]
["","",null,null,"",null,"","","","","",null,null,null,null,null,null,null,null,null,null,"",null,null,null,null,null,null,null,null,null,null,null,null,null,null,null,null,null,null,null,null,null,null,null,null,null,null,null,null,null,null,"",""]
["","",null,null,"",null,"","","","","",null,null,null,null,null,null,null,null,null,null,"",null,null,null,null,null,null,null,null,null,null,null,null,null,null,null,null,null,null,null,null,null,null,null,null,null,null,null,null,null,null,"",""]
["","",null,null,"",null,"","","","","",null,null,null,null,null,null,null,null,null,null,"",null,null,null,null,null,null,null,null,null,null,null,null,null,null,null,null,null,null,null,null,null,null,null,null,null,null,null,null,null,null,"",""]
["","",null,null,"",null,"","","","","",null,null,null,null,null,null,null,null,null,null,"",null,null,null,null,null,null,null,null,null,null,null,null,null,null,null,null,null,null,null,null,null,null,null,null,null,null,null,null,null,null,"",""]
["","",null,null,"",null,"","","","","",null,null,null,null,null,null,null,null,null,null,"",null,null,null,null,null,null,null,null,null,null,null,null,null,null,null,null,null,null,null,null,null,null,null,null,null,null,null,null,null,null,"",""]
["","",null,null,"",null,"","","","","",null,null,null,null,null,null,null,null,null,null,"",null,null,null,null,null,null,null,null,null,null,null,null,null,null,null,null,null,null,null,null,null,null,null,null,null,null,null,null,null,null,"",""]
["","",null,null,"",null,"","","","","",null,null,null,null,null,null,null,null,null,null,"",null,null,null,null,null,null,null,null,null,null,null,null,null,null,null,null,null,null,null,null,null,null,null,null,null,null,null,null,null,null,"",""]
["","",null,null,"",null,"","","","","",null,null,null,null,null,null,null,null,null,null,"",null,null,null,null,null,null,null,null,null,null,null,null,null,null,null,null,null,null,null,null,null,null,null,null,null,null,null,null,null,null,"",""]
["","",null,null,"",null,"","","","","",null,null,null,null,null,null,null,null,null,null,"",null,null,null,null,null,null,null,null,null,null,null,null,null,null,null,null,null,null,null,null,null,null,null,null,null,null,null,null,null,null,"",""]
["","",null,null,"",null,"","","","","",null,null,null,null,null,null,null,null,null,null,"",null,null,null,null,null,null,null,null,null,null,null,null,null,null,null,null,null,null,null,null,null,null,null,null,null,null,null,null,null,null,"",""]
["","",null,null,"",null,"","","","","",null,null,null,null,null,null,null,null,null,null,"",null,null,null,null,null,null,null,null,null,null,null,null,null,null,null,null,null,null,null,null,null,null,null,null,null,null,null,null,null,null,"",""]
["","",null,null,"",null,"","","","","",null,null,null,null,null,null,null,null,null,null,"",null,null,null,null,null,null,null,null,null,null,null,null,null,null,null,null,null,null,null,null,null,null,null,null,null,null,null,null,null,null,"",""]
["","",null,null,"",null,"","","","","",null,null,null,null,null,null,null,null,null,null,"",null,null,null,null,null,null,null,null,null,null,null,null,null,null,null,null,null,null,null,null,null,null,null,null,null,null,null,null,null,null,"",""]
["","",null,null,"",null,"","","","","",null,null,null,null,null,null,null,null,null,null,"",null,null,null,null,null,null,null,null,null,null,null,null,null,null,null,null,null,null,null,null,null,null,null,null,null,null,null,null,null,null,"",""]
["","",null,null,"",null,"","","","","",null,null,null,null,null,null,null,null,null,null,"",null,null,null,null,null,null,null,null,null,null,null,null,null,null,null,null,null,null,null,null,null,null,null,null,null,null,null,null,null,null,"",""]
["","",null,null,"",null,"","","","","",null,null,null,null,null,null,null,null,null,null,"",null,null,null,null,null,null,null,null,null,null,null,null,null,null,null,null,null,null,null,null,null,null,null,null,null,null,null,null,null,null,"",""]
["","",null,null,"",null,"","","","","",null,null,null,null,null,null,null,null,null,null,"",null,null,null,null,null,null,null,null,null,null,null,null,null,null,null,null,null,null,null,null,null,null,null,null,null,null,null,null,null,null,"",""]
["","",null,null,"",null,"","","","","",null,null,null,null,null,null,null,null,null,null,"",null,null,null,null,null,null,null,null,null,null,null,null,null,null,null,null,null,null,null,null,null,null,null,null,null,null,null,null,null,null,"",""]
["","",null,null,"",null,"","",{"$f":"IF(G3990=\"\",\"\",MAX(MIN($K$13*$B$13,H3990+G3990),0))","v":""},"",{"$f":"IF(OR(A3990=\"\",G3990=\"\"),\"\",J3990/$H$15)","v":""},null,null,null,null,null,null,null,null,null,null,"",null,null,null,null,null,null,null,null,null,null,null,null,null,null,null,null,null,null,null,null,null,null,null,null,null,null,null,null,null,null,"",{"$f":"IF(BA3990=\"\",\"\",BA3990+$X$1-1)","v":""}]
["","",null,null,{"$f":"IF(OR(A3991=\"\", C3991=\"\",D3991=\"\",E3990=\"\"),\"\",C3991*D3991)","v":""},null,{"$f":"IF(OR(A3991=\"\", C3991=\"\",D3991=\"\",F3991=\"\",G3990=\"\"),\"\",J3991+F3991-E3991)","v":""},{"$f":"IF(G3991=\"\",\"\",MAX(I3990,0))","v":""},"","","",null,null,null,null,null,null,null,null,null,null,{"$f":"IF(OR(A3991=\"\",J3991=\"\"),\"\",IF(AND(F3991=0,J3991=0),0,MAX(I3990+G3991-$N$13,0)))","v":""},null,null,null,null,null,null,null,null,null,null,null,null,null,null,null,null,null,null,null,null,null,null,null,null,null,null,null,null,null,null,{"$f":"IF(BB3990<$H$17,BB3990+1,\"\")","v":""},""]
["","",null,null,"",null,"","","",{"$f":"IF(A3992=\"\",\"\",IF(I3991<=AVERAGE(E3990:E3992)/2,$K$13*$B$13-I3991,0))","v":""},"",null,null,null,null,null,null,null,null,null,null,"",null,null,null,null,null,null,null,null,null,null,null,null,null,null,null,null,null,null,null,null,null,null,null,null,null,null,null,null,null,null,"",""]
["","",null,null,"",null,"","","","","",null,null,null,null,null,null,null,null,null,null,"",null,null,null,null,null,null,null,null,null,null,null,null,null,null,null,null,null,null,null,null,null,null,null,null,null,null,null,null,null,null,"",""]
["","",null,null,"",null,"","","","","",null,null,null,null,null,null,null,null,null,null,"",null,null,null,null,null,null,null,null,null,null,null,null,null,null,null,null,null,null,null,null,null,null,null,null,null,null,null,null,null,null,"",""]
["","",null,null,"",null,"","","","","",null,null,null,null,null,null,null,null,null,null,"",null,null,null,null,null,null,null,null,null,null,null,null,null,null,null,null,null,null,null,null,null,null,null,null,null,null,null,null,null,null,"",""]
["","",null,null,"",null,"","","","","",null,null,null,null,null,null,null,null,null,null,"",null,null,null,null,null,null,null,null,null,null,null,null,null,null,null,null,null,null,null,null,null,null,null,null,null,null,null,null,null,null,"",""]
["","",null,null,"",null,"","","","","",null,null,null,null,null,null,null,null,null,null,"",null,null,null,null,null,null,null,null,null,null,null,null,null,null,null,null,null,null,null,null,null,null,null,null,null,null,null,null,null,null,"",""]
["","",null,null,"",null,"","","","","",null,null,null,null,null,null,null,null,null,null,"",null,null,null,null,null,null,null,null,null,null,null,null,null,null,null,null,null,null,null,null,null,null,null,null,null,null,null,null,null,null,"",""]
["","",null,null,"",null,"","","","","",null,null,null,null,null,null,null,null,null,null,"",null,null,null,null,null,null,null,null,null,null,null,null,null,null,null,null,null,null,null,null,null,null,null,null,null,null,null,null,null,null,"",""]
["","",null,null,"",null,"","","","","",null,null,null,null,null,null,null,null,null,null,"",null,null,null,null,null,null,null,null,null,null,null,null,null,null,null,null,null,null,null,null,null,null,null,null,null,null,null,null,null,null,"",""]
["","",null,null,"",null,"","","","","",null,null,null,null,null,null,null,null,null,null,"",null,null,null,null,null,null,null,null,null,null,null,null,null,null,null,null,null,null,null,null,null,null,null,null,null,null,null,null,null,null,"",""]
["","",null,null,"",null,"","","","","",null,null,null,null,null,null,null,null,null,null,"",null,null,null,null,null,null,null,null,null,null,null,null,null,null,null,null,null,null,null,null,null,null,null,null,null,null,null,null,null,null,"",""]